Workbook

Sheet Liet. instrukcija
A1: Būvmateriālu kataloga lietošanas instrukcija
A3: 1. Navigācijai starp izklājlapām izmantojiet saites, kas atrodas 1.1. tabulā. Nospiežot uz kādu no izvēlētās pozīcijas automātiski tiks atvērta izvēlētā izklājlapa. Skatīt attēlu 1.1.;
D19: 1.1. attēls
A21: 2. Nonākot izvēlētajā būvmateriālu pozīcijas izklājlapā tiek piedāvātas iespējas ievadīt attiecīgā būvizstrādājuma daudzumu (kolonna E) atbilstoši mērvienībam, kā arī rediģēt būvizstrādājuma cenu (kolonna D) un izveidot piezīmes (kolonna G). Skatīt attēlu 1.2.;
D34: 1.2. attēls
A35: 3. Atgriezties izklājlapā "SĀKUMS" iespējams izmantojot katras izklājlapas peigās pogu "SĀKUMS". Skatīt attēlu 1.3.;
C44: 1.3. attēls
A46: 4. Pēc attiecīgo būvizstrādājumu pozīciju daudzuma ievades pa izklājlapām iespējams apskatīt kopsavilkumu izklājlapā "KOPTĀME". Vispirms nospiežot pogu "ATJAUNINĀT TĀMI". Skatīt attēlu 1.4.;
C57: 1.4. attēls
A59: SVARĪGI: Pēc izmaiņu veikšanas būvmaterialu pozīciju izklājlapās jāveic koptāmes atjaunināšana nospiežot pogu "ATJAUNINĀT TĀMI" izklājlapā "KOPTĀME"
A60: Katalogā esošā informācija atjaunota 28.03.2018.

Sheet SĀKUMS
A2: Būvmateriālu katalogā ietvertās būvmateriālu pozīcijas
E4: 1.1. tabula
A5: Nr.p.k. | B5: Lapas nosaukums | C5: Piezīmes
A6: 1 | B6: 2 | C6: 3
A7: 1
A8: 2
A9: 3
A10: 4
A11: 5
A12: 6
A13: 7
A14: 8
A15: 9
A16: 10
A17: 11
A18: 12
A19: 13
A20: 14
A21: 15 | B21: Tērauda izstrādājumi

Sheet Gāzbetona bl.
A1: Nr.p.k. | B1: Nosaukums | C1: Mērvienība | D1: 2017 | E1: Cena par mērvienību (EUR) | F1: 2020 | G1: Ievadiet daudzumu | H1: Cena par daudzumu (EUR) | I1: Piezīmes
A2: 1 | B2: 2 | C2: 3 | E2: 4 | F2: 4 | G2: 5 | H2: 6 | I2: 7
A3: 1 | B3: bauroc Eco Term Plus 500 | C3: m³ | D3: 68.85 | E3: 69.32207994 | F3: =D3*0.96906318 -> 66.71999994 | H3: =IF(ISNUMBER(G3),E3*G3,"") -> 
A4: 2 | B4: bauroc Eco Term Plus 375 | C4: m³ | D4: 68.85 | E4: 69.32207994 | F4: 66.71999994 | H4: =IF(ISNUMBER(G4),E4*G4,"") -> 
A5: 3 | B5: bauroc Eco Term Plus 300 | C5: m³ | D5: 68.85 | E5: 69.32207994 | F5: 66.71999994
A6: 4 | B6: bauroc EcoLight 375 | C6: m³ | D6: 59.65 | E6: 60.05899882 | F6: 57.80461869
A7: 5 | B7: bauroc EcoLight 250 | C7: m³ | D7: 59.65 | E7: 60.05899882 | F7: 57.80461869
A8: 6 | B8: bauroc EcoLight 200 | C8: m³ | D8: 59.65 | E8: 60.05899882 | F8: 57.80461869
A9: 7 | B9: bauroc Universal 300 | C9: m³ | D9: 53.95 | E9: 54.31991594 | F9: 52.28095856
A10: 8 | B10: bauroc Universal 200 | C10: m³ | D10: 53.95 | E10: 54.31991594 | F10: 52.28095856
A11: 9 | B11: bauroc Classic 300 | C11: m³ | D11: 68.76 | E11: 69.23146284 | F11: 66.63278426
A12: 10 | B12: bauroc Classic 250 | C12: m³ | D12: 68.76 | E12: 69.23146284 | F12: 66.63278426
A13: 11 | B13: bauroc Classic 200 | C13: m³ | D13: 68.76 | E13: 69.23146284 | F13: 66.63278426
A14: 12 | B14: bauroc Classic 150 | C14: m³ | D14: 68.76 | E14: 69.23146284 | F14: 66.63278426
A15: 13 | B15: bauroc Classic 100 | C15: m³ | D15: 68.76 | E15: 69.23146284 | F15: 66.63278426
A16: 14 | B16: bauroc Acoustic 250 | C16: m³ | D16: 69.82 | E16: 70.29873089 | F16: 67.65999123
A17: 15 | B17: bauroc Acoustic 150 | C17: m³ | D17: 69.82 | E17: 70.29873089 | F17: 67.65999123
A18: 16 | B18: bauroc Acoustic 100 | C18: m³ | D18: 69.82 | E18: 70.29873089 | F18: 67.65999123
A19: 17 | B19: bauroc Hard 300 | C19: m³ | D19: 71.86 | E19: 72.35271844 | F19: 69.63688011
A20: 18 | B20: bauroc Hard 250 | C20: m³ | D20: 71.86 | E20: 72.35271844 | F20: 69.63688011
A21: 19 | B21: bauroc Hard 200 | C21: m³ | D21: 71.86 | E21: 72.35271844 | F21: 69.63688011
A22: 20 | B22: TexoBLOCK GRAND 400 | C22: m³ | D22: 60.09 | E22: 60.50201574 | F22: 58.23100649
A23: 21 | B23: TexoBLOCK GRAND 375 | C23: m³ | D23: 60.09 | E23: 60.50201574 | F23: 58.23100649
A24: 22 | B24: TexoBLOCK CLASSIC 300 | C24: m³ | D24: 60.38 | E24: 60.79400417 | F24: 58.51203481
A25: 23 | B25: TexoBLOCK CLASSIC 240 | C25: m³ | D25: 60.38 | E25: 60.79400417 | F25: 58.51203481
A26: 24 | B26: TexoBLOCK STANDART 300 | C26: m³ | D26: 58.1 | E26: 58.49837102 | F26: 56.30257076
A27: 25 | B27: TexoBLOCK STANDART 200 | C27: m³ | D27: 58.1 | E27: 58.49837102 | F27: 56.30257076
A28: 26 | B28: TexoBLOCK SCREEN 150 | C28: m³ | D28: 64.8 | E28: 65.24431053 | F28: 62.79529406
A29: 27 | B29: TexoBLOCK SCREEN 120 | C29: m³ | D29: 64.8 | E29: 65.24431053 | F29: 62.79529406
A30: 28 | B30: TexoBLOCK SCREEN 100 | C30: m³ | D30: 64.8 | E30: 65.24431053 | F30: 62.79529406
A31: 29 | B31: RocLITE ENERGO TERM 500 | C31: m³ | D31: 50.06 | E31: 50.4032436 | F31: 48.51130279
A32: 30 | B32: RocLITE ENERGO 380 | C32: m³ | D32: 50.06 | E32: 50.4032436 | F32: 48.51130279
A33: 31 | B33: RocLITE CLASSIC | C33: m³ | D33: 50.07 | E33: 50.41331217 | F33: 48.52099342
A34: 32 | B34: RocLITE STANDART | C34: m³ | D34: 46.74 | E34: 47.06047954 | F34: 45.29401303
A35: 33 | B35: RocLITE UNIVERSAL | C35: m³ | D35: 46.74 | E35: 47.06047954 | F35: 45.29401303
A36: 34 | B36: RocLITE PARTITION | C36: m³ | D36: 56.63 | E36: 57.01829175 | F36: 54.87804788
A37: 35 | B37: BLOCK 200/250 PPL2/04/25 | C37: m³ | D37: 41.59 | E37: 41.87516782 | F37: 40.30333766
A38: 36 | B38: BLOCK 250/200 PPL2/04/25 | C38: m³ | D38: 41.59 | E38: 41.87516782 | F38: 40.30333766
A39: 37 | B39: Ytong Energo PP2/0,35 S+GT | C39: m³ | D39: 63.59 | E39: 64.02601399 | F39: 61.62272762
A40: 38 | B40: Ytong PP2/0,4 S+GT | C40: m³ | D40: 74.16 | E40: 74.66848872 | F40: 71.86572543
A41: 39 | B41: Ytong PP3/0,5 S+GT | C41: m³ | D41: 130.24 | E41: 131.1330093 | F41: 126.2107886
A42: 40 | B42: Ytong PP4/0,6 S+GT | C42: m³ | D42: 90.06 | E42: 90.67750936 | F42: 87.27382999
A43: 41 | B43: Ytong PP2/0,4 S | C43: m³ | D43: 81.36 | E43: 81.91785656 | F43: 78.84298032
A44: 42 | B44: Ytong Interior PP3/0,5 S | C44: m³ | D44: 70.28 | E44: 70.76188494 | F44: 68.10576029
A45: 43 | B45: Ytong PP4/0,6 | C45: m³ | D45: 71.73 | E45: 72.22182708 | F45: 69.5109019
B47: Piezīmes: | C47: 1. Saraksta secībai nav nekāda sakara ar būvmateriālu vai būvizstrādājumu kvalitātes rādītājiem vai izmantošanas iespējamību. Saraksts izveidots nejaušā secībā;
C48: 3. Būvmateriālu vai būvizstrādājumu patiesās cenas var mainīties atkarībā no to piegādātāja vai tirgotāja piedāvājuma izmaiņām;
C49: 3 Katalogā redzamās būvmateriālu vai būvizstrādājumu cenas ir vidējās Latvijas mazumtirzniecības cenas bez PVN (21%);

Sheet Keramzītbetona bl.
A1: Nr.p.k. | B1: Nosaukums | C1: Mērvienība | D1: 2017 | E1: Cena par mērvienību (EUR) | F1: 2018 | G1: Ievadiet daudzumu | H1: Cena par daudzumu (EUR) | I1: Piezīmes
A2: 1 | B2: 2 | C2: 3 | E2: 4 | F2: 4 | G2: 5 | H2: 6 | I2: 7
A3: 1 | B3: FIBO Term 420 | C3: m³ | D3: 227.95 | E3: 234.4660268 | F3: =D3*0.9899762595 -> 225.6650884 | H3: =IF(ISNUMBER(G3),G3*E3,"") -> 
A4: 2 | B4: FIBO Term 380 | C4: m³ | D4: 223.05 | E4: 229.4259587 | F4: =D4*0.9899762595 -> 220.8142047 | H4: =IF(ISNUMBER(G4),G4*E4,"") -> 
A5: 4 | B5: FIBO Term 300 | C5: m³ | D5: 219.58 | E5: 225.8567676 | F5: 217.3789871
A6: 5 | B6: FIBO standarta bloki 5 Mpa 300 | C6: m³ | D6: 82.26 | E6: 84.61142954 | F6: 81.43544711
A7: 6 | B7: FIBO standarta bloki 5 Mpa 250 | C7: m³ | D7: 82.26 | E7: 84.61142954 | F7: 81.43544711
A8: 7 | B8: FIBO standarta bloki 5 Mpa 200 | C8: m³ | D8: 82.26 | E8: 84.61142954 | F8: 81.43544711
A9: 8 | B9: FIBO standarta bloki 5 Mpa 150 | C9: m³ | D9: 82.26 | E9: 84.61142954 | F9: 81.43544711
A10: 9 | B10: FIBO standarta bloki 5 Mpa 100 | C10: m³ | D10: 82.26 | E10: 84.61142954 | F10: 81.43544711
A11: 10 | B11: FIBO standarta bloki 3 Mpa 350 | C11: m³ | D11: 75.82 | E11: 77.98734 | F11: 75.06
A12: 11 | B12: FIBO standarta bloki 3 Mpa 300 | C12: m³ | D12: 75.82 | E12: 77.98734 | F12: 75.06
A13: 12 | B13: FIBO standarta bloki 3 Mpa 250 | C13: m³ | D13: 75.82 | E13: 77.98734 | F13: 75.06
A14: 13 | B14: FIBO standarta bloki 3 Mpa 200 | C14: m³ | D14: 75.82 | E14: 77.98734 | F14: 75.06
A15: 14 | B15: FIBO standarta bloki 3 Mpa 150 | C15: m³ | D15: 75.82 | E15: 77.98734 | F15: 75.06
A16: 15 | B16: FIBO standarta bloki 3 Mpa 100 | C16: m³ | D16: 75.82 | E16: 77.98734 | F16: 75.06
A17: 16 | B17: FIBO PLUS 300 | C17: m³ | D17: 72.34 | E17: 74.40786303 | F17: 71.61488261
A18: 17 | B18: FIBO PLUS 250 | C18: m³ | D18: 72.34 | E18: 74.40786303 | F18: 71.61488261
A19: 18 | B19: FIBO PLUS 200 | C19: m³ | D19: 72.34 | E19: 74.40786303 | F19: 71.61488261
A20: 19 | B20: BBR Keramzīta bloki 3 Mpa 300 | C20: m³ | D20: 75.78 | E20: 77.94619658 | F20: 75.02040094
A21: 20 | B21: BBR Keramzīta bloki 3 Mpa 250 | C21: m³ | D21: 75.78 | E21: 77.94619658 | F21: 75.02040094
A22: 21 | B22: BBR Keramzīta bloki 3 Mpa 200 | C22: m³ | D22: 75.78 | E22: 77.94619658 | F22: 75.02040094
A23: 22 | B23: BBR Keramzīta bloki 3 Mpa 150 | C23: m³ | D23: 75.78 | E23: 77.94619658 | F23: 75.02040094
A24: 23 | B24: BBR Keramzīta bloki 3 Mpa 100 | C24: m³ | D24: 75.78 | E24: 77.94619658 | F24: 75.02040094
A25: 24 | B25: BBR Keramzīta bloki 5 Mpa 300 | C25: m³ | D25: 77.99 | E25: 80.21937017 | F25: 77.20824848
A26: 25 | B26: BBR Keramzīta bloki 5 Mpa 250 | C26: m³ | D26: 77.99 | E26: 80.21937017 | F26: 77.20824848
A27: 26 | B27: BBR Keramzīta bloki 5 Mpa 200 | C27: m³ | D27: 77.99 | E27: 80.21937017 | F27: 77.20824848
A28: 27 | B28: Kolle Keramzīta bloki 3 Mpa 300 | C28: m³ | D28: 74.15 | E28: 76.26960249 | F28: 73.40673964
A29: 28 | B29: Kolle Keramzīta bloki 3 Mpa 250 | C29: m³ | D29: 74.15 | E29: 76.26960249 | F29: 73.40673964
A30: 29 | B30: Kolle Keramzīta bloki 3 Mpa 200 | C30: m³ | D30: 74.15 | E30: 76.26960249 | F30: 73.40673964
A31: 30 | B31: Kolle Keramzīta bloki 3 Mpa 150 | C31: m³ | D31: 74.15 | E31: 76.26960249 | F31: 73.40673964
A32: 31 | B32: Kolle Keramzīta bloki 3 Mpa 100 | C32: m³ | D32: 74.15 | E32: 76.26960249 | F32: 73.40673964
A33: 32 | B33: Kolle Keramzīta bloki 5 Mpa 300 | C33: m³ | D33: 76.59 | E33: 78.7793507 | F33: 75.82228172
A34: 33 | B34: Kolle Keramzīta bloki 5 Mpa 250 | C34: m³ | D34: 76.59 | E34: 78.7793507 | F34: 75.82228172
A35: 34 | B35: Kolle Keramzīta bloki 5 Mpa 200 | C35: m³ | D35: 76.59 | E35: 78.7793507 | F35: 75.82228172
A36: 35 | B36: Kolle Keramzīta bloki 5 Mpa 150 | C36: m³ | D36: 76.59 | E36: 78.7793507 | F36: 75.82228172
A37: 36 | B37: Kolle Keramzīta bloki 5 Mpa 100 | C37: m³ | D37: 76.59 | E37: 78.7793507 | F37: 75.82228172
B39: Piezīmes: | C39: 1. Saraksta secībai nav nekāda sakara ar būvmateriālu vai būvizstrādājumu kvalitātes rādītājiem vai izmantošanas iespējamību. Saraksts izveidots nejaušā secībā;
C40: 3. Būvmateriālu vai būvizstrādājumu patiesās cenas var mainīties atkarībā no to piegādātāja vai tirgotāja piedāvājuma izmaiņām;
C41: 3 Katalogā redzamās būvmateriālu vai būvizstrādājumu cenas ir vidējās Latvijas mazumtirzniecības cenas bez PVN (21%);

Sheet Inertie mat.
A1: Nr.p.k. | B1: Nosaukums | C1: Mērvienība | D1: Cena par mērvienību (EUR) | E1: Ievadiet daudzumu | F1: Cena par daudzumu (EUR) | G1: Piezīmes
A2: 1 | B2: 2 | C2: 3 | D2: 4 | E2: 5 | F2: 6 | G2: 7
A3: Dabisks materiāls
A4: 1 | B4: Dabīgā grants 0+ mm | C4: t | D4: 3.78 | F4: =IF(ISNUMBER(E4),E4*D4,"") -> 
A5: 2 | B5: Dabīgā smilts | C5: t | D5: 2.64 | F5: =IF(ISNUMBER(E5),E5*D5,"") -> 
A6: 3 | B6: Grants ceļu būvei ar mālu (sijāta) 0-40 mm | C6: t
A7: 4 | B7: Betonēšanas grants 0+ mm | C7: t
A8: 5 | B8: Betonēšanas grants dabīgā (sijāta) 0-40 mm | C8: t
A9: 6 | B9: Akmens +40 mm | C9: t
A10: 7 | B10: Atsijas 0-8 mm | C10: t
A11: 8 | B11: Atsijas 0-4 mm | C11: t | D11: 3.7
A12: 9 | B12: Uzberamā smilts 0-4 mm | C12: t
A13: Drupināts materiāls
A14: 9 | B14: Granīta šķembas 0-5 mm | C14: t | D14: 16.42
A15: 10 | B15: Granīta šķembas 0-45 mm | C15: t | D15: 16.42
A16: 11 | B16: Granīta šķembas 5-8 mm | C16: t | D16: 20.85
A17: 12 | B17: Granīta šķembas 8-11 mm | C17: t | D17: 20.85
A18: 13 | B18: Granīta šķembas 11-16 mm | C18: t | D18: 20.85
A19: 14 | B19: Dolomīta šķembas 2-8 mm | C19: t | D19: 5.91
A20: 15 | B20: Dolomīta šķembas 8-16 mm | C20: t | D20: 5.45
A21: 16 | B21: Dolomīta šķembas 16-32 mm | C21: t | D21: 8.83
A22: 17 | B22: Dolomīta šķembas 20-40 mm | C22: t | D22: 5.22
A23: 18 | B23: Dolomīta šķembas 40-70 mm | C23: t | D23: 4.68
A24: Mazgāts materiāls
A25: 19 | B25: Mazgāta smilts 0-2 mm | C25: t | D25: 5.2
A26: 20 | B26: Mazgāta smilts 0-4 mm | C26: t | D26: 5.71
A27: 21 | B27: Mazgāti oļi 2-6 mm | C27: t | D27: 16.42
A28: 22 | B28: Mazgāti oļi 4-8 mm | C28: t | D28: 16.42
A29: 23 | B29: Mazgāti oļi 6-12 mm | C29: t | D29: 16.42
A30: 24 | B30: Mazgāti oļi 8-16 mm | C30: t | D30: 16.42
A31: 25 | B31: Mazgāti oļi 16-32 mm | C31: t | D31: 16.42
A32: 26 | B32: Mazgātas dolomīta šķembas 5-8 mm | C32: t | D32: 12.99
A33: 27 | B33: Mazgātas dolomīta šķembas 8-16 mm | C33: t | D33: 11.43
A34: 28 | B34: Mazgātas dolomīta šķembas 16-32 mm | C34: t | D34: 10.39
B36: Piezīmes: | C36: 1. Saraksta secībai nav nekāda sakara ar būvmateriālu vai būvizstrādājumu kvalitātes rādītājiem vai izmantošanas iespējamību. Saraksts izveidots nejaušā secībā;
C37: 3. Būvmateriālu vai būvizstrādājumu patiesās cenas var mainīties atkarībā no to piegādātāja vai tirgotāja piedāvājuma izmaiņām;
C38: 3 Katalogā redzamās būvmateriālu vai būvizstrādājumu cenas ir vidējās Latvijas mazumtirzniecības cenas bez PVN (21%);
C39: 4 Būvmateriālu vai būvizstrādājumu cenas ir norādītas bez PVN (21%), kā arī mazumtirzniecībā;

Sheet Jumta seg.
A1: Nr.p.k. | B1: Nosaukums | C1: Mērvienība | D1: 2017 | E1: Cena par mērvienību (EUR) | G1: Ievadiet daudzumu | H1: Cena par daudzumu (EUR) | I1: Piezīmes
A2: 1 | B2: 2 | C2: 3 | E2: 4 | G2: 5 | H2: 6 | I2: 7
A3: Viļņotās bitumena loksnes
A4: 1 | B4: Ondura viļņotās jumta loksnes 2000x1000 mm | C4: m² | D4: 3.44 | E4: 3.561233562 | F4: =D4*0.9963833635 -> 3.42755877 | H4: =IF(ISNUMBER(G4),G4*E4,"") -> 
A5: 2 | B5: Guttanit K-11 bitumena loksne 2000x830 mm | C5: m² | D5: 3.59 | E5: 3.71651991 | F5: =D5*0.9963833635 -> 3.577016275 | H5: =IF(ISNUMBER(G5),G5*E5,"") -> 
A6: 3 | B6: Onduline PP viļņotās jumta loksnes 2000x950 mm | C6: m² | D6: 3.4 | E6: 3.51982387 | F6: 3.387703436
A7: 4 | B7: Caurspīdīgās PVC jumta loksnes 2000x950 mm | C7: m² | D7: 5.99 | E7: 6.201101465 | F7: 5.968336347
A8: Bitumena šindeļi
A9: 5 | B9: Iko ArmourShield | C9: m² | D9: 6.04 | E9: 5.514657763 | F9: =D9*0.8787515 -> 5.30765906
A10: 6 | B10: Iko Cambridge | C10: m² | D10: 8.33 | E10: 7.605479995 | F10: =D10*0.8787515 -> 7.319999995
A11: 7 | B11: Iko Marathon | C11: m² | D11: 6.6 | E11: 6.025950536 | F11: 5.7997599
A12: 8 | B12: Technonikol Akords Džaivs | C12: m² | D12: 4.54 | E12: 4.145123551 | F12: 3.98953181
A13: 9 | B13: Technonikol Akords Prāga | C13: m² | D13: 4.32 | E13: 3.944258533 | F13: 3.79620648
A14: 10 | B14: Technonikol Hexagonal | C14: m² | D14: 3.66 | E14: 3.341663479 | F14: 3.21623049
A15: 11 | B15: Technonikol Sonata Kadriļa | C15: m² | D15: 3.96 | E15: 3.615570322 | F15: 3.47985594
A16: 12 | B16: Technonikol Sonata Samba | C16: m² | D16: 4.44 | E16: 4.05382127 | F16: 3.90165666
A17: 13 | B17: Technonikol Sonata Versalles | C17: m² | D17: 4.25 | E17: 3.880346936 | F17: 3.734693875
A18: 14 | B18: Technonikol Tango super | C18: m² | D18: 4.67 | E18: 4.263816516 | F18: 4.103769505
A19: 15 | B19: Technonikol Trio super | C19: m² | D19: 4.55 | E19: 4.154253779 | F19: 3.998319325
A20: Bezazbesta šīferis
A21: 16 | B21: Eco Dach L 1130x1750 mm | C21: m² | D21: 4.83 | E21: 3.8521964 | F21: =D21*0.7676190476 -> 3.7076
A22: 17 | B22: Eco dach M 1130x1000 mm | C22: m² | D22: 5.32 | E22: 4.242998933 | F22: =D22*0.7676190476 -> 4.083733333
A23: 18 | B23: Eternit Baltijas vilnis 920x875 mm | C23: m² | D23: 5.96 | E23: 4.753434895 | F23: 4.575009524
A24: 19 | B24: Eternit Gotika 920x585 mm | C24: m² | D24: 6.08 | E24: 4.849141638 | F24: 4.667123809
A25: 20 | B25: Eternit Klasika L 1130x1750 mm | C25: m² | D25: 5.29 | E25: 4.219072248 | F25: 4.060704762
A26: 21 | B26: Eternit Klasika M 1130x1250 mm | C26: m² | D26: 5.25 | E26: 4.18717 | F26: 4.03
A27: 22 | B27: Eternit Klasika XL 1130x2500 mm | C27: m² | D27: 5.26 | E27: 4.195145562 | F27: 4.03767619
A28: 23 | B28: Caurspīdīgās PVC jumta loksnes | C28: m² | D28: 8.61 | E28: 6.8669588 | F28: 6.6092
A29: Profilētāis skārds
A30: 24 | B30: Ruukki Monterrey | C30: m² | D30: 6.4 | E30: 7.71977 | F30: =D30*1.1609375 -> 7.43
A31: 25 | B31: Ruukki Adamante | C31: m² | D31: 10.66 | E31: 12.85824191 | F31: =D31*1.1609375 -> 12.37559375
A32: 26 | B32: Ruukki Classic | C32: m² | D32: 8.16 | E32: 9.84270675 | F32: 9.47325
A33: 27 | B33: Ruukki Decorrey | C33: m² | D33: 6.02 | E33: 7.261408656 | F33: 6.98884375
A34: 28 | B34: Ruukki T20 | C34: m² | D34: 5.53 | E34: 6.670363766 | F34: 6.419984375
A35: 29 | B35: Ruukki T45 | C35: m² | D35: 7.29 | E35: 8.793300516 | F35: 8.463234375
A36: 30 | B36: Ruukki Valcprofils | C36: m² | D36: 10.16 | E36: 12.25513488 | F36: 11.795125
A37: Uzkausējamais ruļļmateriāls
A38: 31 | B38: Ruberoīds | C38: m² | D38: 0.76 | E38: 0.7867841592 | F38: 0.7572513563
A39: 32 | B39: Technonicol Ecofleks V 3.0kg HPP | C39: m² | D39: 1.26 | E39: 1.304405316 | F39: 1.255443038
A40: 33 | B40: Technonicol Bikroelast | C40: m² | D40: 1.71 | E40: 1.770264358 | F40: 1.703815552
A41: 34 | B41: Technonicol Bipol standart | C41: m² | D41: 2.09 | E41: 2.163656438 | F41: 2.08244123
A42: 35 | B42: Technonicol Unifleks | C42: m² | D42: 2.99 | E42: 3.095374521 | F42: 2.979186257
A43: 36 | B43: Technonicol Tehnoelast | C43: m² | D43: 3.71 | E43: 3.840748987 | F43: 3.696582279
A44: Betona dakstiņi
A45: 37 | B45: Monier Minster TE | C45: m² | D45: 16.28 | E45: 16.85374488 | F45: 16.22112116
A46: 38 | B46: Monier Zanda Lux | C46: m² | D46: 6.68 | E46: 6.915418662 | F46: 6.655840868
A47: 39 | B47: Monier Zanda Polar | C47: m² | D47: 9.37 | E47: 9.700220489 | F47: 9.336112116
A48: 40 | B48: Monier Zanda Protector | C48: m² | D48: 8.35 | E48: 8.644273328 | F48: 8.319801085
A49: Māla dakstiņi
A50: 41 | B50: Monier Dantegl | C50: m² | D50: 12.53 | E50: 12.8413995 | F50: =D50*0.9863833635 -> 12.35938354
A51: 42 | B51: Monier Granat 13V | C51: m² | D51: 16.89 | E51: 17.30975559 | F51: =D51*0.9863833635 -> 16.66001501
A52: 43 | B52: Monier Nortegl | C52: m² | D52: 21.95 | E52: 22.49550831 | F52: 21.65111483
A53: 44 | B53: Monier Nova | C53: m² | D53: 14.34 | E53: 14.69638219 | F53: 14.14473743
A54: 45 | B54: Monier Rubin 13V | C54: m² | D54: 17.1 | E54: 17.52497458 | F54: 16.86715552
A55: 46 | B55: Monier Turmalin | C55: m² | D55: 18.62 | E55: 19.0827501 | F55: 18.36645823
A56: 47 | B56: Monier Vittinge E13 | C56: m² | D56: 12.85 | E56: 13.16935224 | F56: 12.67502622
A57: 48 | B57: Monier Vittinge T11 | C57: m² | D57: 10.39 | E57: 10.64821555 | F57: 10.24852315
B59: Piezīmes: | C59: 1. Saraksta secībai nav nekāda sakara ar būvmateriālu vai būvizstrādājumu kvalitātes rādītājiem vai izmantošanas iespējamību. Saraksts izveidots nejaušā secībā;
C60: 3. Būvmateriālu vai būvizstrādājumu patiesās cenas var mainīties atkarībā no to piegādātāja vai tirgotāja piedāvājuma izmaiņām;
C61: 3 Katalogā redzamās būvmateriālu vai būvizstrādājumu cenas ir vidējās Latvijas mazumtirzniecības cenas bez PVN (21%);
C62: 4 Būvmateriālu vai būvizstrādājumu cenas ir norādītas bez PVN (21%), kā arī mazumtirzniecībā;

Sheet Zāģmateriāli
A1: Nr.p.k. | B1: Nosaukums | C1: Mērvienība | D1: Cena par mērvienību (EUR) | E1: Ievadiet daudzumu | F1: Cena par daudzumu (EUR) | G1: Piezīmes
A2: 1 | B2: 2 | C2: 3 | D2: 4 | E2: 5 | F2: 6 | G2: 7
A3: Svaiģi zāģēts kokmateriāls
A4: 1 | B4: 25x50 mm | C4: m³ | D4: 148.3 | F4: =IF(ISNUMBER(E4),E4*D4,"") -> 
A5: 2 | B5: 25x75 mm | C5: m³ | D5: 148.3 | F5: =IF(ISNUMBER(E5),E5*D5,"") -> 
A6: 3 | B6: 25x100 mm | C6: m³ | D6: 148.3
A7: 4 | B7: 25x125 mm | C7: m³ | D7: 148.3
A8: 5 | B8: 25x150 mm | C8: m³ | D8: 148.3
A9: 6 | B9: 32x100 mm | C9: m³ | D9: 148.3
A10: 7 | B10: 50x50 mm | C10: m³ | D10: 148.3
A11: 8 | B11: 50x75 mm | C11: m³ | D11: 148.3
A12: 9 | B12: 50x100 mm | C12: m³ | D12: 148.3
A13: 10 | B13: 50x125 mm | C13: m³ | D13: 148.3
A14: 11 | B14: 50x150 mm | C14: m³ | D14: 148.3
A15: 12 | B15: 50x175 mm | C15: m³ | D15: 148.3
A16: 13 | B16: 50x200 mm | C16: m³ | D16: 148.3
A17: 14 | B17: 50x225 mm | C17: m³ | D17: 148.3
A18: 15 | B18: 50x250 mm | C18: m³ | D18: 148.3
A19: 16 | B19: 75x75 mm | C19: m³ | D19: 148.3
A20: 17 | B20: 75x100 mm | C20: m³ | D20: 148.3
A21: 18 | B21: 75x150 mm | C21: m³ | D21: 148.3
A22: 19 | B22: 75x200 mm | C22: m³ | D22: 148.3
A23: 20 | B23: 75x225 mm | C23: m³ | D23: 148.3
A24: 21 | B24: 75x250 mm | C24: m³ | D24: 148.3
A25: 22 | B25: 100x100 mm | C25: m³ | D25: 148.3
A26: 23 | B26: 100x150 mm | C26: m³ | D26: 148.3
A27: 24 | B27: 100x200 mm | C27: m³ | D27: 148.3
A28: 25 | B28: 100x225 mm | C28: m³ | D28: 148.3
A29: 26 | B29: 100x250 mm | C29: m³ | D29: 148.3
A30: 27 | B30: 125x125 mm | C30: m³ | D30: 148.3
A31: 28 | B31: 150x150 mm | C31: m³ | D31: 148.3
A32: 29 | B32: 150x200 mm | C32: m³ | D32: 148.3
A33: 30 | B33: 150x225 mm | C33: m³ | D33: 148.3
A34: 31 | B34: 150x250 mm | C34: m³ | D34: 148.3
A35: 32 | B35: 200x200 mm | C35: m³ | D35: 148.3
A36: 33 | B36: 200x250 mm | C36: m³ | D36: 148.3
A37: 34 | B37: 250x250 mm | C37: m³ | D37: 148.3
A38: Kaltēts-kalibrēts zāģmateriāls
A39: 35 | B39: 20x95 mm | C39: m³ | D39: 296.12
A40: 36 | B40: 20x120 mm | C40: m³ | D40: 296.12
A41: 37 | B41: 20x145 mm | C41: m³ | D41: 296.12
A42: 38 | B42: 45x45 mm | C42: m³ | D42: 296.12
A43: 39 | B43: 45x70 mm | C43: m³ | D43: 296.12
A44: 40 | B44: 45x95 mm | C44: m³ | D44: 296.12
A45: 41 | B45: 45x120 mm | C45: m³ | D45: 296.12
A46: 42 | B46: 45x145 mm | C46: m³ | D46: 296.12
A47: 43 | B47: 45x195 mm | C47: m³ | D47: 296.12
A48: 44 | B48: 45x220 mm | C48: m³ | D48: 296.12
A49: 45 | B49: 45x245 mm | C49: m³ | D49: 296.12
A50: 46 | B50: 95x95 mm | C50: m³ | D50: 296.12
A51: Zāgmateriālu impregnēšana
A52: 47 | B52: Visi šķērsgriezumi | C52: m³ | D52: 19.29
B54: Piezīmes: | C54: 1. Saraksta secībai nav nekāda sakara ar būvmateriālu vai būvizstrādājumu kvalitātes rādītājiem vai izmantošanas iespējamību. Saraksts izveidots nejaušā secībā;
C55: 3. Būvmateriālu vai būvizstrādājumu patiesās cenas var mainīties atkarībā no to piegādātāja vai tirgotāja piedāvājuma izmaiņām;
C56: 3 Katalogā redzamās būvmateriālu vai būvizstrādājumu cenas ir vidējās Latvijas mazumtirzniecības cenas bez PVN (21%);
C57: 4 Būvmateriālu vai būvizstrādājumu cenas ir norādītas bez PVN (21%), kā arī mazumtirzniecībā;

Sheet Lokšņmateriāli
A1: Nr.p.k. | B1: Nosaukums | C1: Mērvienība | D1: 2017 | E1: Cena par mērvienību (EUR) | F1: 2018 | G1: Ievadiet daudzumu | H1: Cena par daudzumu (EUR) | I1: Piezīmes
A2: 1 | B2: 2 | C2: 3 | E2: 4 | F2: 4 | G2: 5 | H2: 6 | I2: 7
A3: OSB plāksnes
A4: 1 | B4: OSB 3, 6 mm | C4: m² | D4: 2.24 | E4: 2.560096 | F4: =D4*1.1 -> 2.464 | H4: =IF(ISNUMBER(G4),E4*G4,"") -> 
A5: 2 | B5: OSB 3 , 8 mm | C5: m² | D5: 2.2 | E5: 2.51438 | F5: =D5*1.1 -> 2.42 | H5: =IF(ISNUMBER(G5),E5*G5,"") -> 
A6: 3 | B6: OSB 3, 9 mm | C6: m² | D6: 2.05 | E6: 2.342945 | F6: 2.255
A7: 4 | B7: OSB 3, 10 mm | C7: m² | D7: 2.24 | E7: 2.560096 | F7: 2.464
A8: 5 | B8: OSB 3, 12 mm | C8: m² | D8: 2.6 | E8: 2.97154 | F8: 2.86
A9: 6 | B9: OSB 3, 15 mm | C9: m² | D9: 3.26 | E9: 3.725854 | F9: 3.586
A10: 7 | B10: OSB 3, 18 mm | C10: m² | D10: 3.92 | E10: 4.480168 | F10: 4.312
A11: 8 | B11: OSB 3, 20 mm | C11: m² | D11: 4.38 | E11: 5.005902 | F11: 4.818
A12: 9 | B12: OSB 3, 22 mm | C12: m² | D12: 4.75 | E12: 5.428775 | F12: 5.225
A13: 10 | B13: OSB 3 T&G4, 12 mm | C13: m² | D13: 3.17 | E13: 3.622993 | F13: 3.487
A14: 11 | B14: OSB 3 T&G4, 15 mm | C14: m² | D14: 3.79 | E14: 4.331591 | F14: 4.169
A15: 12 | B15: OSB 3 T&G4, 18 mm | C15: m² | D15: 4.55 | E15: 5.200195 | F15: 5.005
A16: 13 | B16: OSB 3 T&G4, 22 mm | C16: m² | D16: 5.56 | E16: 6.354524 | F16: 6.116
A17: Kokskaidu plāksnes
A18: 14 | B18: 12 mm | C18: m² | D18: 2.45 | E18: 2.800105 | F18: =D18*1.1 -> 2.695
A19: 15 | B19: 16 mm | C19: m² | D19: 3.08 | E19: 3.520132 | F19: =D19*1.1 -> 3.388
A20: 16 | B20: 18 mm | C20: m² | D20: 3.47 | E20: 3.965863 | F20: 3.817
A21: 17 | B21: 22 mm | C21: m² | D21: 4.41 | E21: 5.040189 | F21: 4.851
A22: 18 | B22: T&G4, 22 mm | C22: m² | D22: 5.13 | E22: 5.863077 | F22: 5.643
A23: Bērza saplāksnis
A24: 19 | B24: 4 mm | C24: m² | D24: 4.93 | E24: 5.634497 | F24: =D24*1.1 -> 5.423
A25: 20 | B25: 6,5 mm | C25: m² | D25: 5.05 | E25: 5.771645 | F25: =D25*1.1 -> 5.555
A26: 21 | B26: 9 mm | C26: m² | D26: 6 | E26: 6.8574 | F26: 6.6
A27: 22 | B27: 12 mm | C27: m² | D27: 6.95 | E27: 7.943155 | F27: 7.645
A28: 23 | B28: 15 mm | C28: m² | D28: 8.43 | E28: 9.634647 | F28: 9.273
A29: 24 | B29: 18 mm | C29: m² | D29: 9.85 | E29: 11.257565 | F29: 10.835
A30: 25 | B30: 21 mm | C30: m² | D30: 11.8 | E30: 13.48622 | F30: 12.98
A31: Egles saplāksnis
A32: 26 | B32: 9 mm | C32: m² | D32: 4.41 | E32: 5.040189 | F32: =D32*1.1 -> 4.851
A33: 27 | B33: 12 mm | C33: m² | D33: 5.35 | E33: 6.114515 | F33: =D33*1.1 -> 5.885
A34: 28 | B34: 15 mm | C34: m² | D34: 6.42 | E34: 7.337418 | F34: 7.062
A35: 29 | B35: 18 mm | C35: m² | D35: 7.58 | E35: 8.663182 | F35: 8.338
A36: 30 | B36: 21 mm | C36: m² | D36: 8.99 | E36: 10.274671 | F36: 9.889
A37: 31 | B37: 24 mm | C37: m² | D37: 10.74 | E37: 12.274746 | F37: 11.814
A38: Laminēts bērza saplāksnis FF
A39: 32 | B39: 12 mm | C39: m² | D39: 8.76 | E39: 10.011804 | F39: =D39*1.1 -> 9.636
A40: 33 | B40: 15 mm | C40: m² | D40: 10.59 | E40: 12.103311 | F40: =D40*1.1 -> 11.649
A41: 34 | B41: 18 mm | C41: m² | D41: 11.94 | E41: 13.646226 | F41: 13.134
A42: 35 | B42: 21 mm | C42: m² | D42: 13.95 | E42: 15.943455 | F42: 15.345
A43: Laminēts bērza saplāksnis FW
A44: 36 | B44: 6,5 mm | C44: m² | D44: 7.87 | E44: 8.994623 | F44: =D44*1.1 -> 8.657
A45: 37 | B45: 9 mm | C45: m² | D45: 8.42 | E45: 9.623218 | F45: =D45*1.1 -> 9.262
A46: 38 | B46: 12 mm | C46: m² | D46: 10.15 | E46: 11.600435 | F46: 11.165
A47: 39 | B47: 15 mm | C47: m² | D47: 11.67 | E47: 13.337643 | F47: 12.837
A48: 40 | B48: 18 mm | C48: m² | D48: 13.1 | E48: 14.97199 | F48: 14.41
A49: 41 | B49: 21 mm | C49: m² | D49: 15.31 | E49: 17.497799 | F49: 16.841
A50: Laminēts egles saplāksnis FF
A51: 42 | B51: 15 mm | C51: m² | D51: 10.28 | E51: 11.749012 | F51: =D51*1.1 -> 11.308
A52: 43 | B52: 18 mm | C52: m² | D52: 11.66 | E52: 13.326214 | F52: =D52*1.1 -> 12.826
A53: 44 | B53: 21 mm | C53: m² | D53: 12.99 | E53: 14.846271 | F53: 14.289
A54: Preskartons
A55: 45 | B55: 3,2 mm | C55: m² | D55: 1 | E55: 1.1429 | F55: =D55*1.1 -> 1.1
A56: Ģipškartons
A57: 46 | B57: Knauf WHITE (GKB) | C57: m² | D57: 1.47 | E57: 1.475379993 | F57: =D57*0.96598639 -> 1.419999993
A58: 47 | B58: GREEN (GKBI) | C58: m² | D58: 1.98 | E58: 1.987246521 | F58: =D58*0.96598639 -> 1.912653052
A59: 48 | B59: RED (GKF) | C59: m² | D59: 2.1 | E59: 2.107685704 | F59: 2.028571419
A60: 49 | B60: BLUE (GKFI) | C60: m² | D60: 2.56 | E60: 2.56936924 | F60: 2.472925158
A61: 50 | B61: BROWN (GKB) | C61: m² | D61: 2.31 | E61: 2.318454275 | F61: 2.231428561
A62: 51 | B62: NORGIPS Standart | C62: m² | D62: 1.46 | E62: 1.465343394 | F62: 1.410340129
A63: 52 | B63: NORGIPS Hard | C63: m² | D63: 2.54 | E63: 2.549296042 | F63: 2.453605431
A64: 53 | B64: NORGIPS Ugunsizturīgā plāksne | C64: m² | D64: 1.79 | E64: 1.796551148 | F64: 1.729115638
A65: 54 | B65: NORGIPS Floor (grīdām) | C65: m² | D65: 1.96 | E65: 1.967173324 | F65: 1.893333324
A66: 55 | B66: NORGIPS Mitrumizturīgā plāksne | C66: m² | D66: 1.68 | E66: 1.686148563 | F66: 1.622857135
B68: Piezīmes: | C68: 1. Saraksta secībai nav nekāda sakara ar būvmateriālu vai būvizstrādājumu kvalitātes rādītājiem vai izmantošanas iespējamību. Saraksts izveidots nejaušā secībā;
C69: 3. Būvmateriālu vai būvizstrādājumu patiesās cenas var mainīties atkarībā no to piegādātāja vai tirgotāja piedāvājuma izmaiņām;
C70: 3 Katalogā redzamās būvmateriālu vai būvizstrādājumu cenas ir vidējās Latvijas mazumtirzniecības cenas bez PVN (21%);
C71: 4 Būvmateriālu vai būvizstrādājumu cenas ir norādītas bez PVN (21%), kā arī mazumtirzniecībā;

Sheet Siltumizolācija
A1: Nr.p.k. | B1: Nosaukums | C1: Mērvienība | D1: 2017 | E1: Cena par mērvienību (EUR) | F1: 2018 | G1: Ievadiet daudzumu | H1: Cena par daudzumu (EUR) | I1: Piezīmes
A2: 1 | B2: 2 | C2: 3 | E2: 4 | G2: 5 | H2: 6 | I2: 7
A3: Putu polistirols EPS 60
A4: 1 | B4: biezums 20 mm | C4: m² | D4: 0.7 | E4: 0.6727525 | F4: =D4*0.925 -> 0.6475 | H4: =IF(ISNUMBER(G4),G4*E4,"") -> 
A5: 2 | B5: Biezums 30 mm | C5: m² | D5: 1.05 | E5: 1.00912875 | F5: =D5*0.925 -> 0.97125 | H5: =IF(ISNUMBER(G5),G5*E5,"") -> 
A6: 12 | B6: biezums 40 mm | C6: m² | E6: 0 | F6: 0
A7: 3 | B7: biezums 50 mm | C7: m² | D7: 1.74 | E7: 1.6722705 | F7: 1.6095
A8: 14 | B8: biezums 60 mm | C8: m² | E8: 0 | F8: 0
A9: 4 | B9: biezums 70 mm | C9: m² | D9: 2.46 | E9: 2.3642445 | F9: 2.2755
A10: 16 | B10: biezums 80 mm | C10: m² | E10: 0 | F10: 0
A11: 17 | B11: biezums 90 mm | C11: m² | E11: 0 | F11: 0
A12: 5 | B12: biezums 100 mm | C12: m² | D12: 3.48 | E12: 3.344541 | F12: 3.219
A13: 6 | B13: biezums 120 mm | C13: m² | D13: 4.41 | E13: 4.23834075 | F13: 4.07925
A14: 7 | B14: biezums 150 mm | C14: m² | D14: 5.51 | E14: 5.29552325 | F14: 5.09675
A15: Putu polistirols EPS 70
A16: 8 | B16: biezums 20 mm | C16: m² | D16: 0.79 | E16: 0.75924925 | F16: =D16*0.925 -> 0.73075 | H16: =IF(ISNUMBER(G16),G16*E16,"") -> 
A17: 9 | B17: Biezums 30 mm | C17: m² | D17: 1.19 | E17: 1.14367925 | F17: =D17*0.925 -> 1.10075
A18: 21 | B18: biezums 40 mm | C18: m² | E18: 0 | F18: 0
A19: 10 | B19: biezums 50 mm | C19: m² | D19: 1.98 | E19: 1.9029285 | F19: 1.8315
A20: 23 | B20: biezums 60 mm | C20: m² | E20: 0 | F20: 0
A21: 24 | B21: biezums 70 mm | C21: m² | E21: 0 | F21: 0
A22: 25 | B22: biezums 80 mm | C22: m² | E22: 0 | F22: 0
A23: 26 | B23: biezums 90 mm | C23: m² | E23: 0 | F23: 0
A24: 11 | B24: biezums 100 mm | C24: m² | D24: 3.94 | E24: 3.7866355 | F24: 3.6445
A25: Putu polistirols EPS 80
A26: 12 | B26: biezums 20 mm | C26: m² | D26: 0.91 | E26: 0.87457825 | F26: =D26*0.925 -> 0.84175 | H26: =IF(ISNUMBER(G26),G26*E26,"") -> 
A27: 13 | B27: Biezums 30 mm | C27: m² | D27: 1.37 | E27: 1.31667275 | F27: =D27*0.925 -> 1.26725
A28: 30 | B28: biezums 40 mm | C28: m² | E28: 0 | F28: 0
A29: 14 | B29: biezums 50 mm | C29: m² | D29: 2.21 | E29: 2.12397575 | F29: 2.04425
A30: 32 | B30: biezums 60 mm | C30: m² | E30: 0 | F30: 0
A31: 33 | B31: biezums 70 mm | C31: m² | E31: 0 | F31: 0
A32: 34 | B32: biezums 80 mm | C32: m² | E32: 0 | F32: 0
A33: 35 | B33: biezums 90 mm | C33: m² | E33: 0 | F33: 0
A34: 15 | B34: biezums 100 mm | C34: m² | D34: 4.42 | E34: 4.2479515 | F34: 4.0885
A35: Putu polistirols EPS 100
A36: 16 | B36: biezums 20 mm | C36: m² | D36: 1.14 | E36: 1.0956255 | F36: =D36*0.925 -> 1.0545 | H36: =IF(ISNUMBER(G36),G36*E36,"") -> 
A37: 17 | B37: Biezums 30 mm | C37: m² | D37: 1.45 | E37: 1.39355875 | F37: =D37*0.925 -> 1.34125
A38: 39 | B38: biezums 40 mm | C38: m² | E38: 0 | F38: 0
A39: 18 | B39: biezums 50 mm | C39: m² | D39: 2.4 | E39: 2.30658 | F39: 2.22
A40: 41 | B40: biezums 60 mm | C40: m² | E40: 0 | F40: 0
A41: 42 | B41: biezums 70 mm | C41: m² | E41: 0 | F41: 0
A42: 43 | B42: biezums 80 mm | C42: m² | E42: 0 | F42: 0
A43: 44 | B43: biezums 90 mm | C43: m² | E43: 0 | F43: 0
A44: 19 | B44: biezums 70 mm | C44: m² | D44: 3.61 | E44: 3.46948075 | F44: 3.33925
A45: 20 | B45: biezums 100 mm | C45: m² | D45: 4.8 | E45: 4.61316 | F45: 4.44
A46: Putu polistirols EPS 120
A47: 21 | B47: biezums 30 mm | C47: m² | D47: 2.56 | E47: 2.460352 | F47: =D47*0.925 -> 2.368 | H47: =IF(ISNUMBER(G47),G47*E47,"") -> 
A48: 22 | B48: biezums 50 mm | C48: m² | D48: 3.87 | E48: 3.71936025 | F48: =D48*0.925 -> 3.57975
A49: 23 | B49: biezums 75 mm | C49: m² | D49: 5.81 | E49: 5.58384575 | F49: 5.37425
A50: 50 | B50: biezums 60 mm | C50: m² | E50: 0 | F50: 0
A51: 24 | B51: biezums 100 mm | C51: m² | D51: 7.73 | E51: 7.42910975 | F51: 7.15025
A52: 25 | B52: biezums 120 mm | C52: m² | D52: 9.72 | E52: 9.341649 | F52: 8.991
A53: 52 | B53: biezums 80 mm | C53: m² | E53: 0 | F53: 0
A54: 53 | B54: biezums 90 mm | C54: m² | E54: 0 | F54: 0
A55: 26 | B55: biezums 150 mm | C55: m² | D55: 12.18 | E55: 11.7058935 | F55: 11.2665
A56: 27 | B56: biezums 200 mm | C56: m² | D56: 16.27 | E56: 15.63669025 | F56: 15.04975
A57: Putu polistirols EPS 150
A58: 28 | B58: biezums 20 mm | C58: m² | D58: 2.29 | E58: 2.20086175 | F58: =D58*0.925 -> 2.11825 | H58: =IF(ISNUMBER(G58),G58*E58,"") -> 
A59: 29 | B59: Biezums 30 mm | C59: m² | D59: 1.88 | E59: 1.806821 | F59: =D59*0.925 -> 1.739
A60: 57 | B60: biezums 40 mm | C60: m² | E60: 0 | F60: 0
A61: 30 | B61: biezums 50 mm | C61: m² | D61: 3.14 | E61: 3.0177755 | F61: 2.9045
A62: 59 | B62: biezums 60 mm | C62: m² | E62: 0 | F62: 0
A63: 60 | B63: biezums 70 mm | C63: m² | E63: 0 | F63: 0
A64: 61 | B64: biezums 80 mm | C64: m² | E64: 0 | F64: 0
A65: 62 | B65: biezums 90 mm | C65: m² | E65: 0 | F65: 0
A66: 31 | B66: biezums 70 mm | C66: m² | D66: 4.48 | E66: 4.305616 | F66: 4.144
A67: 32 | B67: biezums 100 mm | C67: m² | D67: 6.29 | E67: 6.04516175 | F67: 5.81825
A68: Putu polistirols EPS 200
A69: 33 | B69: biezums 20 mm | C69: m² | D69: 1.59 | E69: 1.52810925 | F69: =D69*0.925 -> 1.47075 | H69: =IF(ISNUMBER(G69),G69*E69,"") -> 
A70: 34 | B70: Biezums 30 mm | C70: m² | D70: 2.38 | E70: 2.2873585 | F70: =D70*0.925 -> 2.2015
A71: 35 | B71: biezums 50 mm | C71: m² | D71: 3.97 | E71: 3.81546775 | F71: 3.67225
A72: 36 | B72: biezums 70 mm | C72: m² | D72: 5.56 | E72: 5.343577 | F72: 5.143
A73: 37 | B73: biezums 100 mm | C73: m² | D73: 7.93 | E73: 7.62132475 | F73: 7.33525
A74: Fasādes akmensvate
A75: 38 | B75: biezums 20 mm | C75: m² | D75: 2.3 | E75: 2.312731135 | F75: =D75*0.967791411 -> 2.225920245 | H75: =IF(ISNUMBER(G75),G75*E75,"") -> 
A76: 39 | B76: Biezums 30 mm | C76: m² | D76: 3.19 | E76: 3.207657531 | F76: =D76*0.967791411 -> 3.087254601
A77: 40 | B77: biezums 50 mm | C77: m² | D77: 4.05 | E77: 4.072417868 | F77: 3.919555215
A78: 41 | B78: biezums 80 mm | C78: m² | D78: 5.35 | E78: 5.379613727 | F78: 5.177684049
A79: 42 | B79: biezums 100 mm | C79: m² | D79: 6.52 | E79: 6.55609 | F79: 6.31
A80: 43 | B80: biezums 120 mm | C80: m² | D80: 7.79 | E80: 7.8331198 | F80: 7.539095092
A81: 44 | B81: biezums 140 mm | C81: m² | D81: 9.78 | E81: 9.834135 | F81: 9.465
A82: 45 | B82: biezums 150 mm | C82: m² | D82: 10.24 | E82: 10.29668123 | F82: 9.910184049
A83: 46 | B83: biezums 160 mm | C83: m² | D83: 11.7 | E83: 11.76476273 | F83: 11.32315951
A84: 47 | B84: biezums 180 mm | C84: m² | D84: 12.12 | E84: 12.18708755 | F84: 11.7296319
A85: 48 | B85: biezums 200 mm | C85: m² | D85: 12.84 | E85: 12.91107294 | F85: 12.42644172
A86: 49 | B86: biezums 240 mm | C86: m² | D86: 19.3 | E86: 19.40683083 | F86: 18.67837423
A87: Minerālvate ruļļos
A88: 50 | B88: biezums 50 mm | C88: m² | D88: 1.17 | E88: 1.176476273 | F88: =D88*0.967791411 -> 1.132315951 | H88: =IF(ISNUMBER(G88),G88*E88,"") -> 
A89: 51 | B89: biezums 75 mm | C89: m² | D89: 1.99 | E89: 2.001015199 | F89: =D89*0.967791411 -> 1.925904908
A90: 52 | B90: biezums 100 mm | C90: m² | D90: 2.56 | E90: 2.574170307 | F90: 2.477546012
A91: 53 | B91: biezums 125 mm | C91: m² | D91: 3.78 | E91: 3.800923343 | F91: 3.658251534
A92: 54 | B92: biezums 150 mm | C92: m² | D92: 4.02 | E92: 4.04225181 | F92: 3.890521472
A93: Beramā siltumizolācija
A94: 55 | B94: Beramā akmenvate | C94: m³ | D94: 21.95 | E94: 22.07149931 | F94: =D94*0.967791411 -> 21.24302147 | H94: =IF(ISNUMBER(G94),G94*E94,"") -> 
B96: Piezīmes: | C96: 1. Saraksta secībai nav nekāda sakara ar būvmateriālu vai būvizstrādājumu kvalitātes rādītājiem vai izmantošanas iespējamību. Saraksts izveidots nejaušā secībā;
C97: 3. Būvmateriālu vai būvizstrādājumu patiesās cenas var mainīties atkarībā no to piegādātāja vai tirgotāja piedāvājuma izmaiņām;
C98: 3 Katalogā redzamās būvmateriālu vai būvizstrādājumu cenas ir vidējās Latvijas mazumtirzniecības cenas bez PVN (21%);
C99: 4 Būvmateriālu vai būvizstrādājumu cenas ir norādītas bez PVN (21%), kā arī mazumtirzniecībā;

Sheet Transportbetons
A1: Nr.p.k. | B1: Nosaukums | C1: Mērvienība | D1: 2017 | E1: Cena par mērvienību (EUR) | F1: 2018 | G1: Ievadiet daudzumu | H1: Cena par daudzumu (EUR) | I1: Piezīmes
A2: 1 | B2: 2 | C2: 3 | E2: 4 | G2: 5 | H2: 6 | I2: 7
A3: Pildvielu frakcija 2-8 mm
A4: 1 | B4: Betons C 8/10 | C4: m³ | D4: 51 | E4: 50.72451281 | F4: =D4*0.957264957 -> 48.82051281 | H4: =IF(ISNUMBER(G4),G4*F4,"") -> 
A5: 2 | B5: Betons C 12/15 | C5: m³ | D5: 53.33 | E5: 53.04192682 | F5: =D5*0.957264957 -> 51.05094016 | H5: =IF(ISNUMBER(G5),G5*E5,"") -> 
A6: 3 | B6: Betons C 16/20 | C6: m³ | D6: 56 | E6: 55.69750426 | F6: 53.60683759 | H6: =IF(ISNUMBER(G6),G6*E6,"") -> 
A7: 4 | B7: Betons C 20/25 | C7: m³ | D7: 59.5 | E7: 59.17859827 | F7: 56.95726494
A8: 5 | B8: Betons C 25/30 | C8: m³ | D8: 61.83 | E8: 61.49601229 | F8: 59.18769229
A9: 6 | B9: Betons C 30/37 | C9: m³ | D9: 63.83 | E9: 63.48520887 | F9: 61.10222221
A10: 7 | B10: Betons C 35/45 | C10: m³ | D10: 69.75 | E10: 69.37323075 | F10: 66.76923075
A11: Pildvielu frakcija 8-16 mm
A12: 8 | B12: Betons C 8/10 | C12: m³ | D12: 49.83 | E12: 49.56083281 | F12: =D12*0.957264957 -> 47.70051281
A13: 9 | B13: Betons C 12/15 | C13: m³ | D13: 52.83 | E13: 52.54462768 | F13: =D13*0.957264957 -> 50.57230768
A14: 10 | B14: Betons C 16/20 | C14: m³ | D14: 55.33 | E14: 55.0311234 | F14: 52.96547007
A15: 11 | B15: Betons C 20/25 | C15: m³ | D15: 58.5 | E15: 58.18399998 | F15: 55.99999998
A16: 12 | B16: Betons C 25/30 | C16: m³ | D16: 60.5 | E16: 60.17319656 | F16: 57.9145299
A17: 13 | B17: Betons C 30/37 | C17: m³ | D17: 64.66 | E17: 64.31072545 | F17: 61.89675212
A18: 14 | B18: Betons C 35/45 | C18: m³ | D18: 71 | E18: 70.61647861 | F18: 67.96581195
A19: Cementa java (pildvielu frakcija 0-3 mm)
A20: 15 | B20: Marka M50 | C20: m³ | D20: 48.5 | E20: 50.16283269 | F20: =D20*0.9954621849 -> 48.27991597
A21: 16 | B21: Marka M75 | C21: m³ | D21: 51.75 | E21: 53.52425962 | F21: 51.51516807
A22: 17 | B22: Marka M100 | C22: m³ | D22: 54.83 | E22: 56.70985807 | F22: 54.5811916
A23: 18 | B23: Marka M150 | C23: m³ | D23: 59.17 | E23: 61.19865588 | F23: 58.90149748
A24: 19 | B24: Marka M200 | C24: m³ | D24: 63.5 | E24: 65.67711084 | F24: 63.21184874
A25: 20 | B25: Marka M250 | C25: m³ | D25: 67.33 | E25: 69.6384232 | F25: 67.02446891
A26: 21 | B26: Marka M300 | C26: m³ | D26: 69 | E26: 71.3656795 | F26: 68.68689076
A27: 22 | B27: Marka M350 | C27: m³ | D27: 71 | E27: 73.43424992 | F27: 70.67781513
A28: 23 | B28: Marka M400 | C28: m³ | D28: 73.5 | E28: 76.01996294 | F28: 73.16647059
A29: Transportēšana un iestrāde
A30: 24 | B30: Transports uz objektu | C30: EUR/km | D30: 1.05 | E30: 0.98705 | F30: 0.95
A31: 25 | B31: Betona sūknēšana | C31: EUR/h | D31: 69.5 | E31: 70.1325 | F31: 67.5
B33: Piezīmes: | C33: 1. Saraksta secībai nav nekāda sakara ar būvmateriālu vai būvizstrādājumu kvalitātes rādītājiem vai izmantošanas iespējamību. Saraksts izveidots nejaušā secībā;
C34: 3. Būvmateriālu vai būvizstrādājumu patiesās cenas var mainīties atkarībā no to piegādātāja vai tirgotāja piedāvājuma izmaiņām;
C35: 3 Katalogā redzamās būvmateriālu vai būvizstrādājumu cenas ir vidējās Latvijas mazumtirzniecības cenas bez PVN (21%);

Sheet Sheet1 (hidden)

Sheet Stiegrojums
A1: Nr.p.k. | B1: Nosaukums | C1: Mērvienība | D1: 2017 | E1: Cena par mērvienību (EUR) | F1: 2018 | G1: Ievadiet daudzumu | H1: Cena par daudzumu (EUR) | I1: Piezīmes
A2: 1 | B2: 2 | C2: 3 | E2: 4 | G2: 5 | H2: 6 | I2: 7
A3: Atsevišķas stiegras | G3: Metros
A4: 1 | B4: Ø 6 mm, B500B | C4: t | D4: 346.61 | E4: 636.08 | F4: 636.08 | H4: =IF(ISNUMBER(G4),G4*0.00022*E4,"") ->  | I4: 1 metra masa 0,22 kg
A5: 2 | B5: Ø 8 mm, B500B | C5: t | D5: 346.61 | E5: 636.08 | F5: 636.08 | H5: =IF(ISNUMBER(G5),G5*0.0004*E5,"") ->  | I5: 1 metra masa 0,40 kg
A6: 3 | B6: Ø 10 mm, B500B | C6: t | D6: 346.61 | E6: 636.08 | F6: 636.08 | H6: =IF(ISNUMBER(G6),G6*0.00062*E6,"") ->  | I6: 1 metra masa 0,62 kg
A7: 4 | B7: Ø 12 mm, B500B | C7: t | D7: 346.61 | E7: 636.08 | F7: 636.08 | H7: =IF(ISNUMBER(G7),G7*0.00089*E7,"") ->  | I7: 1 metra masa 0,89 kg
A8: 5 | B8: Ø 14 mm, B500B | C8: t | D8: 346.61 | E8: 636.08 | F8: 636.08 | H8: =IF(ISNUMBER(G8),G8*0.00121*E8,"") ->  | I8: 1 metra masa 1,21 kg
A9: 6 | B9: Ø 16 mm, B500B | C9: t | D9: 346.61 | E9: 636.08 | F9: 636.08 | H9: =IF(ISNUMBER(G9),G9*0.00158*E9,"") ->  | I9: 1 metra masa 1,58 kg
A10: 7 | B10: Ø 18 mm, B500B | C10: t | D10: 346.61 | E10: 636.08 | F10: 636.08 | H10: =IF(ISNUMBER(G10),G10*0.002*E10,"") ->  | I10: 1 metra masa 2,00 kg
A11: 8 | B11: Ø 20 mm, B500B | C11: t | D11: 346.61 | E11: 636.08 | F11: 636.08 | H11: =IF(ISNUMBER(G11),G11*0.00247*E11,"") ->  | I11: 1 metra masa 2,47 kg
A12: 9 | B12: Ø 22 mm, B500B | C12: t | D12: 346.61 | E12: 636.08 | F12: 636.08 | H12: =IF(ISNUMBER(G12),G12*0.00298*E12,"") ->  | I12: 1 metra masa 2,98 kg
A13: 10 | B13: Ø 25 mm, B500B | C13: t | D13: 346.61 | E13: 636.08 | F13: 636.08 | H13: =IF(ISNUMBER(G13),G13*0.00385*E13,"") ->  | I13: 1 metra masa 3,85 kg
A14: 11 | B14: Ø 28 mm, B500B | C14: t | D14: 346.61 | E14: 636.08 | F14: 636.08 | H14: =IF(ISNUMBER(G14),G14*0.00483*E14,"") ->  | I14: 1 metra masa 4,83 kg
A15: 12 | B15: Ø 32 mm, B500B | C15: t | D15: 346.61 | E15: 636.08 | F15: 636.08 | H15: =IF(ISNUMBER(G15),G15*0.00631*E15,"") ->  | I15: 1 metra masa 6,31 kg
A16: Stiegrojuma siets | C16: =IF(ISNUMBER(G16),G16*D16,"") -> 
A17: 13 | B17: Ø 4 mm, 100x100 mm, B500B | C17: m2 | D17: 1.28 | E17: 1.391776744 | F17: =D17*1.0465116279 -> 1.339534884 | H17: =IF(ISNUMBER(G17),G17*E17,"") -> 
A18: 14 | B18: Ø 4 mm, 150x150mm, B500B | C18: m2 | D18: 0.86 | E18: 0.9351 | F18: =D18*1.0465116279 -> 0.9 | H18: =IF(ISNUMBER(G18),G18*E18,"") -> 
A19: 15 | B19: Ø 4 mm, 200x200mm, B500B | C19: m2 | D19: 0.73 | E19: 0.7937476744 | F19: 0.7639534884
A20: 16 | B20: Ø 5 mm, 100x100 mm, B500B | C20: m2 | D20: 2.06 | E20: 2.239890698 | F20: 2.155813953
A21: 17 | B21: Ø 5 mm, 150x150mm, B500B | C21: m2 | D21: 1.38 | E21: 1.500509302 | F21: 1.444186047
A22: 18 | B22: Ø 5 mm, 200x200mm, B500B | C22: m2 | D22: 1.2 | E22: 1.304790698 | F22: 1.255813953
A23: 19 | B23: Ø 6 mm, 100x100 mm, B500B | C23: m2 | D23: 3.01 | E23: 3.27285 | F23: 3.15 | H23: =IF(ISNUMBER(G23),G23*E23,"") -> 
A24: 20 | B24: Ø 6 mm, 150x150mm, B500B | C24: m2 | D24: 1.95 | E24: 2.120284884 | F24: 2.040697674 | H24: =IF(ISNUMBER(G24),G24*E24,"") -> 
A25: 21 | B25: Ø 6 mm, 200x200mm, B500B | C25: m2 | D25: 1.58 | E25: 1.717974419 | F25: 1.653488372
A26: 22 | B26: Ø 8 mm, 100x100 mm, B500B | C26: m2 | D26: 4.45 | E26: 4.838598837 | F26: 4.656976744
A27: 23 | B27: Ø 8 mm, 150x150mm, B500B | C27: m2 | D27: 2.92 | E27: 3.174990698 | F27: 3.055813953
A28: 24 | B28: Ø 8 mm, 200x200mm, B500B | C28: m2 | D28: 2.21 | E28: 2.402989535 | F28: 2.312790698
A29: 25 | B29: Ø 10 mm, 100x100 mm, B500B | C29: m2 | D29: 7.01 | E29: 7.622152326 | F29: 7.336046512
A30: 26 | B30: Ø 10 mm, 150x150mm, B500B | C30: m2 | D30: 5.25 | E30: 5.708459302 | F30: 5.494186046
A31: 27 | B31: Ø 10 mm, 200x200mm, B500B | C31: m2 | D31: 3.18 | E31: 3.457695349 | F31: 3.327906977
A32: 28 | B32: Ø 12 mm, 150x150mm, B500B | C32: m2 | D32: 7.89 | E32: 8.578998837 | F32: 8.256976744
A33: 29 | B33: Ø 12 mm, 200x200mm, B500B | C33: m2 | D33: 5.53 | E33: 6.012910465 | F33: 5.787209302
B35: Piezīmes: | C35: 1. Saraksta secībai nav nekāda sakara ar būvmateriālu vai būvizstrādājumu kvalitātes rādītājiem vai izmantošanas iespējamību. Saraksts izveidots nejaušā secībā;
C36: 3. Būvmateriālu vai būvizstrādājumu patiesās cenas var mainīties atkarībā no to piegādātāja vai tirgotāja piedāvājuma izmaiņām;
C37: 3 Katalogā redzamās būvmateriālu vai būvizstrādājumu cenas ir vidējās Latvijas mazumtirzniecības cenas bez PVN (21%);

Sheet Ķieģeļi
A1: Nr.p.k. | B1: Nosaukums | C1: Mērvienība | D1: 2017 | E1: Cena par mērvienību (EUR) | F1: 2018 | G1: Ievadiet daudzumu | H1: Cena par daudzumu (EUR) | I1: Piezīmes
A2: 1 | B2: 2 | C2: 3 | E2: 4 | G2: 5 | H2: 6 | I2: 7
A3: Celtniecības ķieģeļi
A4: 1 | B4: Lode, caurumotais, 250x120x88 mm | C4: gab. | D4: 0.24 | E4: 0.3047733333 | F4: =D4*1.22222222222222 -> 0.2933333333 | H4: =IF(ISNUMBER(G4),G4*E4,"") -> 
A5: 2 | B5: Lode, caurumotais, 250x120x65 mm | C5: gab. | D5: 0.26 | E5: 0.3301711111 | F5: =D5*1.22222222222222 -> 0.3177777778 | H5: =IF(ISNUMBER(G5),G5*E5,"") -> 
A6: 3 | B6: Lode, pilnais, 250x120x65 mm | C6: gab. | D6: 0.36 | E6: 0.45716 | F6: 0.44
A7: 4 | B7: Silikāta ķieģeļi M200 balts, 250x120x88 mm | C7: gab. | D7: 0.23 | E7: 0.2920744444 | F7: 0.2811111111
A8: Krāsns- dūmvadu ķieģeļi
A9: 5 | B9: Lode, dūmvadu ķieģelis, 250x85x65 mm | C9: gab. | D9: 0.44 | E9: 0.5587511111 | F9: =D9*1.222222222222 -> 0.5377777778
A10: 6 | B10: Lode, dūmvadu ķieģelis, 250x120x65 mm | C10: gab. | D10: 0.57 | E10: 0.7238366667 | F10: =D10*1.222222222222 -> 0.6966666667
A11: 7 | B11: Lode, krāsns ķieģelis, 250x120x65 mm | C11: gab. | D11: 0.47 | E11: 0.5968477778 | F11: 0.5744444444
A12: 8 | B12: Šamota, Ša-5 ugunsdrošie, 230x114x65 mm | C12: gab. | D12: 0.77 | E12: 0.9778144444 | F12: 0.9411111111
A13: 9 | B13: Šamota, Ša-8 ugunsdrošie, 250x124x65 mm | C13: gab. | D13: 0.92 | E13: 1.168297778 | F13: 1.124444444
A14: Apdares ķieģeļi
A15: 10 | B15: Lode, Asais Brunis, 250x120x65 mm | C15: gab. | D15: 0.47 | E15: 0.5968477778 | F15: =D15*1.22222222222 -> 0.5744444444
A16: 11 | B16: Lode, Asais Janka, 250x120x65 mm | C16: gab. | D16: 0.3 | E16: 0.3809666667 | F16: =D16*1.22222222222 -> 0.3666666667
A17: 12 | B17: Lode, Brunis, 250x120x65 mm | C17: gab. | D17: 0.41 | E17: 0.5206544444 | F17: 0.5011111111
A18: 13 | B18: Lode, Janka, 250x120x65 mm | C18: gab. | D18: 0.35 | E18: 0.4444611111 | F18: 0.4277777778
A19: 14 | B19: Lode, Mārtiņš, 250x120x65 mm | C19: gab. | D19: 0.55 | E19: 0.6984388889 | F19: 0.6722222222
A20: 15 | B20: Lode, Rudīte, 250x120x65 mm | C20: gab. | D20: 0.55 | E20: 0.6984388889 | F20: 0.6722222222
A21: 16 | B21: Lode, Rūdis, 250x120x65 mm | C21: gab. | D21: 0.47 | E21: 0.5968477778 | F21: 0.5744444444
A22: 17 | B22: Lode, Sarmīte, 250x120x65 mm | C22: gab. | D22: 0.48 | E22: 0.6095466667 | F22: 0.5866666667
A23: 18 | B23: Lode, Vecā Sarmīte, 250x120x65 mm | C23: gab. | D23: 0.48 | E23: 0.6095466667 | F23: 0.5866666667
A24: 19 | B24: Lode, Asā Sarmīte, 250x120x65 mm | C24: gab. | D24: 0.48 | E24: 0.6095466667 | F24: 0.5866666667
A25: 20 | B25: Lode, Sencis, 250x120x65 mm | C25: gab. | D25: 1.57 | E25: 1.993725556 | F25: 1.918888889
A26: 21 | B26: Lode, Skarbais Janka, 250x120x65 mm | C26: gab. | D26: 0.35 | E26: 0.4444611111 | F26: 0.4277777778
A27: 22 | B27: Lode, Vecais Brunis, 250x120x65 mm | C27: gab. | D27: 0.47 | E27: 0.5968477778 | F27: 0.5744444444
A28: 23 | B28: Lode Vecais Janka, 250x120x65 mm | C28: gab. | D28: 0.35 | E28: 0.4444611111 | F28: 0.4277777778
A29: 24 | B29: Lode Vecais Rūdis, 250x120x65 mm | C29: gab. | D29: 0.47 | E29: 0.5968477778 | F29: 0.5744444444
B31: Piezīmes: | C31: 1. Saraksta secībai nav nekāda sakara ar būvmateriālu vai būvizstrādājumu kvalitātes rādītājiem vai izmantošanas iespējamību. Saraksts izveidots nejaušā secībā;
C32: 3. Būvmateriālu vai būvizstrādājumu patiesās cenas var mainīties atkarībā no to piegādātāja vai tirgotāja piedāvājuma izmaiņām;
C33: 3 Katalogā redzamās būvmateriālu vai būvizstrādājumu cenas ir vidējās Latvijas mazumtirzniecības cenas bez PVN (21%);

Sheet Ruļmateriāli
A1: Nr.p.k. | B1: Nosaukums | C1: Mērvienība | D1: 2017 | E1: Cena par mērvienību (EUR) | F1: 2018 | G1: Ievadiet daudzumu | H1: Cena par daudzumu (EUR) | I1: Piezīmes
A2: 1 | B2: 2 | C2: 3 | E2: 4 | G2: 5 | H2: 6 | I2: 7
A3: Polietilēna plēves
A4: 1 | B4: Polietilēna plēve, caurspīdīga, 0,1 mm | C4: m² | D4: 0.19 | E4: 0.206806716 | F4: =D4*1.0476 -> 0.199044 | H4: =IF(ISNUMBER(G4),G4*E4,"") -> 
A5: 2 | B5: Polietilēna plēve, caurspīdīga, 0,12 mm | C5: m² | D5: 0.21 | E5: 0.228575844 | F5: =D5*1.0476 -> 0.219996 | H5: =IF(ISNUMBER(G5),G5*E5,"") -> 
A6: 3 | B6: Polietilēna plēve, caurspīdīga, 0,15 mm | C6: m² | D6: 0.24 | E6: 0.261229536 | F6: 0.251424
A7: 4 | B7: Polietilēna plēve, caurspīdīga, 0,2 mm | C7: m² | D7: 0.37 | E7: 0.402728868 | F7: 0.387612
A8: 5 | B8: Polietilēna plēve, melna, 0,1 mm | C8: m² | D8: 0.12 | E8: 0.130614768 | F8: 0.125712
A9: 6 | B9: Polietilēna plēve, melna, 0,12 mm | C9: m² | D9: 0.16 | E9: 0.174153024 | F9: 0.167616
A10: 7 | B10: Polietilēna plēve, melna, 0,15 mm | C10: m² | D10: 0.17 | E10: 0.185037588 | F10: 0.178092
A11: 8 | B11: Polietilēna plēve, melna, 0,2 mm | C11: m² | D11: 0.21 | E11: 0.228575844 | F11: 0.219996
A12: 9 | B12: Polietilēna plēve, dzeltena, 0,15 mm | C12: m² | D12: 0.16 | E12: 0.174153024 | F12: 0.167616
A13: 10 | B13: Polietilēna plēve, dzeltena, 0,2 mm | C13: m² | D13: 0.23 | E13: 0.250344972 | F13: 0.240948
A14: 11 | B14: Baseina plēve, 0,3 mm | C14: m² | D14: 1.22 | E14: 1.327916808 | F14: 1.278072
A15: Pretvēja plēves
A16: 12 | B16: JUTADACH 85 | C16: m² | D16: 0.57 | E16: 0.620420148 | F16: =D16*1.0476 -> 0.597132
A17: 13 | B17: BITUPAP 125 Bitumena papīrs | C17: m² | D17: 0.28 | E17: 0.304767792 | F17: =D17*1.0476 -> 0.293328
A18: 14 | B18: DALTEX Frameshield 100 Pluss | C18: m² | D18: 0.38 | E18: 0.413613432 | F18: 0.398088
A19: 15 | B19: TYVEK UV Facade | C19: m² | D19: 2.87 | E19: 3.123869868 | F19: 3.006612
A20: 16 | B20: TYVEK HouseWrap | C20: m² | D20: 0.91 | E20: 0.990495324 | F20: 0.953316
A21: 17 | B21: TYVEK Enerco Wall | C21: m² | D21: 2.72 | E21: 2.960601408 | F21: 2.849472
A22: Antikondensāta jumtu plēves
A23: 18 | B23: ELKATEK SILVER ANTICON | C23: m² | D23: 0.35 | E23: 0.38074155 | F23: =D23*1.047 -> 0.36645
A24: 19 | B24: JUTA-FOIL D110 | C24: m² | D24: 0.29 | E24: 0.31547157 | F24: =D24*1.047 -> 0.30363
A25: 20 | B25: ELKATEK SILVER | C25: m² | D25: 0.27 | E25: 0.29371491 | F25: 0.28269
A26: 21 | B26: ELKATEK EXTRA L | C26: m² | D26: 0.44 | E26: 0.47864652 | F26: 0.46068
A27: 22 | B27: JUTACON 130 | C27: m² | D27: 0.57 | E27: 0.62006481 | F27: 0.59679
A28: 23 | B28: JUTACON 150 | C28: m² | D28: 0.55 | E28: 0.59830815 | F28: 0.57585
A29: 24 | B29: ELKATEK white anticon | C29: m² | D29: 0.29 | E29: 0.31547157 | F29: 0.30363
A30: Tvaika izolācijas plēves
B31: ELT-PEFOIL 200 | C31: m² | D31: 0.4 | E31: 0.43538256 | F31: =D31*1.0476 -> 0.41904
A32: 25 | B32: ALUPAP 125 | C32: m² | D32: 0.37 | E32: 0.402728868 | F32: =D32*1.0476 -> 0.387612
A33: 26 | B33: ELT-KRAFT VCL | C33: m² | D33: 0.52 | E33: 0.565997328 | F33: 0.544752
A34: 27 | B34: ELTBAR Alu | C34: m² | D34: 0.43 | E34: 0.468036252 | F34: 0.450468
A35: 28 | B35: JUTADACH VB 120 | C35: m² | D35: 0.73 | E35: 0.794573172 | F35: 0.764748
A36: 29 | B36: TYVEK Airguard Sd5 | C36: m² | D36: 1.35 | E36: 1.46941614 | F36: 1.41426
A37: 30 | B37: TYVEK DUPONT AirGuard Reflective | C37: m² | D37: 1.99 | E37: 2.166028236 | F37: 2.084724
A38: 31 | B38: TYVEK AIRGUARD Smart | C38: m² | D38: 2.17 | E38: 2.361950388 | F38: 2.273292
A39: 32 | B39: Isover Tvaika barjera VARIO KM DUPLEX | C39: m² | D39: 2.19 | E39: 2.383719516 | F39: 2.294244
A40: Siltumnīcas plēves
A41: 33 | B41: UV siltumnīcas plēve, 0,12 mm | C41: m² | D41: 0.22 | E41: 0.239460408 | F41: =D41*1.0476 -> 0.230472
A42: 34 | B42: UV siltumnīcas plēve, 0,15 mm | C42: m² | D42: 0.27 | E42: 0.293883228 | F42: =D42*1.0476 -> 0.282852
A43: 35 | B43: UV siltumnīcas plēve, 0,2 mm | C43: m² | D43: 0.36 | E43: 0.391844304 | F43: 0.377136
A44: 36 | B44: Jutafol Agro 118 armētā plēve, 0,12 mm | C44: m² | D44: 0.57 | E44: 0.620420148 | F44: 0.597132
A45: 37 | B45: Agrolux daudzgadīgā plēve, 0,15 mm | C45: m² | D45: 0.51 | E45: 0.555112764 | F45: 0.534276
A46: Ģeotekstils
A47: 38 | B47: GeoNetex A PP TT UVLS | C47: m² | D47: 0.61 | E47: 0.663958404 | F47: =D47*1.0476 -> 0.639036
A48: 39 | B48: Agroplēve PP Ground Cover | C48: m² | D48: 0.38 | E48: 0.413613432 | F48: =D48*1.0476 -> 0.398088
A49: 40 | B49: DuPont PLANTEX | C49: m² | D49: 0.32 | E49: 0.348306048 | F49: 0.335232
A50: 41 | B50: TYPAR SF20 | C50: m² | D50: 0.56 | E50: 0.609535584 | F50: 0.586656
A51: 42 | B51: NETEX HOME 100 | C51: m² | D51: 0.34 | E51: 0.370075176 | F51: 0.356184
A52: 43 | B52: GEOPROMA DuPont | C52: m² | D52: 0.57 | E52: 0.620420148 | F52: 0.597132
A53: 44 | B53: PROTYPAR PRO | C53: m² | D53: 0.7 | E53: 0.76191948 | F53: 0.73332
B55: Piezīmes: | C55: 1. Saraksta secībai nav nekāda sakara ar būvmateriālu vai būvizstrādājumu kvalitātes rādītājiem vai izmantošanas iespējamību. Saraksts izveidots nejaušā secībā;
C56: 3. Būvmateriālu vai būvizstrādājumu patiesās cenas var mainīties atkarībā no to piegādātāja vai tirgotāja piedāvājuma izmaiņām;
C57: 3 Katalogā redzamās būvmateriālu vai būvizstrādājumu cenas ir vidējās Latvijas mazumtirzniecības cenas bez PVN (21%);
C58: 4 Būvmateriālu vai būvizstrādājumu cenas ir norādītas bez PVN (21%), kā arī mazumtirzniecībā;

Sheet Hidroizolācijas mat.
A1: Nr.p.k. | B1: Nosaukums | C1: Mērvienība | D1: 2017 | E1: Cena par mērvienību (EUR) | F1: 2018 | G1: Ievadiet daudzumu | H1: Cena par daudzumu (EUR) | I1: Piezīmes
A2: 1 | B2: 2 | C2: 3 | E2: 4 | G2: 5 | H2: 6 | I2: 7
A3: Hidroizolācija
A4: 1 | B4: Knauf Kaučuka hidroziolācija Flaechendicht F | C4: kg | D4: 2.3 | E4: 4.155998961 | F4: =D4*1.73913 -> 3.999999 | H4: =IF(ISNUMBER(G4),G4*E4,"") ->  | I4: Patēriņš 2,00 kg/m²
A5: 2 | B5: Sakret Virsmas hidroizolācija OAD | C5: kg | D5: 2.08 | E5: 3.758468626 | F5: =D5*1.73913 -> 3.6173904 | H5: =IF(ISNUMBER(G5),G5*E5,"") ->  | I5: Patēriņš 1,00 kg/m²
A6: 3 | B6: Weber Hidroizolācija Weber.tec 822 | C6: kg | D6: 2.53 | E6: 4.571598857 | F6: 4.3999989 | I6: Patēriņš 1,00 kg/m²
A7: 4 | B7: Casco Hydrostop | C7: kg | D7: 3.56 | E7: 6.432763609 | F7: 6.1913028 | I7: Patēriņš 1,33 kg/m²
A8: 5 | B8: Mapei Mapegum WPS | C8: kg | D8: 3.88 | E8: 7.010989552 | F8: 6.7478244 | I8: Patēriņš 1,50 kg/m²
A9: 6 | B9: Kiilto Hidroizolācija Fibergum | C9: kg | D9: 2.72 | E9: 4.91492051 | F9: 4.7304336 | I9: Patēriņš 1,20 kg/m²
A10: 7 | B10: Mapei Mapegum PU | C10: kg | D10: 5.15 | E10: 9.305823761 | F10: 8.9565195 | I10: Patēriņš 1,40 kg/m²
A11: 8 | B11: Mapei Mapelastic Foundation | C11: kg | D11: 2.68 | E11: 4.842642268 | F11: 4.6608684 | I11: Patēriņš 1,40 kg/m²
A12: Bituma mastika
A13: 9 | B13: Bitumena špakteļmasa DEN BIT-U | C13: kg | D13: 2.02 | E13: 3.650051261 | F13: =D13*1.73913 -> 3.5130426
A14: 10 | B14: Bitumena hidroizolācijas masa DEN BIT-M | C14: kg | D14: 1.01 | E14: 1.825025631 | F14: =D14*1.73913 -> 1.7565213
A15: 11 | B15: Divkomponentu hidroizolācija DEN BIT-F | C15: kg | D15: 2.1 | E15: 3.794607747 | F15: 3.652173
A16: 12 | B16: Bitumena hidroizolācijas masa DEN BIT-D | C16: kg | D16: 1.6 | E16: 2.891129712 | F16: 2.782608
A17: 13 | B17: Bitumena līme ruberoīdam DEN BIT-P | C17: kg | D17: 1.43 | E17: 2.58394718 | F17: 2.4869559
A18: 14 | B18: Bitumena grunts DEN BIT-R | C18: kg | D18: 1.53 | E18: 2.764642787 | F18: =D18*1.73913 -> 2.6608689
A19: 15 | B19: Techno Nicol Mastika EVRIKA Nr.41 | C19: kg | D19: 2.17 | E19: 3.921094672 | F19: 3.7739121
A20: 16 | B20: Techno Nicol Mastika VIŠERA Nr. 22 | C20: kg | D20: 1.38 | E20: 2.493599377 | F20: 2.3999994
A21: 17 | B21: Techno Nicol Mastika TECHOMAST Nr.21 | C21: kg | D21: 1.77 | E21: 3.198312244 | F21: 3.0782601
A22: 18 | B22: Techno Nicol Bitumena mastika MGTN Nr.24 | C22: kg | D22: 1.09 | E22: 1.969582116 | F22: 1.8956517
A23: 19 | B23: Techno Nicol Mastika FIKSER Nr. 23 | C23: kg | D23: 0.54 | E23: 0.9757562778 | F23: 0.9391302
B25: Piezīmes: | C25: 1. Saraksta secībai nav nekāda sakara ar būvmateriālu vai būvizstrādājumu kvalitātes rādītājiem vai izmantošanas iespējamību. Saraksts izveidots nejaušā secībā;
C26: 3. Būvmateriālu vai būvizstrādājumu patiesās cenas var mainīties atkarībā no to piegādātāja vai tirgotāja piedāvājuma izmaiņām;
C27: 3 Katalogā redzamās būvmateriālu vai būvizstrādājumu cenas ir vidējās Latvijas mazumtirzniecības cenas bez PVN (21%);
C28: 4 Būvmateriālu vai būvizstrādājumu cenas ir norādītas bez PVN (21%), kā arī mazumtirzniecībā;

Sheet Sausie m.
A1: Nr.p.k. | B1: Nosaukums | C1: Mērvienība | D1: Cena par mērvienību (EUR) | E1: 2018 | F1: Ievadiet daudzumu | G1: Cena par daudzumu (EUR) | H1: Piezīmes
A2: 1 | B2: 2 | C2: 3 | D2: 4 | F2: 5 | G2: 6 | H2: 7
A3: Cements/betons
A4: 1 | B4: CEMEX CEM 42,5N Cements, 40kg | C4: iep. | D4: 3.55338 | E4: 3.42 | G4: =IF(ISNUMBER(F4),F4*D4,"") -> 
A5: 2 | B5: SAKRET BE betons-klons, 40 kg | C5: iep. | D5: 2.50399 | E5: 2.41 | G5: =IF(ISNUMBER(F5),F5*D5,"") -> 
A6: 3 | B6: Weber (Vetonit) floor base 10, 25 kg | C6: iep. | D6: 2.03644 | E6: 1.96
A7: 4 | B7: SAKRET BF Betons-klons, 25 kg | C7: iep. | D7: 2.30658 | E7: 2.22
A8: 5 | B8: SAKRET BH Betons klons, 40kg | C8: iep. | D8: 3.66767 | E8: 3.53
A9: 6 | B9: Weber (vetonit) S-30 rupjais, 25kg | C9: iep. | D9: 3.65728 | E9: 3.52
A10: 7 | B10: SAKRET Aalborg CEM I 52,5 R, 25kg | C10: iep. | D10: 5.83918 | E10: 5.62
A11: 8 | B11: WEBER (Vetonit) S06, 25kg | C11: iep. | D11: 4.14561 | E11: 3.99
A12: Flīžu līme
A13: 8 | B13: Knauf K6, 25kg | C13: iep. | D13: 10.62897 | E13: 10.23
A14: 9 | B14: Knauf K5, 25kg | C14: iep. | D14: 8.49902 | E14: 8.18
A15: 10 | B15: Knauf K4, 25kg | C15: iep. | D15: 6.68077 | E15: 6.43
A16: 11 | B16: Knauf K3, 25kg | C16: iep. | D16: 10.10947 | E16: 9.73
A17: 12 | B17: Knauf K2, 25kg | C17: iep. | D17: 4.86252 | E17: 4.68
A18: 13 | B18: Knauf K1, 25kg | C18: iep. | D18: 3.95859 | E18: 3.81
A19: 14 | B19: Sakret FK, 25kg | C19: iep. | D19: 4.62355 | E19: 4.45
A20: 15 | B20: Sakret Fke, 25kg | C20: iep. | D20: 6.3379 | E20: 6.1
A21: 16 | B21: Sakret FKW, 25kg | C21: iep. | D21: 11.19003 | E21: 10.77
A22: 17 | B22: Sakret FFK, 25kg | C22: iep. | D22: 8.76916 | E22: 8.44
A23: 18 | B23: Sakret FFKS, 25kg | C23: iep. | D23: 11.70953 | E23: 11.27
A24: 19 | B24: Weber HANDY FIX, 25kg | C24: iep. | D24: 7.30417 | E24: 7.03
A25: Špakteles
A26: 20 | B26: Knauf Uniflott, 25kg | C26: iep. | D26: 20.25011 | E26: 19.49
A27: 21 | B27: Weber (Vetonit) LR+, 25kg | C27: iep. | D27: 9.26788 | E27: 8.92
A28: 22 | B28: KILTO Kestonit LH, 25kg | C28: iep. | D28: 5.87035 | E28: 5.65
A29: 23 | B29: Knauf Fugenfuller Ieicht, 25kg | C29: iep. | D29: 13.13296 | E29: 12.64
A30: 24 | B30: KILTO Kestonit SH, 20kg | C30: iep. | D30: 6.0262 | E30: 5.8
A31: 25 | B31: KILTO Kestonit WSH, 20kg | C31: iep. | D31: 8.81072 | E31: 8.48
A32: 26 | B32: Knauf Q-Filler, 25kg | C32: iep. | D32: 12.63424 | E32: 12.16
A33: 27 | B33: Weber (Vetonit) VR, 20kg | C33: iep. | D33: 6.32751 | E33: 6.09
A34: 28 | B34: Weber (Vetonit) VH, 25kg | C34: iep. | D34: 11.17964 | E34: 10.76
A35: 29 | B35: Knauf Baugips, Būvniecības ģipsis, 25kg | C35: iep. | D35: 3.02349 | E35: 2.91
A36: 30 | B36: Knauf Fireboard, 20kg | C36: iep. | D36: 16.59283 | E36: 15.97
A37: Apmetumi
A38: 31 | B38: Knauf MP 75, 30kg | C38: iep. | D38: 3.90664 | E38: 3.76
A39: 32 | B39: Kanuf MP 75 L, 30kg | C39: iep. | D39: 4.22873 | E39: 4.07
A40: 33 | B40: Knauf Rotband, 30kg | C40: iep. | D40: 6.56648 | E40: 6.32
A41: 34 | B41: Kanuf Perlfix, 30kg | C41: iep. | D41: 5.78723 | E41: 5.57
A42: 35 | B42: Sakret PM Super M5, 40kg | C42: iep. | D42: 3.58455 | E42: 3.45
A43: 36 | B43: Sakret CLP+CSII, 40kg | C43: iep. | D43: 5.22617 | E43: 5.03
A44: 37 | B44: Knauf Goldband, 30kg | C44: iep. | D44: 7.07559 | E44: 6.81
A45: 38 | B45: Knauf KZ Universalputz, 30kg | C45: iep. | D45: 3.36636 | E45: 3.24
A46: Līmēšanas/armēšanas javas
A47: 39 | B47: Sakret BK, 25kg | C47: iep. | D47: 3.6365 | E47: 3.5
A48: 40 | B48: Sakret BAK, 25kg | C48: iep. | D48: 4.16639 | E48: 4.01
A49: 41 | B49: Knauf PM Kleber, 25kg | C49: iep. | D49: 4.44692 | E49: 4.28
A50: 42 | B50: Knauf Klebespachtel P, 25kg | C50: iep. | D50: 4.72745 | E50: 4.55
A51: 43 | B51: Knauf Klebespachtel M, 25kg | C51: iep. | D51: 5.57943 | E51: 5.37
A52: 44 | B52: Sakret BAK-F, 25kg | C52: iep. | D52: 5.64177 | E52: 5.43
A53: 45 | B53: Sakret KAM, 25kg | C53: iep. | D53: 7.53275 | E53: 7.25
A54: 46 | B54: CAPAROL CT 185 Klebemasse, 25kg | C54: iep. | D54: 5.96386 | E54: 5.74
A55: 47 | B55: CAPAROL CT 186 M Klebe und Spachtelmasse, 25kg | C55: iep. | D55: 5.67294 | E55: 5.46
A56: Dekoratīvie apmetumi
A57: 48 | B57: Sakret SBP (biezpiens), 25kg | C57: iep. | D57: 6.25478 | E57: 6.02
A58: 49 | B58: Sakret MRP-E (lietutuņš), 25kg | C58: iep. | D58: 6.25478 | E58: 6.02
A59: 50 | B59: Knauf Dekorputz (lietutuņš), 25kg | C59: iep. | D59: 6.94052 | E59: 6.68
A60: 51 | B60: Knauf Strukturputz (biezpiens), 25kg | C60: iep. | D60: 7.33534 | E60: 7.06
A61: 52 | B61: CAPAROL Capatec Mineral-Leichtputz CT 139, 25kg | C61: iep. | D61: 6.06776 | E61: 5.84
B63: Piezīmes: | C63: 1. Saraksta secībai nav nekāda sakara ar būvmateriālu vai būvizstrādājumu kvalitātes rādītājiem vai izmantošanas iespējamību. Saraksts izveidots nejaušā secībā;
C64: 3. Būvmateriālu vai būvizstrādājumu patiesās cenas var mainīties atkarībā no to piegādātāja vai tirgotāja piedāvājuma izmaiņām;
C65: 3 Katalogā redzamās būvmateriālu vai būvizstrādājumu cenas ir vidējās Latvijas mazumtirzniecības cenas bez PVN (21%);
C66: 4 Būvmateriālu vai būvizstrādājumu cenas ir norādītas bez PVN (21%), kā arī mazumtirzniecībā;

Sheet Būvkalumi
A1: Nr.p.k. | B1: Nosaukums | C1: Mērvienība | D1: 2017 | E1: Cena par mērvienību (EUR) | F1: 2018 | G1: Ievadiet daudzumu | H1: Cena par daudzumu (EUR) | I1: Piezīmes
A2: 1 | B2: 2 | C2: 3 | E2: 4 | G2: 5 | H2: 6 | I2: 7
A3: Leņķi
A4: 1 | B4: Leņķis 40x40x40x2 | C4: gab. | D4: 0.22 | E4: 0.1823775818 | F4: =D4*0.797872 -> 0.17553184 | H4: =IF(ISNUMBER(G4),G4*E4,"") -> 
A5: 2 | B5: Leņķis 40x40x60x2 | C5: gab. | D5: 0.27 | E5: 0.2238270322 | F5: =D5*0.797872 -> 0.21542544 | H5: =IF(ISNUMBER(G5),G5*E5,"") -> 
A6: 3 | B6: Leņķis 50x50x40x2 | C6: gab. | D6: 0.24 | E6: 0.1989573619 | F6: 0.19148928
A7: 4 | B7: Leņķis 60x60x40x2 | C7: gab. | D7: 0.27 | E7: 0.2238270322 | F7: 0.21542544
A8: 5 | B8: Leņķis 60x60x50x2 | C8: gab. | D8: 0.33 | E8: 0.2735663726 | F8: 0.26329776
A9: 6 | B9: Leņķis 60x60x60x2 | C9: gab. | D9: 0.35 | E9: 0.2901461528 | F9: 0.2792552
A10: 7 | B10: Leņķis 60x60x80x2 | C10: gab. | D10: 0.5 | E10: 0.414494504 | F10: 0.398936
A11: 8 | B11: Leņķis 70x70x55x2 | C11: gab. | D11: 0.34 | E11: 0.2818562627 | F11: 0.27127648
A12: 9 | B12: Leņķis 80x80x60x2 | C12: gab. | D12: 0.54 | E12: 0.4476540643 | F12: 0.43085088
A13: 10 | B13: Leņķis 80x80x80x2 | C13: gab. | D13: 0.59 | E13: 0.4891035147 | F13: 0.47074448
A14: 11 | B14: Leņķis 80x80x100x2 | C14: gab. | D14: 0.75 | E14: 0.621741756 | F14: 0.598404
A15: 12 | B15: Leņķis 90x90x40x2 | C15: gab. | D15: 0.4 | E15: 0.3315956032 | F15: 0.3191488
A16: 13 | B16: Leņķis 90x90x65x2 | C16: gab. | D16: 0.49 | E16: 0.4062046139 | F16: 0.39095728
A17: 14 | B17: Leņķis 100x100x40x2 | C17: gab. | D17: 0.49 | E17: 0.4062046139 | F17: 0.39095728
A18: 15 | B18: Leņķis 100x100x60x2 | C18: gab. | D18: 0.64 | E18: 0.5305529651 | F18: 0.51063808
A19: 16 | B19: Leņķis 100x100x80x2 | C19: gab. | D19: 0.75 | E19: 0.621741756 | F19: 0.598404
A20: 17 | B20: Leņķis 100x100x100x2 | C20: gab. | D20: 0.82 | E20: 0.6797709866 | F20: 0.65425504
A21: 18 | B21: Leņķis 106x106x90x2 | C21: gab. | D21: 0.81 | E21: 0.6714810965 | F21: 0.64627632
A22: 19 | B22: Leņķis 120x40x40x2 | C22: gab. | D22: 0.59 | E22: 0.4891035147 | F22: 0.47074448
A23: 20 | B23: Leņķis 120x80x40x2 | C23: gab. | D23: 0.62 | E23: 0.513973185 | F23: 0.49468064
A24: Stūra leņķi
A25: 21 | B25: Leņķis 70x70x55x2 | C25: gab. | D25: 0.34 | E25: 0.2818562627 | F25: 0.27127648
A26: 22 | B26: Leņķis 70x70x55x2.5 | C26: gab. | D26: 0.4 | E26: 0.3315956032 | F26: 0.3191488
A27: 23 | B27: Leņķis 90x90x65x2 | C27: gab. | D27: 0.49 | E27: 0.4062046139 | F27: 0.39095728
A28: 24 | B28: Leņķis 90x90x65x2.5 | C28: gab. | D28: 0.57 | E28: 0.4725237346 | F28: 0.45478704
A29: 25 | B29: Leņķis 106x106x90x2 | C29: gab. | D29: 0.81 | E29: 0.6714810965 | F29: 0.64627632
A30: 26 | B30: Leņķis 106x106x90x2.5 | C30: gab. | D30: 0.94 | E30: 0.7792496675 | F30: 0.74999968
A31: Pastiprināti stūra leņķi ar ribu
A32: 27 | B32: Leņķis ar ribu 70x70x55x2.5 | C32: gab. | D32: 0.4 | E32: 0.3315956032 | F32: 0.3191488
A33: 28 | B33: Leņķis ar ribu 90x90x65x2.5 | C33: gab. | D33: 0.57 | E33: 0.4725237346 | F33: 0.45478704
A34: 29 | B34: Leņķis ar ribu 106x106x90x2.5 | C34: gab. | D34: 0.94 | E34: 0.7792496675 | F34: 0.74999968
A35: Brusu kurpes
A36: 30 | B36: Brusu kurpe 105x79x51x2 | C36: gab. | D36: 0.92 | E36: 0.7626698874 | F36: 0.73404224
A37: 31 | B37: Brusu kurpe 100x79x60x2 | C37: gab. | D37: 0.92 | E37: 0.7626698874 | F37: 0.73404224
A38: 32 | B38: Brusu kurpe 122x79x76x2 | C38: gab. | D38: 1.06 | E38: 0.8787283485 | F38: 0.84574432
A39: 33 | B39: Brusu kurpe 120x79x80x2 | C39: gab. | D39: 1.06 | E39: 0.8787283485 | F39: 0.84574432
A40: 34 | B40: Brusu kurpe 140x76x100x2 | C40: gab. | D40: 1.21 | E40: 1.0030767 | F40: 0.96542512
A41: 35 | B41: Brusu kurpe 160x76x120x2 | C41: gab. | D41: 1.47 | E41: 1.218613842 | F41: 1.17287184
A42: 36 | B42: Brusu kurpe 180x76x140x2 | C42: gab. | D42: 1.66 | E42: 1.376121753 | F42: 1.32446752
A43: Spāru leņķi
A44: 37 | B44: Spāru leņķis 32x100x170x2 - Labais | C44: gab. | D44: 0.31 | E44: 0.2569865925 | F44: 0.24734032
A45: 38 | B45: Spāru leņķis 32x100x170x2 - Kreisais | C45: gab. | D45: 0.31 | E45: 0.2569865925 | F45: 0.24734032
A46: 39 | B46: Spāru leņķis 34x140x210x2 - Labais | C46: gab. | D46: 0.36 | E46: 0.2984360429 | F46: 0.28723392
A47: 40 | B47: Spāru leņķis 34x140x210x2 - Kreisais | C47: gab. | D47: 0.36 | E47: 0.2984360429 | F47: 0.28723392
A48: 41 | B48: Spāru leņķis 34x180x250x2 - Labais | C48: gab. | D48: 0.48 | E48: 0.3979147238 | F48: 0.38297856
A49: 42 | B49: Spāru leņķis 34x180x250x2 - Kreisais | C49: gab. | D49: 0.48 | E49: 0.3979147238 | F49: 0.38297856
A50: 43 | B50: Spāru leņķis 34x220x290x2 - Labais | C50: gab. | D50: 0.62 | E50: 0.513973185 | F50: 0.49468064
A51: 44 | B51: Spāru leņķis 34x220x290x2 - Kreisais | C51: gab. | D51: 0.62 | E51: 0.513973185 | F51: 0.49468064
A52: Savienojuma plates
A53: 45 | B53: Savienojuma plate 40x120x2 | C53: gab. | D53: 0.27 | E53: 0.2238270322 | F53: 0.21542544
A54: 46 | B54: Savienojuma plate 40x140x2 | C54: gab. | D54: 0.32 | E54: 0.2652764826 | F54: 0.25531904
A55: 47 | B55: Savienojuma plate 40x160x2 | C55: gab. | D55: 0.41 | E55: 0.3398854933 | F55: 0.32712752
A56: 48 | B56: Savienojuma plate 50x160x2 | C56: gab. | D56: 0.48 | E56: 0.3979147238 | F56: 0.38297856
A57: 49 | B57: Savienojuma plate 50x200x2 | C57: gab. | D57: 0.54 | E57: 0.4476540643 | F57: 0.43085088
A58: 50 | B58: Savienojuma plate 50x240x2 | C58: gab. | D58: 0.6 | E58: 0.4973934048 | F58: 0.4787232
A59: 51 | B59: Savienojuma plate 60x120x2 | C59: gab. | D59: 0.45 | E59: 0.3730450536 | F59: 0.3590424
A60: 52 | B60: Savienojuma plate 60x140x2 | C60: gab. | D60: 0.5 | E60: 0.414494504 | F60: 0.398936
A61: 53 | B61: Savienojuma plate 60x160x2 | C61: gab. | D61: 0.52 | E61: 0.4310742842 | F61: 0.41489344
A62: 54 | B62: Savienojuma plate 60x200x2 | C62: gab. | D62: 0.67 | E62: 0.5554226354 | F62: 0.53457424
A63: 55 | B63: Savienojuma plate 60x240x2 | C63: gab. | D63: 0.77 | E63: 0.6383215362 | F63: 0.61436144
A64: 56 | B64: Savienojuma plate 60x300x2 | C64: gab. | D64: 0.81 | E64: 0.6714810965 | F64: 0.64627632
A65: 57 | B65: Savienojuma plate 80x200x2 | C65: gab. | D65: 0.76 | E65: 0.6300316461 | F65: 0.60638272
A66: 58 | B66: Savienojuma plate 80x240x2 | C66: gab. | D66: 0.85 | E66: 0.7046406568 | F66: 0.6781912
A67: 59 | B67: Savienojuma plate 80x300x2 | C67: gab. | D67: 0.95 | E67: 0.7875395576 | F67: 0.7579784
A68: 60 | B68: Savienojuma plate 100x140x2 | C68: gab. | D68: 0.67 | E68: 0.5554226354 | F68: 0.53457424
A69: 61 | B69: Savienojuma plate 100x160x2 | C69: gab. | D69: 0.77 | E69: 0.6383215362 | F69: =D69*0.797872 -> 0.61436144 | H69: =IF(ISNUMBER(G69),G69*E69,"") -> 
A70: 62 | B70: Savienojuma plate 100x200x2 | C70: gab. | D70: 0.87 | E70: 0.721220437 | F70: 0.69414864
A71: 63 | B71: Savienojuma plate 100x240x2 | C71: gab. | D71: 0.95 | E71: 0.7875395576 | F71: 0.7579784
A72: 64 | B72: Savienojuma plate 100x300x2 | C72: gab. | D72: 1.22 | E72: 1.01136659 | F72: 0.97340384
A73: Montāžas lenta
A74: 65 | B74: Montāžas lenta 25x2mm - 25m | C74: iep. | D74: 43.88 | E74: 36.37603767 | F74: =D74*0.797872 -> 35.01062336 | H74: =IF(ISNUMBER(G74),G74*E74,"") -> 
A75: 66 | B75: Montāžas lenta 40x2mm - 25m | C75: iep. | D75: 46.09 | E75: 38.20810338 | F75: 36.77392048
A76: 67 | B76: Montāžas lenta 60x2mm - 25m | C76: iep. | D76: 65.82 | E76: 54.56405651 | F76: 52.51593504
A77: Balsta kurpes
A78: 68 | B78: Balsta kurpes 5x50x60x105x200 | C78: gab. | D78: 3.51 | E78: 2.909751418 | F78: =D78*0.797872 -> 2.80053072 | H78: =IF(ISNUMBER(G78),G78*E78,"") -> 
A79: 69 | B79: Balsta kurpes 5x75x60x125x200 | C79: gab. | D79: 3.62 | E79: 3.000940209 | F79: 2.88829664
A80: 70 | B80: Balsta kurpes 5x100x60x125x200 | C80: gab. | D80: 3.82 | E80: 3.166738011 | F80: 3.04787104
A81: 71 | B81: Balsta kurpes 5x120x60x100x200 | C81: gab. | D81: 3.92 | E81: 3.249636911 | F81: 3.12765824
A82: 72 | B82: Balsta kurpes 5x150x60x125x200 | C82: gab. | D82: 4.07 | E82: 3.373985263 | F82: 3.24733904
A83: 73 | B83: Balsta kurpes (L-veida) 5x60x60x125x200 | C83: gab. | D83: 2.89 | E83: 2.395778233 | F83: 2.30585008
A84: 74 | B84: Balsta kurpes (T-veida) 5x90x60x70x110 | C84: gab. | D84: 3.1 | E84: 2.569865925 | F84: 2.4734032
A85: 75 | B85: Balsta kurpes (U-veida) 5x50x130x130x120 | C85: gab. | D85: 6.62 | E85: 5.487907233 | F85: 5.28191264
A86: 76 | B86: Balsts stabiem (iesitams zemē) 51x600x150x450x2 | C86: gab. | D86: 3.78 | E86: 3.13357845 | F86: 3.01595616
A87: 77 | B87: Balsts stabiem (iesitams zemē) 71x750x150x600x2 | C87: gab. | D87: 4.79 | E87: 3.970857348 | F87: 3.82180688
A88: 78 | B88: Balsts stabiem (iesitams zemē) 100x900x150x750x2 | C88: gab. | D88: 5.95 | E88: 4.932484598 | F88: 4.7473384
A89: 79 | B89: Stabu balsti 50x100x100x2 | C89: gab. | D89: 3.3 | E89: 2.735663726 | F89: 2.6329776
A90: 80 | B90: Stabu balsti 70x120x120x2 | C90: gab. | D90: 3.72 | E90: 3.08383911 | F90: 2.96808384
A91: 81 | B91: Stabu balsti 100x150x140x2 | C91: gab. | D91: 4.34 | E91: 3.597812295 | F91: 3.46276448
A92: Montāžas kronšteins
A93: 82 | B93: Montāžas kronšteins 250x200x50x2,5x5 | C93: gab. | D93: 3.34 | E93: 2.768823287 | F93: =D93*0.797872 -> 2.66489248 | H93: =IF(ISNUMBER(G93),G93*E93,"") -> 
A94: 83 | B94: Montāžas kronšteins B 300x200x50x2,5x5 | C94: gab. | D94: 3.99 | E94: 3.307666142 | F94: 3.18350928
A95: 84 | B95: Montāžas kronšteins A 300x200x50x2,5x5 | C95: gab. | D95: 3.78 | E95: 3.13357845 | F95: 3.01595616
A96: 85 | B96: Montāžas kronšteins 400x200x50x2,5x5 | C96: gab. | D96: 4.65 | E96: 3.854798887 | F96: 3.7101048
A97: 86 | B97: Montāžas kronšteins 500x200x50x2,5x5 | C97: gab. | D97: 5.08 | E97: 4.211264161 | F97: 4.05318976
A98: 87 | B98: Montāžas kronšteins 600x200x50x2,5x5 | C98: gab. | D98: 5.81 | E98: 4.816426136 | F98: 4.63563632
A99: 88 | B99: Montāžas kronšteins 800x200x50x2,5x5 | C99: gab. | D99: 7.26 | E99: 6.018460198 | F99: 5.79255072
A100: 89 | B100: Montāžas kronšteins 1000x200x50x2,5x5 | C100: gab. | D100: 9.44 | E100: 7.825656236 | F100: 7.53191168
A101: 90 | B101: Montāžas kronšteins 1250x200x50x2,5x5 | C101: gab. | D101: 9.87 | E101: 8.182121509 | F101: 7.87499664
A102: Mēbeļu stūrīši
A103: 91 | B103: Mēbeļu stūrīši 1,5x30x30/30 | C103: gab. | D103: 0.1 | E103: 0.0828989008 | F103: =D103*0.797872 -> 0.0797872 | H103: =IF(ISNUMBER(G103),G103*E103,"") -> 
A104: 92 | B104: Mēbeļu stūrīši 2x15x30/30 | C104: gab. | D104: 0.08 | E104: 0.06631912064 | F104: 0.06382976
A105: 93 | B105: Mēbeļu stūrīši 2x15x40/40 | C105: gab. | D105: 0.1 | E105: 0.0828989008 | F105: 0.0797872
A106: 94 | B106: Mēbeļu stūrīši 2x15x50/50 | C106: gab. | D106: 0.11 | E106: 0.09118879088 | F106: 0.08776592
A107: 95 | B107: Mēbeļu stūrīši 2x20x40/40 | C107: gab. | D107: 0.1 | E107: 0.0828989008 | F107: 0.0797872
A108: 96 | B108: Mēbeļu stūrīši 2x20x60/60 | C108: gab. | D108: 0.15 | E108: 0.1243483512 | F108: 0.1196808
A109: 97 | B109: Mēbeļu stūrīši 2x20x80/80 | C109: gab. | D109: 0.19 | E109: 0.1575079115 | F109: 0.15159568
A110: 98 | B110: Mēbeļu stūrīši 2x20x100/100 | C110: gab. | D110: 0.24 | E110: 0.1989573619 | F110: 0.19148928
A111: 99 | B111: Mēbeļu stūrīši 2x30x40/40 | C111: gab. | D111: 0.15 | E111: 0.1243483512 | F111: 0.1196808
A112: 100 | B112: Mēbeļu stūrīši 2x30x50/50 | C112: gab. | D112: 0.17 | E112: 0.1409281314 | F112: 0.13563824
A113: Naglu plates | C113: =IF(ISNUMBER(G113),G113*D113,"") -> 
A114: 101 | B114: Naglu plāksnes 101 - 70 x 80 | C114: gab. | D114: 0.25 | E114: 0.207247252 | F114: =D114*0.797872 -> 0.199468 | H114: =IF(ISNUMBER(G114),G114*E114,"") -> 
A115: 102 | B115: Naglu plāksnes 101 - 70 x 120 | C115: gab. | D115: 0.29 | E115: 0.2404068123 | F115: 0.23138288
A116: 103 | B116: Naglu plāksnes 101 - 70 x 160 | C116: gab. | D116: 0.38 | E116: 0.315015823 | F116: 0.30319136
A117: 104 | B117: Naglu plāksnes 101 - 70 x 200 | C117: gab. | D117: 0.42 | E117: 0.3481753834 | F117: 0.33510624
A118: 105 | B118: Naglu plāksnes 101 - 77 x 200 | C118: gab. | D118: 0.47 | E118: 0.3896248338 | F118: 0.37499984
A119: 106 | B119: Naglu plāksnes 101 - 98 x 200 | C119: gab. | D119: 0.64 | E119: 0.5305529651 | F119: 0.51063808
A120: 107 | B120: Naglu plāksnes 101 - 120 x 160 | C120: gab. | D120: 0.63 | E120: 0.522263075 | F120: 0.50265936
A121: 108 | B121: Naglu plāksnes 101 - 120 x 200 | C121: gab. | D121: 0.73 | E121: 0.6051619758 | F121: 0.58244656
A122: 109 | B122: Naglu plāksnes 101 - 120 x 240 | C122: gab. | D122: 0.91 | E122: 0.7543799973 | F122: 0.72606352
A123: 110 | B123: Naglu plāksnes 101 - 120 x 280 | C123: gab. | D123: 1.45 | E123: 1.202034062 | F123: 1.1569144
B125: Piezīmes: | C125: 1. Saraksta secībai nav nekāda sakara ar būvmateriālu vai būvizstrādājumu kvalitātes rādītājiem vai izmantošanas iespējamību. Saraksts izveidots nejaušā secībā;
C126: 3. Būvmateriālu vai būvizstrādājumu patiesās cenas var mainīties atkarībā no to piegādātāja vai tirgotāja piedāvājuma izmaiņām;
C127: 3 Katalogā redzamās būvmateriālu vai būvizstrādājumu cenas ir vidējās Latvijas mazumtirzniecības cenas bez PVN (21%);
C128: 4 Būvmateriālu vai būvizstrādājumu cenas ir norādītas bez PVN (21%), kā arī mazumtirzniecībā;

Sheet Terauda
A1: Nr.p.k. | B1: Nosaukums | C1: Mērvienība | D1: 2017 | E1: Cena par mērvienību (EUR) | F1: 2018 | G1: Ievadiet daudzumu | H1: Cena par daudzumu (EUR) | I1: Piezīmes
A2: 1 | B2: 2 | C2: 3 | E2: 4 | G2: 5 | H2: 6 | I2: 7
A3: Apaļdzelzs
A4: 1 | B4: 6 mm | C4: m | D4: 0.24 | E4: 0.1994662857 | F4: =(D4-(D4*0.21))*1.012548 -> 0.1919791008 | H4: =IF(ISNUMBER(G4),G4*E4,"") -> 
A5: 2 | B5: 8 mm | C5: m | D5: 0.39 | E5: 0.3241327143 | F5: 0.3119660388 | H5: =IF(ISNUMBER(G5),G5*E5,"") -> 
A6: 3 | B6: 10 mm | C6: m | D6: 0.6 | E6: 0.4986657143 | F6: 0.479947752
A7: 4 | B7: 12 mm | C7: m | D7: 0.84 | E7: 0.6981320001 | F7: 0.6719268528
A8: 5 | B8: 14 mm | C8: m | D8: 1.2 | E8: 0.9973314287 | F8: 0.959895504
A9: 6 | B9: 16 mm | C9: m | D9: 1.48 | E9: 1.230042095 | F9: 1.183871122
A10: 7 | B10: 18 mm | C10: m | D10: 1.93 | E10: 1.604041381 | F10: 1.543831936
A11: 8 | B11: 20 mm | C11: m | D11: 2.5 | E11: 2.07777381 | F11: 1.9997823
A12: 9 | B12: 60 mm | C12: m | D12: 36 | E12: 29.91994286 | F12: 28.79686512
A13: 10 | B13: 70 mm | C13: m | D13: 48.7 | E13: 40.47503381 | F13: 38.9557592
A14: 11 | B14: 80 mm | C14: m | D14: 64.4 | E14: 53.52345334 | F14: 51.51439205
A15: 12 | B15: 90 mm | C15: m | D15: 80.4 | E15: 66.82120572 | F15: 64.31299877
A16: 13 | B16: 100 mm | C16: m | D16: 99.5 | E16: 82.69539763 | F16: 79.59133554
A17: Apaļcaurule | C17: =IF(ISNUMBER(G17),G17*F17,"") -> 
A18: 14 | B18: 10x1 mm | C18: m | D18: 0.7 | E18: 0.5817766667 | F18: 0.559939044 | H18: =IF(ISNUMBER(G18),G18*E18,"") -> 
A19: 15 | B19: 21.3x2.6 mm | C19: m | D19: 1.5 | E19: 1.246664286 | F19: 1.19986938 | H19: =IF(ISNUMBER(G19),G19*E19,"") -> 
A20: 16 | B20: 25x4 mm | C20: m | D20: 5.3 | E20: 4.404880477 | F20: 4.239538476
A21: 17 | B21: 26.9x2.6 mm | C21: m | D21: 1.9 | E21: 1.579108095 | F21: 1.519834548
A22: 18 | B22: 33.7x2.9 mm | C22: m | D22: 2.52 | E22: 2.094396 | F22: 2.015780558
A23: 19 | B23: 40x10 mm | C23: m | D23: 27.3 | E23: 22.68929 | F23: 21.83762272
A24: 20 | B24: 42.4x3.2 mm | C24: m | D24: 3.6 | E24: 2.991994286 | F24: 2.879686512
A25: 21 | B25: 45x10 mm | C25: m | D25: 30.87 | E25: 25.656351 | F25: 24.69331184
A26: 22 | B26: 48.3x3.2 mm | C26: m | D26: 4.1 | E26: 3.407549048 | F26: 3.279642972
A27: 23 | B27: 51x6.3 mm | C27: m | D27: 16 | E27: 13.29775238 | F27: 12.79860672
A28: 24 | B28: 57x4 mm | C28: m | D28: 12.2 | E28: 10.13953619 | F28: 9.758937624
A29: 25 | B29: 60.3x3.2 mm | C29: m | D29: 5.8 | E29: 4.820435239 | F29: 4.639494936
A30: 26 | B30: 60.3x10 mm | C30: m | D30: 27.45 | E30: 22.81395643 | F30: 21.95760965
A31: 27 | B31: 76.1x3.2 mm | C31: m | D31: 6.4 | E31: 5.319100953 | F31: 5.119442688
A32: 28 | B32: 88.9x3.2 mm | C32: m | D32: 7.5 | E32: 6.233321429 | F32: 5.9993469
A33: 29 | B33: 89x3.6 mm | C33: m | D33: 8.6 | E33: 7.147541905 | F33: 6.879251112
A34: 30 | B34: 95x1.5 mm | C34: m | D34: 6.1 | E34: 5.069768096 | F34: 4.879468812
A35: 31 | B35: 139.7x4 mm | C35: m | D35: 17.2 | E35: 14.29508381 | F35: 13.75850222
A36: Kvadrātdzelzs | C36: =IF(ISNUMBER(G36),G36*F36,"") -> 
A37: 32 | B37: 6x6 mm | C37: m | D37: 0.87 | E37: 0.7230652858 | F37: 0.6959242404 | H37: =IF(ISNUMBER(G37),G37*E37,"") -> 
A38: 33 | B38: 10x10 mm | C38: m | D38: 0.79 | E38: 0.6565765239 | F38: 0.6319312068 | H38: =IF(ISNUMBER(G38),G38*E38,"") -> 
A39: 34 | B39: 12x12 mm | C39: m | D39: 1.1 | E39: 0.9142204763 | F39: 0.879904212
A40: 35 | B40: 14x14 mm | C40: m | D40: 1.5 | E40: 1.246664286 | F40: 1.19986938
A41: 36 | B41: 16x16 mm | C41: m | D41: 1.8 | E41: 1.495997143 | F41: 1.439843256
A42: 37 | B42: 20x20 mm | C42: m | D42: 3.15 | E42: 2.617995 | F42: 2.519725698
A43: 38 | B43: 30x30 mm | C43: m | D43: 7.82 | E43: 6.499276477 | F43: 6.255319034
A44: Leņķtērauds | C44: =IF(ISNUMBER(G44),G44*F44,"") -> 
A45: 39 | B45: 20x20x3 mm | C45: m | D45: 1.1 | E45: 0.9142204763 | F45: 0.879904212 | H45: =IF(ISNUMBER(G45),G45*E45,"") -> 
A46: 40 | B46: 20x20x4 mm | C46: m | D46: 1.03 | E46: 0.8560428096 | F46: 0.8239103076 | H46: =IF(ISNUMBER(G46),G46*E46,"") -> 
A47: 41 | B47: 25x25x3 mm | C47: m | D47: 1.2 | E47: 0.9973314287 | F47: 0.959895504
A48: 42 | B48: 25x25x4 mm | C48: m | D48: 1.8 | E48: 1.495997143 | F48: 1.439843256
A49: 43 | B49: 30x30x3 mm | C49: m | D49: 1.44 | E49: 1.196797714 | F49: 1.151874605
A50: 44 | B50: 35x35x4 mm | C50: m | D50: 2.04 | E50: 1.695463429 | F50: 1.631822357
A51: 45 | B51: 40x20x4 mm | C51: m | D51: 1.59 | E51: 1.321464143 | F51: 1.271861543
A52: 46 | B52: 40x40x4 mm | C52: m | D52: 2.4 | E52: 1.994662857 | F52: 1.919791008
A53: 47 | B53: 40x40x5 mm | C53: m | D53: 2.67 | E53: 2.219062429 | F53: 2.135767496
A54: 48 | B54: 45x45x4 mm | C54: m | D54: 2.06 | E54: 1.712085619 | F54: 1.647820615
A55: 49 | B55: 45x45x5 mm | C55: m | D55: 3.04 | E55: 2.526572953 | F55: 2.431735277
A56: 50 | B56: 50x30x5 mm | C56: m | D56: 2.49 | E56: 2.069462714 | F56: 1.991783171
A57: 51 | B57: 50x50x4 mm | C57: m | D57: 2.75 | E57: 2.285551191 | F57: 2.19976053
A58: 52 | B58: 50x50x4 mm | C58: m | D58: 3.54 | E58: 2.942127715 | F58: 2.831691737
A59: 53 | B59: 50x50x5 mm | C59: m | D59: 4.02 | E59: 3.341060286 | F59: 3.215649938
A60: 54 | B60: 50x50x6 mm | C60: m | D60: 5.24 | E60: 4.355013905 | F60: 4.191543701
A61: 55 | B61: 50x50x8 mm | C61: m | D61: 2.66 | E61: 2.210751334 | F61: 2.127768367
A62: 56 | B62: 60x30x5 mm | C62: m | D62: 3.59 | E62: 2.983683191 | F62: 2.871687383
A63: 57 | B63: 60x30x6 mm | C63: m | D63: 3.38 | E63: 2.809150191 | F63: 2.70370567
A64: 58 | B64: 60x40x6 mm | C64: m | D64: 4.01 | E64: 3.332749191 | F64: 3.207650809
A65: 59 | B65: 60x60x5 mm | C65: m | D65: 4.7 | E65: 3.906214762 | F65: 3.759590724
A66: 60 | B66: 60x60x6 mm | C66: m | D66: 4.88 | E66: 4.055814477 | F66: 3.90357505
A67: 61 | B67: 65x50x7 mm | C67: m | D67: 5.37 | E67: 4.463058143 | F67: 4.29553238
A68: 62 | B68: 65x65x7 mm | C68: m | D68: 6.15 | E68: 5.111323572 | F68: 4.919464458
A69: 63 | B69: 70x50x5 mm | C69: m | D69: 4.27 | E69: 3.548837667 | F69: =(D69-(D69*0.21))*1.012548 -> 3.415628168
A70: 64 | B70: 70x70x5 mm | C70: m | D70: 4.83 | E70: 4.014259 | F70: 3.863579404
A71: 65 | B71: 70x70x6 mm | C71: m | D71: 6.1 | E71: 5.069768096 | F71: 4.879468812
A72: 66 | B72: 70x70x7 mm | C72: m | D72: 6.64 | E72: 5.518567239 | F72: 5.311421789
A73: 67 | B73: 70x70x9 mm | C73: m | D73: 8.41 | E73: 6.989631096 | F73: 6.727267657
A74: 68 | B74: 75x50x5 mm | C74: m | D74: 4.27 | E74: 3.548837667 | F74: 3.415628168
A75: 69 | B75: 75x50x5 mm | C75: m | D75: 4.27 | E75: 3.548837667 | F75: 3.415628168
A76: 70 | B76: 75x50x6 mm | C76: m | D76: 5.08 | E76: 4.222036381 | F76: 4.063557634
A77: 71 | B77: 75x50x7 mm | C77: m | D77: 5.87 | E77: 4.878612905 | F77: 4.69548884
A78: 72 | B78: 75x75x6 mm | C78: m | D78: 6.17 | E78: 5.127945762 | F78: 4.935462716
A79: 73 | B79: 75x75x8 mm | C79: m | D79: 8.6 | E79: 7.147541905 | F79: 6.879251112
A80: 74 | B80: 75x75x10 mm | C80: m | D80: 9.99 | E80: 8.302784144 | F80: 7.991130071
A81: 75 | B81: 80x40x6 mm | C81: m | D81: 4.87 | E81: 4.047503381 | F81: 3.89557592
A82: 76 | B82: 80x40x8 mm | C82: m | D82: 6.36 | E82: 5.285856572 | F82: 5.087446171
A83: 77 | B83: 80x80x6 mm | C83: m | D83: 6.61 | E83: 5.493633953 | F83: 5.287424401
A84: 78 | B84: 80x80x8 mm | C84: m | D84: 8.69 | E84: 7.222341763 | F84: 6.951243275
A85: 79 | B85: 80x80x10 mm | C85: m | D85: 10.71 | E85: 8.901183001 | F85: 8.567067373
A86: 80 | B86: 90x60x8 mm | C86: m | D86: 8.06 | E86: 6.698742762 | F86: 6.447298135
A87: 81 | B87: 90x90x9 mm | C87: m | D87: 10.98 | E87: 9.125582572 | F87: 8.783043862
A88: 82 | B88: 100x50x6 mm | C88: m | D88: 6.17 | E88: 5.127945762 | F88: 4.935462716
A89: 83 | B89: 100x50x8 mm | C89: m | D89: 9.19 | E89: 7.637896524 | F89: 7.351199735
A90: 84 | B90: 100x50x10 mm | C90: m | D90: 9.99 | E90: 8.302784144 | F90: 7.991130071
A91: 85 | B91: 100x65x7 mm | C91: m | D91: 7.89 | E91: 6.557454143 | F91: 6.311312939
A92: 86 | B92: 100x65x8 mm | C92: m | D92: 8.91 | E92: 7.405185858 | F92: 7.127224117
A93: 87 | B93: 100x65x9 mm | C93: m | D93: 9.99 | E93: 8.302784144 | F93: 7.991130071
A94: 88 | B94: 100x75x7 mm | C94: m | D94: 8.39 | E94: 6.973008905 | F94: 6.711269399
A95: 89 | B95: 100x75x8 mm | C95: m | D95: 8.39 | E95: 6.973008905 | F95: 6.711269399
A96: 90 | B96: 100x75x9 mm | C96: m | D96: 10.62 | E96: 8.826383144 | F96: 8.49507521
A97: 91 | B97: 100x100x8 mm | C97: m | D97: 12.2 | E97: 10.13953619 | F97: 9.758937624
A98: 92 | B98: 100x100x10 mm | C98: m | D98: 11.96 | E98: 9.940069906 | F98: 9.566958523
A99: 93 | B99: 100x100x12 mm | C99: m | D99: 16.02 | E99: 13.31437457 | F99: 12.81460498
A100: 94 | B100: 110x110x10 mm | C100: m | D100: 14.94 | E100: 12.41677629 | F100: 11.95069902
A101: Plakandzelzs | C101: =IF(ISNUMBER(G101),G101*F101,"") -> 
A102: 95 | B102: 20x4 mm | C102: m | E102: 0.42 | F102: 0 | H102: =IF(ISNUMBER(G102),G102*E102,"") -> 
A103: 96 | B103: 25x4 mm | C103: m | D103: 0.7 | E103: 0.5817766667 | F103: 0.559939044 | H103: =IF(ISNUMBER(G103),G103*E103,"") -> 
A104: 97 | B104: 25x5 mm | C104: m | D104: 0.76 | E104: 0.6316432381 | F104: 0.6079338192 | H104: =IF(ISNUMBER(G104),G104*E104,"") -> 
A105: 98 | B105: 30x4 mm | C105: m | D105: 0.99 | E105: 0.8227984286 | F105: 0.7919137908
A106: 99 | B106: 40x5 mm | C106: m | D106: 0.96 | E106: 0.7978651429 | F106: 0.7679164032
A107: 100 | B107: 40x6 mm | C107: m | D107: 1.23 | E107: 1.022264714 | F107: 0.9838928916
A108: 101 | B108: 40x10 mm | C108: m | D108: 3 | E108: 2.493328572 | F108: 2.39973876
A109: 102 | B109: 50x4 mm | C109: m | D109: 1.48 | E109: 1.230042095 | F109: 1.183871122
A110: 103 | B110: 50x5 mm | C110: m | D110: 1.9 | E110: 1.579108095 | F110: 1.519834548
A111: 104 | B111: 50x8 mm | C111: m | D111: 2.96 | E111: 2.460084191 | F111: 2.367742243
A112: 105 | B112: 50x10 mm | C112: m | D112: 3.7 | E112: 3.075105238 | F112: 2.959677804
A113: 106 | B113: 60x10 mm | C113: m | D113: 4.63 | E113: 3.848037096 | F113: 3.70359682
A114: 107 | B114: 60x6 mm | C114: m | D114: 2.85 | E114: 2.368662143 | F114: 2.279751822
A115: 108 | B115: 70x8 mm | C115: m | D115: 3.95 | E115: 3.282882619 | F115: 3.159656034
A116: 109 | B116: 70x10 mm | C116: m | D116: 5 | E116: 4.155547619 | F116: 3.9995646
A117: 110 | B117: 80x6 mm | C117: m | D117: 3.7 | E117: 3.075105238 | F117: 2.959677804
A118: 111 | B118: 80x8 mm | C118: m | D118: 4.5 | E118: 3.739992857 | F118: 3.59960814
A119: 112 | B119: 80x10 mm | C119: m | D119: 4.96 | E119: 4.122303238 | F119: 3.967568083
A120: 113 | B120: 100x6 mm | C120: m | D120: 4.5 | E120: 3.739992857 | F120: 3.59960814
A121: 114 | B121: 100x8 mm | C121: m | D121: 5.99 | E121: 4.978346048 | F121: 4.791478391
A122: 115 | B122: 100x10 mm | C122: m | D122: 7.58 | E122: 6.299810191 | F122: 6.063339934
B124: Piezīmes: | C124: 1. Saraksta secībai nav nekāda sakara ar būvmateriālu vai būvizstrādājumu kvalitātes rādītājiem vai izmantošanas iespējamību. Saraksts izveidots nejaušā secībā;
C125: 3. Būvmateriālu vai būvizstrādājumu patiesās cenas var mainīties atkarībā no to piegādātāja vai tirgotāja piedāvājuma izmaiņām;
C126: 3 Katalogā redzamās būvmateriālu vai būvizstrādājumu cenas ir vidējās Latvijas mazumtirzniecības cenas bez PVN (21%);
C127: 4 Būvmateriālu vai būvizstrādājumu cenas ir norādītas bez PVN (21%), kā arī mazumtirzniecībā;

Sheet Starpt (hidden)
A1: Nr.p.k. | B1: Nosaukums | C1: Mērvienība | D1: Cena par mērvienību (EUR) | E1: Ievadiet daudzumu | F1: Cena par daudzumu (EUR) | G1: Piezīmes | H1: Value
A2: =IF(ISNUMBER('Gāzbetona bl.'!G3),'Gāzbetona bl.'!A3,"") ->  | B2: =IF(ISNUMBER('Gāzbetona bl.'!G3),'Gāzbetona bl.'!B3,"") ->  | C2: =IF(ISNUMBER('Gāzbetona bl.'!G3),'Gāzbetona bl.'!C3,"") ->  | D2: =IF(ISNUMBER('Gāzbetona bl.'!G3),'Gāzbetona bl.'!E3,"") ->  | E2: =IF(ISNUMBER('Gāzbetona bl.'!G3),'Gāzbetona bl.'!G3,"") ->  | F2: =IF(ISNUMBER('Gāzbetona bl.'!G3),'Gāzbetona bl.'!H3,"") ->  | G2: =IF(ISTEXT('Gāzbetona bl.'!I3),'Gāzbetona bl.'!I3,"") ->  | H2: =IF(ISNUMBER(E2),"yes","") -> 
A3: =IF(ISNUMBER('Gāzbetona bl.'!G4),'Gāzbetona bl.'!A4,"") ->  | B3: =IF(ISNUMBER('Gāzbetona bl.'!G4),'Gāzbetona bl.'!B4,"") ->  | C3: =IF(ISNUMBER('Gāzbetona bl.'!G4),'Gāzbetona bl.'!C4,"") ->  | D3: =IF(ISNUMBER('Gāzbetona bl.'!G4),'Gāzbetona bl.'!E4,"") ->  | E3: =IF(ISNUMBER('Gāzbetona bl.'!G4),'Gāzbetona bl.'!G4,"") ->  | F3: =IF(ISNUMBER('Gāzbetona bl.'!G4),'Gāzbetona bl.'!H4,"") ->  | G3: =IF(ISTEXT('Gāzbetona bl.'!I4),'Gāzbetona bl.'!I4,"") ->  | H3: =IF(ISNUMBER(E3),"yes","") -> 
A4: =IF(ISNUMBER('Gāzbetona bl.'!G5),'Gāzbetona bl.'!A5,"") ->  | B4: =IF(ISNUMBER('Gāzbetona bl.'!G5),'Gāzbetona bl.'!B5,"") ->  | C4: =IF(ISNUMBER('Gāzbetona bl.'!G5),'Gāzbetona bl.'!C5,"") ->  | D4: =IF(ISNUMBER('Gāzbetona bl.'!G5),'Gāzbetona bl.'!E5,"") ->  | E4: =IF(ISNUMBER('Gāzbetona bl.'!G5),'Gāzbetona bl.'!G5,"") ->  | F4: =IF(ISNUMBER('Gāzbetona bl.'!G5),'Gāzbetona bl.'!H5,"") ->  | G4: =IF(ISTEXT('Gāzbetona bl.'!I5),'Gāzbetona bl.'!I5,"") -> 
A5: =IF(ISNUMBER('Gāzbetona bl.'!G6),'Gāzbetona bl.'!A6,"") ->  | B5: =IF(ISNUMBER('Gāzbetona bl.'!G6),'Gāzbetona bl.'!B6,"") ->  | C5: =IF(ISNUMBER('Gāzbetona bl.'!G6),'Gāzbetona bl.'!C6,"") ->  | D5: =IF(ISNUMBER('Gāzbetona bl.'!G6),'Gāzbetona bl.'!E6,"") ->  | E5: =IF(ISNUMBER('Gāzbetona bl.'!G6),'Gāzbetona bl.'!G6,"") ->  | F5: =IF(ISNUMBER('Gāzbetona bl.'!G6),'Gāzbetona bl.'!H6,"") ->  | G5: =IF(ISTEXT('Gāzbetona bl.'!I6),'Gāzbetona bl.'!I6,"") -> 
A6: =IF(ISNUMBER('Gāzbetona bl.'!G7),'Gāzbetona bl.'!A7,"") ->  | B6: =IF(ISNUMBER('Gāzbetona bl.'!G7),'Gāzbetona bl.'!B7,"") ->  | C6: =IF(ISNUMBER('Gāzbetona bl.'!G7),'Gāzbetona bl.'!C7,"") ->  | D6: =IF(ISNUMBER('Gāzbetona bl.'!G7),'Gāzbetona bl.'!E7,"") ->  | E6: =IF(ISNUMBER('Gāzbetona bl.'!G7),'Gāzbetona bl.'!G7,"") ->  | F6: =IF(ISNUMBER('Gāzbetona bl.'!G7),'Gāzbetona bl.'!H7,"") ->  | G6: =IF(ISTEXT('Gāzbetona bl.'!I7),'Gāzbetona bl.'!I7,"") -> 
A7: =IF(ISNUMBER('Gāzbetona bl.'!G8),'Gāzbetona bl.'!A8,"") ->  | B7: =IF(ISNUMBER('Gāzbetona bl.'!G8),'Gāzbetona bl.'!B8,"") ->  | C7: =IF(ISNUMBER('Gāzbetona bl.'!G8),'Gāzbetona bl.'!C8,"") ->  | D7: =IF(ISNUMBER('Gāzbetona bl.'!G8),'Gāzbetona bl.'!E8,"") ->  | E7: =IF(ISNUMBER('Gāzbetona bl.'!G8),'Gāzbetona bl.'!G8,"") ->  | F7: =IF(ISNUMBER('Gāzbetona bl.'!G8),'Gāzbetona bl.'!H8,"") ->  | G7: =IF(ISTEXT('Gāzbetona bl.'!I8),'Gāzbetona bl.'!I8,"") -> 
A8: =IF(ISNUMBER('Gāzbetona bl.'!G9),'Gāzbetona bl.'!A9,"") ->  | B8: =IF(ISNUMBER('Gāzbetona bl.'!G9),'Gāzbetona bl.'!B9,"") ->  | C8: =IF(ISNUMBER('Gāzbetona bl.'!G9),'Gāzbetona bl.'!C9,"") ->  | D8: =IF(ISNUMBER('Gāzbetona bl.'!G9),'Gāzbetona bl.'!E9,"") ->  | E8: =IF(ISNUMBER('Gāzbetona bl.'!G9),'Gāzbetona bl.'!G9,"") ->  | F8: =IF(ISNUMBER('Gāzbetona bl.'!G9),'Gāzbetona bl.'!H9,"") ->  | G8: =IF(ISTEXT('Gāzbetona bl.'!I9),'Gāzbetona bl.'!I9,"") -> 
A9: =IF(ISNUMBER('Gāzbetona bl.'!G10),'Gāzbetona bl.'!A10,"") ->  | B9: =IF(ISNUMBER('Gāzbetona bl.'!G10),'Gāzbetona bl.'!B10,"") ->  | C9: =IF(ISNUMBER('Gāzbetona bl.'!G10),'Gāzbetona bl.'!C10,"") ->  | D9: =IF(ISNUMBER('Gāzbetona bl.'!G10),'Gāzbetona bl.'!E10,"") ->  | E9: =IF(ISNUMBER('Gāzbetona bl.'!G10),'Gāzbetona bl.'!G10,"") ->  | F9: =IF(ISNUMBER('Gāzbetona bl.'!G10),'Gāzbetona bl.'!H10,"") ->  | G9: =IF(ISTEXT('Gāzbetona bl.'!I10),'Gāzbetona bl.'!I10,"") -> 
A10: =IF(ISNUMBER('Gāzbetona bl.'!G11),'Gāzbetona bl.'!A11,"") ->  | B10: =IF(ISNUMBER('Gāzbetona bl.'!G11),'Gāzbetona bl.'!B11,"") ->  | C10: =IF(ISNUMBER('Gāzbetona bl.'!G11),'Gāzbetona bl.'!C11,"") ->  | D10: =IF(ISNUMBER('Gāzbetona bl.'!G11),'Gāzbetona bl.'!E11,"") ->  | E10: =IF(ISNUMBER('Gāzbetona bl.'!G11),'Gāzbetona bl.'!G11,"") ->  | F10: =IF(ISNUMBER('Gāzbetona bl.'!G11),'Gāzbetona bl.'!H11,"") ->  | G10: =IF(ISTEXT('Gāzbetona bl.'!I11),'Gāzbetona bl.'!I11,"") -> 
A11: =IF(ISNUMBER('Gāzbetona bl.'!G12),'Gāzbetona bl.'!A12,"") ->  | B11: =IF(ISNUMBER('Gāzbetona bl.'!G12),'Gāzbetona bl.'!B12,"") ->  | C11: =IF(ISNUMBER('Gāzbetona bl.'!G12),'Gāzbetona bl.'!C12,"") ->  | D11: =IF(ISNUMBER('Gāzbetona bl.'!G12),'Gāzbetona bl.'!E12,"") ->  | E11: =IF(ISNUMBER('Gāzbetona bl.'!G12),'Gāzbetona bl.'!G12,"") ->  | F11: =IF(ISNUMBER('Gāzbetona bl.'!G12),'Gāzbetona bl.'!H12,"") ->  | G11: =IF(ISTEXT('Gāzbetona bl.'!I12),'Gāzbetona bl.'!I12,"") -> 
A12: =IF(ISNUMBER('Gāzbetona bl.'!G13),'Gāzbetona bl.'!A13,"") ->  | B12: =IF(ISNUMBER('Gāzbetona bl.'!G13),'Gāzbetona bl.'!B13,"") ->  | C12: =IF(ISNUMBER('Gāzbetona bl.'!G13),'Gāzbetona bl.'!C13,"") ->  | D12: =IF(ISNUMBER('Gāzbetona bl.'!G13),'Gāzbetona bl.'!E13,"") ->  | E12: =IF(ISNUMBER('Gāzbetona bl.'!G13),'Gāzbetona bl.'!G13,"") ->  | F12: =IF(ISNUMBER('Gāzbetona bl.'!G13),'Gāzbetona bl.'!H13,"") ->  | G12: =IF(ISTEXT('Gāzbetona bl.'!I13),'Gāzbetona bl.'!I13,"") -> 
A13: =IF(ISNUMBER('Gāzbetona bl.'!G14),'Gāzbetona bl.'!A14,"") ->  | B13: =IF(ISNUMBER('Gāzbetona bl.'!G14),'Gāzbetona bl.'!B14,"") ->  | C13: =IF(ISNUMBER('Gāzbetona bl.'!G14),'Gāzbetona bl.'!C14,"") ->  | D13: =IF(ISNUMBER('Gāzbetona bl.'!G14),'Gāzbetona bl.'!E14,"") ->  | E13: =IF(ISNUMBER('Gāzbetona bl.'!G14),'Gāzbetona bl.'!G14,"") ->  | F13: =IF(ISNUMBER('Gāzbetona bl.'!G14),'Gāzbetona bl.'!H14,"") ->  | G13: =IF(ISTEXT('Gāzbetona bl.'!I14),'Gāzbetona bl.'!I14,"") -> 
A14: =IF(ISNUMBER('Gāzbetona bl.'!G15),'Gāzbetona bl.'!A15,"") ->  | B14: =IF(ISNUMBER('Gāzbetona bl.'!G15),'Gāzbetona bl.'!B15,"") ->  | C14: =IF(ISNUMBER('Gāzbetona bl.'!G15),'Gāzbetona bl.'!C15,"") ->  | D14: =IF(ISNUMBER('Gāzbetona bl.'!G15),'Gāzbetona bl.'!E15,"") ->  | E14: =IF(ISNUMBER('Gāzbetona bl.'!G15),'Gāzbetona bl.'!G15,"") ->  | F14: =IF(ISNUMBER('Gāzbetona bl.'!G15),'Gāzbetona bl.'!H15,"") ->  | G14: =IF(ISTEXT('Gāzbetona bl.'!I15),'Gāzbetona bl.'!I15,"") -> 
A15: =IF(ISNUMBER('Gāzbetona bl.'!G16),'Gāzbetona bl.'!A16,"") ->  | B15: =IF(ISNUMBER('Gāzbetona bl.'!G16),'Gāzbetona bl.'!B16,"") ->  | C15: =IF(ISNUMBER('Gāzbetona bl.'!G16),'Gāzbetona bl.'!C16,"") ->  | D15: =IF(ISNUMBER('Gāzbetona bl.'!G16),'Gāzbetona bl.'!E16,"") ->  | E15: =IF(ISNUMBER('Gāzbetona bl.'!G16),'Gāzbetona bl.'!G16,"") ->  | F15: =IF(ISNUMBER('Gāzbetona bl.'!G16),'Gāzbetona bl.'!H16,"") ->  | G15: =IF(ISTEXT('Gāzbetona bl.'!I16),'Gāzbetona bl.'!I16,"") -> 
A16: =IF(ISNUMBER('Gāzbetona bl.'!G17),'Gāzbetona bl.'!A17,"") ->  | B16: =IF(ISNUMBER('Gāzbetona bl.'!G17),'Gāzbetona bl.'!B17,"") ->  | C16: =IF(ISNUMBER('Gāzbetona bl.'!G17),'Gāzbetona bl.'!C17,"") ->  | D16: =IF(ISNUMBER('Gāzbetona bl.'!G17),'Gāzbetona bl.'!E17,"") ->  | E16: =IF(ISNUMBER('Gāzbetona bl.'!G17),'Gāzbetona bl.'!G17,"") ->  | F16: =IF(ISNUMBER('Gāzbetona bl.'!G17),'Gāzbetona bl.'!H17,"") ->  | G16: =IF(ISTEXT('Gāzbetona bl.'!I17),'Gāzbetona bl.'!I17,"") -> 
A17: =IF(ISNUMBER('Gāzbetona bl.'!G18),'Gāzbetona bl.'!A18,"") ->  | B17: =IF(ISNUMBER('Gāzbetona bl.'!G18),'Gāzbetona bl.'!B18,"") ->  | C17: =IF(ISNUMBER('Gāzbetona bl.'!G18),'Gāzbetona bl.'!C18,"") ->  | D17: =IF(ISNUMBER('Gāzbetona bl.'!G18),'Gāzbetona bl.'!E18,"") ->  | E17: =IF(ISNUMBER('Gāzbetona bl.'!G18),'Gāzbetona bl.'!G18,"") ->  | F17: =IF(ISNUMBER('Gāzbetona bl.'!G18),'Gāzbetona bl.'!H18,"") ->  | G17: =IF(ISTEXT('Gāzbetona bl.'!I18),'Gāzbetona bl.'!I18,"") -> 
A18: =IF(ISNUMBER('Gāzbetona bl.'!G19),'Gāzbetona bl.'!A19,"") ->  | B18: =IF(ISNUMBER('Gāzbetona bl.'!G19),'Gāzbetona bl.'!B19,"") ->  | C18: =IF(ISNUMBER('Gāzbetona bl.'!G19),'Gāzbetona bl.'!C19,"") ->  | D18: =IF(ISNUMBER('Gāzbetona bl.'!G19),'Gāzbetona bl.'!E19,"") ->  | E18: =IF(ISNUMBER('Gāzbetona bl.'!G19),'Gāzbetona bl.'!G19,"") ->  | F18: =IF(ISNUMBER('Gāzbetona bl.'!G19),'Gāzbetona bl.'!H19,"") ->  | G18: =IF(ISTEXT('Gāzbetona bl.'!I19),'Gāzbetona bl.'!I19,"") -> 
A19: =IF(ISNUMBER('Gāzbetona bl.'!G20),'Gāzbetona bl.'!A20,"") ->  | B19: =IF(ISNUMBER('Gāzbetona bl.'!G20),'Gāzbetona bl.'!B20,"") ->  | C19: =IF(ISNUMBER('Gāzbetona bl.'!G20),'Gāzbetona bl.'!C20,"") ->  | D19: =IF(ISNUMBER('Gāzbetona bl.'!G20),'Gāzbetona bl.'!E20,"") ->  | E19: =IF(ISNUMBER('Gāzbetona bl.'!G20),'Gāzbetona bl.'!G20,"") ->  | F19: =IF(ISNUMBER('Gāzbetona bl.'!G20),'Gāzbetona bl.'!H20,"") ->  | G19: =IF(ISTEXT('Gāzbetona bl.'!I20),'Gāzbetona bl.'!I20,"") -> 
A20: =IF(ISNUMBER('Gāzbetona bl.'!G21),'Gāzbetona bl.'!A21,"") ->  | B20: =IF(ISNUMBER('Gāzbetona bl.'!G21),'Gāzbetona bl.'!B21,"") ->  | C20: =IF(ISNUMBER('Gāzbetona bl.'!G21),'Gāzbetona bl.'!C21,"") ->  | D20: =IF(ISNUMBER('Gāzbetona bl.'!G21),'Gāzbetona bl.'!E21,"") ->  | E20: =IF(ISNUMBER('Gāzbetona bl.'!G21),'Gāzbetona bl.'!G21,"") ->  | F20: =IF(ISNUMBER('Gāzbetona bl.'!G21),'Gāzbetona bl.'!H21,"") ->  | G20: =IF(ISTEXT('Gāzbetona bl.'!I21),'Gāzbetona bl.'!I21,"") -> 
A21: =IF(ISNUMBER('Gāzbetona bl.'!G22),'Gāzbetona bl.'!A22,"") ->  | B21: =IF(ISNUMBER('Gāzbetona bl.'!G22),'Gāzbetona bl.'!B22,"") ->  | C21: =IF(ISNUMBER('Gāzbetona bl.'!G22),'Gāzbetona bl.'!C22,"") ->  | D21: =IF(ISNUMBER('Gāzbetona bl.'!G22),'Gāzbetona bl.'!E22,"") ->  | E21: =IF(ISNUMBER('Gāzbetona bl.'!G22),'Gāzbetona bl.'!G22,"") ->  | F21: =IF(ISNUMBER('Gāzbetona bl.'!G22),'Gāzbetona bl.'!H22,"") ->  | G21: =IF(ISTEXT('Gāzbetona bl.'!I22),'Gāzbetona bl.'!I22,"") -> 
A22: =IF(ISNUMBER('Gāzbetona bl.'!G23),'Gāzbetona bl.'!A23,"") ->  | B22: =IF(ISNUMBER('Gāzbetona bl.'!G23),'Gāzbetona bl.'!B23,"") ->  | C22: =IF(ISNUMBER('Gāzbetona bl.'!G23),'Gāzbetona bl.'!C23,"") ->  | D22: =IF(ISNUMBER('Gāzbetona bl.'!G23),'Gāzbetona bl.'!E23,"") ->  | E22: =IF(ISNUMBER('Gāzbetona bl.'!G23),'Gāzbetona bl.'!G23,"") ->  | F22: =IF(ISNUMBER('Gāzbetona bl.'!G23),'Gāzbetona bl.'!H23,"") ->  | G22: =IF(ISTEXT('Gāzbetona bl.'!I23),'Gāzbetona bl.'!I23,"") -> 
A23: =IF(ISNUMBER('Gāzbetona bl.'!G24),'Gāzbetona bl.'!A24,"") ->  | B23: =IF(ISNUMBER('Gāzbetona bl.'!G24),'Gāzbetona bl.'!B24,"") ->  | C23: =IF(ISNUMBER('Gāzbetona bl.'!G24),'Gāzbetona bl.'!C24,"") ->  | D23: =IF(ISNUMBER('Gāzbetona bl.'!G24),'Gāzbetona bl.'!E24,"") ->  | E23: =IF(ISNUMBER('Gāzbetona bl.'!G24),'Gāzbetona bl.'!G24,"") ->  | F23: =IF(ISNUMBER('Gāzbetona bl.'!G24),'Gāzbetona bl.'!H24,"") ->  | G23: =IF(ISTEXT('Gāzbetona bl.'!I24),'Gāzbetona bl.'!I24,"") -> 
A24: =IF(ISNUMBER('Gāzbetona bl.'!G25),'Gāzbetona bl.'!A25,"") ->  | B24: =IF(ISNUMBER('Gāzbetona bl.'!G25),'Gāzbetona bl.'!B25,"") ->  | C24: =IF(ISNUMBER('Gāzbetona bl.'!G25),'Gāzbetona bl.'!C25,"") ->  | D24: =IF(ISNUMBER('Gāzbetona bl.'!G25),'Gāzbetona bl.'!E25,"") ->  | E24: =IF(ISNUMBER('Gāzbetona bl.'!G25),'Gāzbetona bl.'!G25,"") ->  | F24: =IF(ISNUMBER('Gāzbetona bl.'!G25),'Gāzbetona bl.'!H25,"") ->  | G24: =IF(ISTEXT('Gāzbetona bl.'!I25),'Gāzbetona bl.'!I25,"") -> 
A25: =IF(ISNUMBER('Gāzbetona bl.'!G26),'Gāzbetona bl.'!A26,"") ->  | B25: =IF(ISNUMBER('Gāzbetona bl.'!G26),'Gāzbetona bl.'!B26,"") ->  | C25: =IF(ISNUMBER('Gāzbetona bl.'!G26),'Gāzbetona bl.'!C26,"") ->  | D25: =IF(ISNUMBER('Gāzbetona bl.'!G26),'Gāzbetona bl.'!E26,"") ->  | E25: =IF(ISNUMBER('Gāzbetona bl.'!G26),'Gāzbetona bl.'!G26,"") ->  | F25: =IF(ISNUMBER('Gāzbetona bl.'!G26),'Gāzbetona bl.'!H26,"") ->  | G25: =IF(ISTEXT('Gāzbetona bl.'!I26),'Gāzbetona bl.'!I26,"") -> 
A26: =IF(ISNUMBER('Gāzbetona bl.'!G27),'Gāzbetona bl.'!A27,"") ->  | B26: =IF(ISNUMBER('Gāzbetona bl.'!G27),'Gāzbetona bl.'!B27,"") ->  | C26: =IF(ISNUMBER('Gāzbetona bl.'!G27),'Gāzbetona bl.'!C27,"") ->  | D26: =IF(ISNUMBER('Gāzbetona bl.'!G27),'Gāzbetona bl.'!E27,"") ->  | E26: =IF(ISNUMBER('Gāzbetona bl.'!G27),'Gāzbetona bl.'!G27,"") ->  | F26: =IF(ISNUMBER('Gāzbetona bl.'!G27),'Gāzbetona bl.'!H27,"") ->  | G26: =IF(ISTEXT('Gāzbetona bl.'!I27),'Gāzbetona bl.'!I27,"") -> 
A27: =IF(ISNUMBER('Gāzbetona bl.'!G28),'Gāzbetona bl.'!A28,"") ->  | B27: =IF(ISNUMBER('Gāzbetona bl.'!G28),'Gāzbetona bl.'!B28,"") ->  | C27: =IF(ISNUMBER('Gāzbetona bl.'!G28),'Gāzbetona bl.'!C28,"") ->  | D27: =IF(ISNUMBER('Gāzbetona bl.'!G28),'Gāzbetona bl.'!E28,"") ->  | E27: =IF(ISNUMBER('Gāzbetona bl.'!G28),'Gāzbetona bl.'!G28,"") ->  | F27: =IF(ISNUMBER('Gāzbetona bl.'!G28),'Gāzbetona bl.'!H28,"") ->  | G27: =IF(ISTEXT('Gāzbetona bl.'!I28),'Gāzbetona bl.'!I28,"") -> 
A28: =IF(ISNUMBER('Gāzbetona bl.'!G29),'Gāzbetona bl.'!A29,"") ->  | B28: =IF(ISNUMBER('Gāzbetona bl.'!G29),'Gāzbetona bl.'!B29,"") ->  | C28: =IF(ISNUMBER('Gāzbetona bl.'!G29),'Gāzbetona bl.'!C29,"") ->  | D28: =IF(ISNUMBER('Gāzbetona bl.'!G29),'Gāzbetona bl.'!E29,"") ->  | E28: =IF(ISNUMBER('Gāzbetona bl.'!G29),'Gāzbetona bl.'!G29,"") ->  | F28: =IF(ISNUMBER('Gāzbetona bl.'!G29),'Gāzbetona bl.'!H29,"") ->  | G28: =IF(ISTEXT('Gāzbetona bl.'!I29),'Gāzbetona bl.'!I29,"") -> 
A29: =IF(ISNUMBER('Gāzbetona bl.'!G30),'Gāzbetona bl.'!A30,"") ->  | B29: =IF(ISNUMBER('Gāzbetona bl.'!G30),'Gāzbetona bl.'!B30,"") ->  | C29: =IF(ISNUMBER('Gāzbetona bl.'!G30),'Gāzbetona bl.'!C30,"") ->  | D29: =IF(ISNUMBER('Gāzbetona bl.'!G30),'Gāzbetona bl.'!E30,"") ->  | E29: =IF(ISNUMBER('Gāzbetona bl.'!G30),'Gāzbetona bl.'!G30,"") ->  | F29: =IF(ISNUMBER('Gāzbetona bl.'!G30),'Gāzbetona bl.'!H30,"") ->  | G29: =IF(ISTEXT('Gāzbetona bl.'!I30),'Gāzbetona bl.'!I30,"") -> 
A30: =IF(ISNUMBER('Gāzbetona bl.'!G31),'Gāzbetona bl.'!A31,"") ->  | B30: =IF(ISNUMBER('Gāzbetona bl.'!G31),'Gāzbetona bl.'!B31,"") ->  | C30: =IF(ISNUMBER('Gāzbetona bl.'!G31),'Gāzbetona bl.'!C31,"") ->  | D30: =IF(ISNUMBER('Gāzbetona bl.'!G31),'Gāzbetona bl.'!E31,"") ->  | E30: =IF(ISNUMBER('Gāzbetona bl.'!G31),'Gāzbetona bl.'!G31,"") ->  | F30: =IF(ISNUMBER('Gāzbetona bl.'!G31),'Gāzbetona bl.'!H31,"") ->  | G30: =IF(ISTEXT('Gāzbetona bl.'!I31),'Gāzbetona bl.'!I31,"") -> 
A31: =IF(ISNUMBER('Gāzbetona bl.'!G32),'Gāzbetona bl.'!A32,"") ->  | B31: =IF(ISNUMBER('Gāzbetona bl.'!G32),'Gāzbetona bl.'!B32,"") ->  | C31: =IF(ISNUMBER('Gāzbetona bl.'!G32),'Gāzbetona bl.'!C32,"") ->  | D31: =IF(ISNUMBER('Gāzbetona bl.'!G32),'Gāzbetona bl.'!E32,"") ->  | E31: =IF(ISNUMBER('Gāzbetona bl.'!G32),'Gāzbetona bl.'!G32,"") ->  | F31: =IF(ISNUMBER('Gāzbetona bl.'!G32),'Gāzbetona bl.'!H32,"") ->  | G31: =IF(ISTEXT('Gāzbetona bl.'!I32),'Gāzbetona bl.'!I32,"") -> 
A32: =IF(ISNUMBER('Gāzbetona bl.'!G33),'Gāzbetona bl.'!A33,"") ->  | B32: =IF(ISNUMBER('Gāzbetona bl.'!G33),'Gāzbetona bl.'!B33,"") ->  | C32: =IF(ISNUMBER('Gāzbetona bl.'!G33),'Gāzbetona bl.'!C33,"") ->  | D32: =IF(ISNUMBER('Gāzbetona bl.'!G33),'Gāzbetona bl.'!E33,"") ->  | E32: =IF(ISNUMBER('Gāzbetona bl.'!G33),'Gāzbetona bl.'!G33,"") ->  | F32: =IF(ISNUMBER('Gāzbetona bl.'!G33),'Gāzbetona bl.'!H33,"") ->  | G32: =IF(ISTEXT('Gāzbetona bl.'!I33),'Gāzbetona bl.'!I33,"") -> 
A33: =IF(ISNUMBER('Gāzbetona bl.'!G34),'Gāzbetona bl.'!A34,"") ->  | B33: =IF(ISNUMBER('Gāzbetona bl.'!G34),'Gāzbetona bl.'!B34,"") ->  | C33: =IF(ISNUMBER('Gāzbetona bl.'!G34),'Gāzbetona bl.'!C34,"") ->  | D33: =IF(ISNUMBER('Gāzbetona bl.'!G34),'Gāzbetona bl.'!E34,"") ->  | E33: =IF(ISNUMBER('Gāzbetona bl.'!G34),'Gāzbetona bl.'!G34,"") ->  | F33: =IF(ISNUMBER('Gāzbetona bl.'!G34),'Gāzbetona bl.'!H34,"") ->  | G33: =IF(ISTEXT('Gāzbetona bl.'!I34),'Gāzbetona bl.'!I34,"") -> 
A34: =IF(ISNUMBER('Gāzbetona bl.'!G35),'Gāzbetona bl.'!A35,"") ->  | B34: =IF(ISNUMBER('Gāzbetona bl.'!G35),'Gāzbetona bl.'!B35,"") ->  | C34: =IF(ISNUMBER('Gāzbetona bl.'!G35),'Gāzbetona bl.'!C35,"") ->  | D34: =IF(ISNUMBER('Gāzbetona bl.'!G35),'Gāzbetona bl.'!E35,"") ->  | E34: =IF(ISNUMBER('Gāzbetona bl.'!G35),'Gāzbetona bl.'!G35,"") ->  | F34: =IF(ISNUMBER('Gāzbetona bl.'!G35),'Gāzbetona bl.'!H35,"") ->  | G34: =IF(ISTEXT('Gāzbetona bl.'!I35),'Gāzbetona bl.'!I35,"") -> 
A35: =IF(ISNUMBER('Gāzbetona bl.'!G36),'Gāzbetona bl.'!A36,"") ->  | B35: =IF(ISNUMBER('Gāzbetona bl.'!G36),'Gāzbetona bl.'!B36,"") ->  | C35: =IF(ISNUMBER('Gāzbetona bl.'!G36),'Gāzbetona bl.'!C36,"") ->  | D35: =IF(ISNUMBER('Gāzbetona bl.'!G36),'Gāzbetona bl.'!E36,"") ->  | E35: =IF(ISNUMBER('Gāzbetona bl.'!G36),'Gāzbetona bl.'!G36,"") ->  | F35: =IF(ISNUMBER('Gāzbetona bl.'!G36),'Gāzbetona bl.'!H36,"") ->  | G35: =IF(ISTEXT('Gāzbetona bl.'!I36),'Gāzbetona bl.'!I36,"") -> 
A36: =IF(ISNUMBER('Gāzbetona bl.'!G37),'Gāzbetona bl.'!A37,"") ->  | B36: =IF(ISNUMBER('Gāzbetona bl.'!G37),'Gāzbetona bl.'!B37,"") ->  | C36: =IF(ISNUMBER('Gāzbetona bl.'!G37),'Gāzbetona bl.'!C37,"") ->  | D36: =IF(ISNUMBER('Gāzbetona bl.'!G37),'Gāzbetona bl.'!E37,"") ->  | E36: =IF(ISNUMBER('Gāzbetona bl.'!G37),'Gāzbetona bl.'!G37,"") ->  | F36: =IF(ISNUMBER('Gāzbetona bl.'!G37),'Gāzbetona bl.'!H37,"") ->  | G36: =IF(ISTEXT('Gāzbetona bl.'!I37),'Gāzbetona bl.'!I37,"") -> 
A37: =IF(ISNUMBER('Gāzbetona bl.'!G38),'Gāzbetona bl.'!A38,"") ->  | B37: =IF(ISNUMBER('Gāzbetona bl.'!G38),'Gāzbetona bl.'!B38,"") ->  | C37: =IF(ISNUMBER('Gāzbetona bl.'!G38),'Gāzbetona bl.'!C38,"") ->  | D37: =IF(ISNUMBER('Gāzbetona bl.'!G38),'Gāzbetona bl.'!E38,"") ->  | E37: =IF(ISNUMBER('Gāzbetona bl.'!G38),'Gāzbetona bl.'!G38,"") ->  | F37: =IF(ISNUMBER('Gāzbetona bl.'!G38),'Gāzbetona bl.'!H38,"") ->  | G37: =IF(ISTEXT('Gāzbetona bl.'!I38),'Gāzbetona bl.'!I38,"") -> 
A38: =IF(ISNUMBER('Gāzbetona bl.'!G39),'Gāzbetona bl.'!A39,"") ->  | B38: =IF(ISNUMBER('Gāzbetona bl.'!G39),'Gāzbetona bl.'!B39,"") ->  | C38: =IF(ISNUMBER('Gāzbetona bl.'!G39),'Gāzbetona bl.'!C39,"") ->  | D38: =IF(ISNUMBER('Gāzbetona bl.'!G39),'Gāzbetona bl.'!E39,"") ->  | E38: =IF(ISNUMBER('Gāzbetona bl.'!G39),'Gāzbetona bl.'!G39,"") ->  | F38: =IF(ISNUMBER('Gāzbetona bl.'!G39),'Gāzbetona bl.'!H39,"") ->  | G38: =IF(ISTEXT('Gāzbetona bl.'!I39),'Gāzbetona bl.'!I39,"") -> 
A39: =IF(ISNUMBER('Gāzbetona bl.'!G40),'Gāzbetona bl.'!A40,"") ->  | B39: =IF(ISNUMBER('Gāzbetona bl.'!G40),'Gāzbetona bl.'!B40,"") ->  | C39: =IF(ISNUMBER('Gāzbetona bl.'!G40),'Gāzbetona bl.'!C40,"") ->  | D39: =IF(ISNUMBER('Gāzbetona bl.'!G40),'Gāzbetona bl.'!E40,"") ->  | E39: =IF(ISNUMBER('Gāzbetona bl.'!G40),'Gāzbetona bl.'!G40,"") ->  | F39: =IF(ISNUMBER('Gāzbetona bl.'!G40),'Gāzbetona bl.'!H40,"") ->  | G39: =IF(ISTEXT('Gāzbetona bl.'!I40),'Gāzbetona bl.'!I40,"") -> 
A40: =IF(ISNUMBER('Gāzbetona bl.'!G41),'Gāzbetona bl.'!A41,"") ->  | B40: =IF(ISNUMBER('Gāzbetona bl.'!G41),'Gāzbetona bl.'!B41,"") ->  | C40: =IF(ISNUMBER('Gāzbetona bl.'!G41),'Gāzbetona bl.'!C41,"") ->  | D40: =IF(ISNUMBER('Gāzbetona bl.'!G41),'Gāzbetona bl.'!E41,"") ->  | E40: =IF(ISNUMBER('Gāzbetona bl.'!G41),'Gāzbetona bl.'!G41,"") ->  | F40: =IF(ISNUMBER('Gāzbetona bl.'!G41),'Gāzbetona bl.'!H41,"") ->  | G40: =IF(ISTEXT('Gāzbetona bl.'!I41),'Gāzbetona bl.'!I41,"") -> 
A41: =IF(ISNUMBER('Gāzbetona bl.'!G42),'Gāzbetona bl.'!A42,"") ->  | B41: =IF(ISNUMBER('Gāzbetona bl.'!G42),'Gāzbetona bl.'!B42,"") ->  | C41: =IF(ISNUMBER('Gāzbetona bl.'!G42),'Gāzbetona bl.'!C42,"") ->  | D41: =IF(ISNUMBER('Gāzbetona bl.'!G42),'Gāzbetona bl.'!E42,"") ->  | E41: =IF(ISNUMBER('Gāzbetona bl.'!G42),'Gāzbetona bl.'!G42,"") ->  | F41: =IF(ISNUMBER('Gāzbetona bl.'!G42),'Gāzbetona bl.'!H42,"") ->  | G41: =IF(ISTEXT('Gāzbetona bl.'!I42),'Gāzbetona bl.'!I42,"") -> 
A42: =IF(ISNUMBER('Gāzbetona bl.'!G43),'Gāzbetona bl.'!A43,"") ->  | B42: =IF(ISNUMBER('Gāzbetona bl.'!G43),'Gāzbetona bl.'!B43,"") ->  | C42: =IF(ISNUMBER('Gāzbetona bl.'!G43),'Gāzbetona bl.'!C43,"") ->  | D42: =IF(ISNUMBER('Gāzbetona bl.'!G43),'Gāzbetona bl.'!E43,"") ->  | E42: =IF(ISNUMBER('Gāzbetona bl.'!G43),'Gāzbetona bl.'!G43,"") ->  | F42: =IF(ISNUMBER('Gāzbetona bl.'!G43),'Gāzbetona bl.'!H43,"") ->  | G42: =IF(ISTEXT('Gāzbetona bl.'!I43),'Gāzbetona bl.'!I43,"") -> 
A43: =IF(ISNUMBER('Gāzbetona bl.'!G44),'Gāzbetona bl.'!A44,"") ->  | B43: =IF(ISNUMBER('Gāzbetona bl.'!G44),'Gāzbetona bl.'!B44,"") ->  | C43: =IF(ISNUMBER('Gāzbetona bl.'!G44),'Gāzbetona bl.'!C44,"") ->  | D43: =IF(ISNUMBER('Gāzbetona bl.'!G44),'Gāzbetona bl.'!E44,"") ->  | E43: =IF(ISNUMBER('Gāzbetona bl.'!G44),'Gāzbetona bl.'!G44,"") ->  | F43: =IF(ISNUMBER('Gāzbetona bl.'!G44),'Gāzbetona bl.'!H44,"") ->  | G43: =IF(ISTEXT('Gāzbetona bl.'!I44),'Gāzbetona bl.'!I44,"") -> 
A44: =IF(ISNUMBER('Gāzbetona bl.'!G45),'Gāzbetona bl.'!A45,"") ->  | B44: =IF(ISNUMBER('Gāzbetona bl.'!G45),'Gāzbetona bl.'!B45,"") ->  | C44: =IF(ISNUMBER('Gāzbetona bl.'!G45),'Gāzbetona bl.'!C45,"") ->  | D44: =IF(ISNUMBER('Gāzbetona bl.'!G45),'Gāzbetona bl.'!E45,"") ->  | E44: =IF(ISNUMBER('Gāzbetona bl.'!G45),'Gāzbetona bl.'!G45,"") ->  | F44: =IF(ISNUMBER('Gāzbetona bl.'!G45),'Gāzbetona bl.'!H45,"") ->  | G44: =IF(ISTEXT('Gāzbetona bl.'!I45),'Gāzbetona bl.'!I45,"") -> 
A46: =IF(ISNUMBER('Keramzītbetona bl.'!G3),'Keramzītbetona bl.'!A3,"") ->  | B46: =IF(ISNUMBER('Keramzītbetona bl.'!G3),'Keramzītbetona bl.'!B3,"") ->  | C46: =IF(ISNUMBER('Keramzītbetona bl.'!G3),'Keramzītbetona bl.'!C3,"") ->  | D46: =IF(ISNUMBER('Keramzītbetona bl.'!G3),'Keramzītbetona bl.'!E3,"") ->  | E46: =IF(ISNUMBER('Keramzītbetona bl.'!G3),'Keramzītbetona bl.'!G3,"") ->  | F46: =IF(ISNUMBER('Keramzītbetona bl.'!G3),'Keramzītbetona bl.'!H3,"") ->  | G46: =IF(ISTEXT('Keramzītbetona bl.'!I3),'Keramzītbetona bl.'!I3,"") ->  | H46: =IF(ISNUMBER(E46),"yes","") -> 
A47: =IF(ISNUMBER('Keramzītbetona bl.'!G4),'Keramzītbetona bl.'!A4,"") ->  | B47: =IF(ISNUMBER('Keramzītbetona bl.'!G4),'Keramzītbetona bl.'!B4,"") ->  | C47: =IF(ISNUMBER('Keramzītbetona bl.'!G4),'Keramzītbetona bl.'!C4,"") ->  | D47: =IF(ISNUMBER('Keramzītbetona bl.'!G4),'Keramzītbetona bl.'!E4,"") ->  | E47: =IF(ISNUMBER('Keramzītbetona bl.'!G4),'Keramzītbetona bl.'!G4,"") ->  | F47: =IF(ISNUMBER('Keramzītbetona bl.'!G4),'Keramzītbetona bl.'!H4,"") ->  | G47: =IF(ISTEXT('Keramzītbetona bl.'!I4),'Keramzītbetona bl.'!I4,"") ->  | H47: =IF(ISNUMBER(E47),"yes","") -> 
A48: =IF(ISNUMBER('Keramzītbetona bl.'!G5),'Keramzītbetona bl.'!A5,"") ->  | B48: =IF(ISNUMBER('Keramzītbetona bl.'!G5),'Keramzītbetona bl.'!B5,"") ->  | C48: =IF(ISNUMBER('Keramzītbetona bl.'!G5),'Keramzītbetona bl.'!C5,"") ->  | D48: =IF(ISNUMBER('Keramzītbetona bl.'!G5),'Keramzītbetona bl.'!E5,"") ->  | E48: =IF(ISNUMBER('Keramzītbetona bl.'!G5),'Keramzītbetona bl.'!G5,"") ->  | F48: =IF(ISNUMBER('Keramzītbetona bl.'!G5),'Keramzītbetona bl.'!H5,"") ->  | G48: =IF(ISTEXT('Keramzītbetona bl.'!I5),'Keramzītbetona bl.'!I5,"") -> 
A49: =IF(ISNUMBER('Keramzītbetona bl.'!G6),'Keramzītbetona bl.'!A6,"") ->  | B49: =IF(ISNUMBER('Keramzītbetona bl.'!G6),'Keramzītbetona bl.'!B6,"") ->  | C49: =IF(ISNUMBER('Keramzītbetona bl.'!G6),'Keramzītbetona bl.'!C6,"") ->  | D49: =IF(ISNUMBER('Keramzītbetona bl.'!G6),'Keramzītbetona bl.'!E6,"") ->  | E49: =IF(ISNUMBER('Keramzītbetona bl.'!G6),'Keramzītbetona bl.'!G6,"") ->  | F49: =IF(ISNUMBER('Keramzītbetona bl.'!G6),'Keramzītbetona bl.'!H6,"") ->  | G49: =IF(ISTEXT('Keramzītbetona bl.'!I6),'Keramzītbetona bl.'!I6,"") -> 
A50: =IF(ISNUMBER('Keramzītbetona bl.'!G7),'Keramzītbetona bl.'!A7,"") ->  | B50: =IF(ISNUMBER('Keramzītbetona bl.'!G7),'Keramzītbetona bl.'!B7,"") ->  | C50: =IF(ISNUMBER('Keramzītbetona bl.'!G7),'Keramzītbetona bl.'!C7,"") ->  | D50: =IF(ISNUMBER('Keramzītbetona bl.'!G7),'Keramzītbetona bl.'!E7,"") ->  | E50: =IF(ISNUMBER('Keramzītbetona bl.'!G7),'Keramzītbetona bl.'!G7,"") ->  | F50: =IF(ISNUMBER('Keramzītbetona bl.'!G7),'Keramzītbetona bl.'!H7,"") ->  | G50: =IF(ISTEXT('Keramzītbetona bl.'!I7),'Keramzītbetona bl.'!I7,"") -> 
A51: =IF(ISNUMBER('Keramzītbetona bl.'!G8),'Keramzītbetona bl.'!A8,"") ->  | B51: =IF(ISNUMBER('Keramzītbetona bl.'!G8),'Keramzītbetona bl.'!B8,"") ->  | C51: =IF(ISNUMBER('Keramzītbetona bl.'!G8),'Keramzītbetona bl.'!C8,"") ->  | D51: =IF(ISNUMBER('Keramzītbetona bl.'!G8),'Keramzītbetona bl.'!E8,"") ->  | E51: =IF(ISNUMBER('Keramzītbetona bl.'!G8),'Keramzītbetona bl.'!G8,"") ->  | F51: =IF(ISNUMBER('Keramzītbetona bl.'!G8),'Keramzītbetona bl.'!H8,"") ->  | G51: =IF(ISTEXT('Keramzītbetona bl.'!I8),'Keramzītbetona bl.'!I8,"") -> 
A52: =IF(ISNUMBER('Keramzītbetona bl.'!G9),'Keramzītbetona bl.'!A9,"") ->  | B52: =IF(ISNUMBER('Keramzītbetona bl.'!G9),'Keramzītbetona bl.'!B9,"") ->  | C52: =IF(ISNUMBER('Keramzītbetona bl.'!G9),'Keramzītbetona bl.'!C9,"") ->  | D52: =IF(ISNUMBER('Keramzītbetona bl.'!G9),'Keramzītbetona bl.'!E9,"") ->  | E52: =IF(ISNUMBER('Keramzītbetona bl.'!G9),'Keramzītbetona bl.'!G9,"") ->  | F52: =IF(ISNUMBER('Keramzītbetona bl.'!G9),'Keramzītbetona bl.'!H9,"") ->  | G52: =IF(ISTEXT('Keramzītbetona bl.'!I9),'Keramzītbetona bl.'!I9,"") -> 
A53: =IF(ISNUMBER('Keramzītbetona bl.'!G10),'Keramzītbetona bl.'!A10,"") ->  | B53: =IF(ISNUMBER('Keramzītbetona bl.'!G10),'Keramzītbetona bl.'!B10,"") ->  | C53: =IF(ISNUMBER('Keramzītbetona bl.'!G10),'Keramzītbetona bl.'!C10,"") ->  | D53: =IF(ISNUMBER('Keramzītbetona bl.'!G10),'Keramzītbetona bl.'!E10,"") ->  | E53: =IF(ISNUMBER('Keramzītbetona bl.'!G10),'Keramzītbetona bl.'!G10,"") ->  | F53: =IF(ISNUMBER('Keramzītbetona bl.'!G10),'Keramzītbetona bl.'!H10,"") ->  | G53: =IF(ISTEXT('Keramzītbetona bl.'!I10),'Keramzītbetona bl.'!I10,"") -> 
A54: =IF(ISNUMBER('Keramzītbetona bl.'!G11),'Keramzītbetona bl.'!A11,"") ->  | B54: =IF(ISNUMBER('Keramzītbetona bl.'!G11),'Keramzītbetona bl.'!B11,"") ->  | C54: =IF(ISNUMBER('Keramzītbetona bl.'!G11),'Keramzītbetona bl.'!C11,"") ->  | D54: =IF(ISNUMBER('Keramzītbetona bl.'!G11),'Keramzītbetona bl.'!E11,"") ->  | E54: =IF(ISNUMBER('Keramzītbetona bl.'!G11),'Keramzītbetona bl.'!G11,"") ->  | F54: =IF(ISNUMBER('Keramzītbetona bl.'!G11),'Keramzītbetona bl.'!H11,"") ->  | G54: =IF(ISTEXT('Keramzītbetona bl.'!I11),'Keramzītbetona bl.'!I11,"") -> 
A55: =IF(ISNUMBER('Keramzītbetona bl.'!G12),'Keramzītbetona bl.'!A12,"") ->  | B55: =IF(ISNUMBER('Keramzītbetona bl.'!G12),'Keramzītbetona bl.'!B12,"") ->  | C55: =IF(ISNUMBER('Keramzītbetona bl.'!G12),'Keramzītbetona bl.'!C12,"") ->  | D55: =IF(ISNUMBER('Keramzītbetona bl.'!G12),'Keramzītbetona bl.'!E12,"") ->  | E55: =IF(ISNUMBER('Keramzītbetona bl.'!G12),'Keramzītbetona bl.'!G12,"") ->  | F55: =IF(ISNUMBER('Keramzītbetona bl.'!G12),'Keramzītbetona bl.'!H12,"") ->  | G55: =IF(ISTEXT('Keramzītbetona bl.'!I12),'Keramzītbetona bl.'!I12,"") -> 
A56: =IF(ISNUMBER('Keramzītbetona bl.'!G13),'Keramzītbetona bl.'!A13,"") ->  | B56: =IF(ISNUMBER('Keramzītbetona bl.'!G13),'Keramzītbetona bl.'!B13,"") ->  | C56: =IF(ISNUMBER('Keramzītbetona bl.'!G13),'Keramzītbetona bl.'!C13,"") ->  | D56: =IF(ISNUMBER('Keramzītbetona bl.'!G13),'Keramzītbetona bl.'!E13,"") ->  | E56: =IF(ISNUMBER('Keramzītbetona bl.'!G13),'Keramzītbetona bl.'!G13,"") ->  | F56: =IF(ISNUMBER('Keramzītbetona bl.'!G13),'Keramzītbetona bl.'!H13,"") ->  | G56: =IF(ISTEXT('Keramzītbetona bl.'!I13),'Keramzītbetona bl.'!I13,"") -> 
A57: =IF(ISNUMBER('Keramzītbetona bl.'!G14),'Keramzītbetona bl.'!A14,"") ->  | B57: =IF(ISNUMBER('Keramzītbetona bl.'!G14),'Keramzītbetona bl.'!B14,"") ->  | C57: =IF(ISNUMBER('Keramzītbetona bl.'!G14),'Keramzītbetona bl.'!C14,"") ->  | D57: =IF(ISNUMBER('Keramzītbetona bl.'!G14),'Keramzītbetona bl.'!E14,"") ->  | E57: =IF(ISNUMBER('Keramzītbetona bl.'!G14),'Keramzītbetona bl.'!G14,"") ->  | F57: =IF(ISNUMBER('Keramzītbetona bl.'!G14),'Keramzītbetona bl.'!H14,"") ->  | G57: =IF(ISTEXT('Keramzītbetona bl.'!I14),'Keramzītbetona bl.'!I14,"") -> 
A58: =IF(ISNUMBER('Keramzītbetona bl.'!G15),'Keramzītbetona bl.'!A15,"") ->  | B58: =IF(ISNUMBER('Keramzītbetona bl.'!G15),'Keramzītbetona bl.'!B15,"") ->  | C58: =IF(ISNUMBER('Keramzītbetona bl.'!G15),'Keramzītbetona bl.'!C15,"") ->  | D58: =IF(ISNUMBER('Keramzītbetona bl.'!G15),'Keramzītbetona bl.'!E15,"") ->  | E58: =IF(ISNUMBER('Keramzītbetona bl.'!G15),'Keramzītbetona bl.'!G15,"") ->  | F58: =IF(ISNUMBER('Keramzītbetona bl.'!G15),'Keramzītbetona bl.'!H15,"") ->  | G58: =IF(ISTEXT('Keramzītbetona bl.'!I15),'Keramzītbetona bl.'!I15,"") -> 
A59: =IF(ISNUMBER('Keramzītbetona bl.'!G16),'Keramzītbetona bl.'!A16,"") ->  | B59: =IF(ISNUMBER('Keramzītbetona bl.'!G16),'Keramzītbetona bl.'!B16,"") ->  | C59: =IF(ISNUMBER('Keramzītbetona bl.'!G16),'Keramzītbetona bl.'!C16,"") ->  | D59: =IF(ISNUMBER('Keramzītbetona bl.'!G16),'Keramzītbetona bl.'!E16,"") ->  | E59: =IF(ISNUMBER('Keramzītbetona bl.'!G16),'Keramzītbetona bl.'!G16,"") ->  | F59: =IF(ISNUMBER('Keramzītbetona bl.'!G16),'Keramzītbetona bl.'!H16,"") ->  | G59: =IF(ISTEXT('Keramzītbetona bl.'!I16),'Keramzītbetona bl.'!I16,"") -> 
A60: =IF(ISNUMBER('Keramzītbetona bl.'!G17),'Keramzītbetona bl.'!A17,"") ->  | B60: =IF(ISNUMBER('Keramzītbetona bl.'!G17),'Keramzītbetona bl.'!B17,"") ->  | C60: =IF(ISNUMBER('Keramzītbetona bl.'!G17),'Keramzītbetona bl.'!C17,"") ->  | D60: =IF(ISNUMBER('Keramzītbetona bl.'!G17),'Keramzītbetona bl.'!E17,"") ->  | E60: =IF(ISNUMBER('Keramzītbetona bl.'!G17),'Keramzītbetona bl.'!G17,"") ->  | F60: =IF(ISNUMBER('Keramzītbetona bl.'!G17),'Keramzītbetona bl.'!H17,"") ->  | G60: =IF(ISTEXT('Keramzītbetona bl.'!I17),'Keramzītbetona bl.'!I17,"") -> 
A61: =IF(ISNUMBER('Keramzītbetona bl.'!G18),'Keramzītbetona bl.'!A18,"") ->  | B61: =IF(ISNUMBER('Keramzītbetona bl.'!G18),'Keramzītbetona bl.'!B18,"") ->  | C61: =IF(ISNUMBER('Keramzītbetona bl.'!G18),'Keramzītbetona bl.'!C18,"") ->  | D61: =IF(ISNUMBER('Keramzītbetona bl.'!G18),'Keramzītbetona bl.'!E18,"") ->  | E61: =IF(ISNUMBER('Keramzītbetona bl.'!G18),'Keramzītbetona bl.'!G18,"") ->  | F61: =IF(ISNUMBER('Keramzītbetona bl.'!G18),'Keramzītbetona bl.'!H18,"") ->  | G61: =IF(ISTEXT('Keramzītbetona bl.'!I18),'Keramzītbetona bl.'!I18,"") -> 
A62: =IF(ISNUMBER('Keramzītbetona bl.'!G19),'Keramzītbetona bl.'!A19,"") ->  | B62: =IF(ISNUMBER('Keramzītbetona bl.'!G19),'Keramzītbetona bl.'!B19,"") ->  | C62: =IF(ISNUMBER('Keramzītbetona bl.'!G19),'Keramzītbetona bl.'!C19,"") ->  | D62: =IF(ISNUMBER('Keramzītbetona bl.'!G19),'Keramzītbetona bl.'!E19,"") ->  | E62: =IF(ISNUMBER('Keramzītbetona bl.'!G19),'Keramzītbetona bl.'!G19,"") ->  | F62: =IF(ISNUMBER('Keramzītbetona bl.'!G19),'Keramzītbetona bl.'!H19,"") ->  | G62: =IF(ISTEXT('Keramzītbetona bl.'!I19),'Keramzītbetona bl.'!I19,"") -> 
A63: =IF(ISNUMBER('Keramzītbetona bl.'!G20),'Keramzītbetona bl.'!A20,"") ->  | B63: =IF(ISNUMBER('Keramzītbetona bl.'!G20),'Keramzītbetona bl.'!B20,"") ->  | C63: =IF(ISNUMBER('Keramzītbetona bl.'!G20),'Keramzītbetona bl.'!C20,"") ->  | D63: =IF(ISNUMBER('Keramzītbetona bl.'!G20),'Keramzītbetona bl.'!E20,"") ->  | E63: =IF(ISNUMBER('Keramzītbetona bl.'!G20),'Keramzītbetona bl.'!G20,"") ->  | F63: =IF(ISNUMBER('Keramzītbetona bl.'!G20),'Keramzītbetona bl.'!H20,"") ->  | G63: =IF(ISTEXT('Keramzītbetona bl.'!I20),'Keramzītbetona bl.'!I20,"") -> 
A64: =IF(ISNUMBER('Keramzītbetona bl.'!G21),'Keramzītbetona bl.'!A21,"") ->  | B64: =IF(ISNUMBER('Keramzītbetona bl.'!G21),'Keramzītbetona bl.'!B21,"") ->  | C64: =IF(ISNUMBER('Keramzītbetona bl.'!G21),'Keramzītbetona bl.'!C21,"") ->  | D64: =IF(ISNUMBER('Keramzītbetona bl.'!G21),'Keramzītbetona bl.'!E21,"") ->  | E64: =IF(ISNUMBER('Keramzītbetona bl.'!G21),'Keramzītbetona bl.'!G21,"") ->  | F64: =IF(ISNUMBER('Keramzītbetona bl.'!G21),'Keramzītbetona bl.'!H21,"") ->  | G64: =IF(ISTEXT('Keramzītbetona bl.'!I21),'Keramzītbetona bl.'!I21,"") -> 
A65: =IF(ISNUMBER('Keramzītbetona bl.'!G22),'Keramzītbetona bl.'!A22,"") ->  | B65: =IF(ISNUMBER('Keramzītbetona bl.'!G22),'Keramzītbetona bl.'!B22,"") ->  | C65: =IF(ISNUMBER('Keramzītbetona bl.'!G22),'Keramzītbetona bl.'!C22,"") ->  | D65: =IF(ISNUMBER('Keramzītbetona bl.'!G22),'Keramzītbetona bl.'!E22,"") ->  | E65: =IF(ISNUMBER('Keramzītbetona bl.'!G22),'Keramzītbetona bl.'!G22,"") ->  | F65: =IF(ISNUMBER('Keramzītbetona bl.'!G22),'Keramzītbetona bl.'!H22,"") ->  | G65: =IF(ISTEXT('Keramzītbetona bl.'!I22),'Keramzītbetona bl.'!I22,"") -> 
A66: =IF(ISNUMBER('Keramzītbetona bl.'!G23),'Keramzītbetona bl.'!A23,"") ->  | B66: =IF(ISNUMBER('Keramzītbetona bl.'!G23),'Keramzītbetona bl.'!B23,"") ->  | C66: =IF(ISNUMBER('Keramzītbetona bl.'!G23),'Keramzītbetona bl.'!C23,"") ->  | D66: =IF(ISNUMBER('Keramzītbetona bl.'!G23),'Keramzītbetona bl.'!E23,"") ->  | E66: =IF(ISNUMBER('Keramzītbetona bl.'!G23),'Keramzītbetona bl.'!G23,"") ->  | F66: =IF(ISNUMBER('Keramzītbetona bl.'!G23),'Keramzītbetona bl.'!H23,"") ->  | G66: =IF(ISTEXT('Keramzītbetona bl.'!I23),'Keramzītbetona bl.'!I23,"") -> 
A67: =IF(ISNUMBER('Keramzītbetona bl.'!G24),'Keramzītbetona bl.'!A24,"") ->  | B67: =IF(ISNUMBER('Keramzītbetona bl.'!G24),'Keramzītbetona bl.'!B24,"") ->  | C67: =IF(ISNUMBER('Keramzītbetona bl.'!G24),'Keramzītbetona bl.'!C24,"") ->  | D67: =IF(ISNUMBER('Keramzītbetona bl.'!G24),'Keramzītbetona bl.'!E24,"") ->  | E67: =IF(ISNUMBER('Keramzītbetona bl.'!G24),'Keramzītbetona bl.'!G24,"") ->  | F67: =IF(ISNUMBER('Keramzītbetona bl.'!G24),'Keramzītbetona bl.'!H24,"") ->  | G67: =IF(ISTEXT('Keramzītbetona bl.'!I24),'Keramzītbetona bl.'!I24,"") -> 
A68: =IF(ISNUMBER('Keramzītbetona bl.'!G25),'Keramzītbetona bl.'!A25,"") ->  | B68: =IF(ISNUMBER('Keramzītbetona bl.'!G25),'Keramzītbetona bl.'!B25,"") ->  | C68: =IF(ISNUMBER('Keramzītbetona bl.'!G25),'Keramzītbetona bl.'!C25,"") ->  | D68: =IF(ISNUMBER('Keramzītbetona bl.'!G25),'Keramzītbetona bl.'!E25,"") ->  | E68: =IF(ISNUMBER('Keramzītbetona bl.'!G25),'Keramzītbetona bl.'!G25,"") ->  | F68: =IF(ISNUMBER('Keramzītbetona bl.'!G25),'Keramzītbetona bl.'!H25,"") ->  | G68: =IF(ISTEXT('Keramzītbetona bl.'!I25),'Keramzītbetona bl.'!I25,"") -> 
A69: =IF(ISNUMBER('Keramzītbetona bl.'!G26),'Keramzītbetona bl.'!A26,"") ->  | B69: =IF(ISNUMBER('Keramzītbetona bl.'!G26),'Keramzītbetona bl.'!B26,"") ->  | C69: =IF(ISNUMBER('Keramzītbetona bl.'!G26),'Keramzītbetona bl.'!C26,"") ->  | D69: =IF(ISNUMBER('Keramzītbetona bl.'!G26),'Keramzītbetona bl.'!E26,"") ->  | E69: =IF(ISNUMBER('Keramzītbetona bl.'!G26),'Keramzītbetona bl.'!G26,"") ->  | F69: =IF(ISNUMBER('Keramzītbetona bl.'!G26),'Keramzītbetona bl.'!H26,"") ->  | G69: =IF(ISTEXT('Keramzītbetona bl.'!I26),'Keramzītbetona bl.'!I26,"") -> 
A70: =IF(ISNUMBER('Keramzītbetona bl.'!G27),'Keramzītbetona bl.'!A27,"") ->  | B70: =IF(ISNUMBER('Keramzītbetona bl.'!G27),'Keramzītbetona bl.'!B27,"") ->  | C70: =IF(ISNUMBER('Keramzītbetona bl.'!G27),'Keramzītbetona bl.'!C27,"") ->  | D70: =IF(ISNUMBER('Keramzītbetona bl.'!G27),'Keramzītbetona bl.'!E27,"") ->  | E70: =IF(ISNUMBER('Keramzītbetona bl.'!G27),'Keramzītbetona bl.'!G27,"") ->  | F70: =IF(ISNUMBER('Keramzītbetona bl.'!G27),'Keramzītbetona bl.'!H27,"") ->  | G70: =IF(ISTEXT('Keramzītbetona bl.'!I27),'Keramzītbetona bl.'!I27,"") -> 
A71: =IF(ISNUMBER('Keramzītbetona bl.'!G28),'Keramzītbetona bl.'!A28,"") ->  | B71: =IF(ISNUMBER('Keramzītbetona bl.'!G28),'Keramzītbetona bl.'!B28,"") ->  | C71: =IF(ISNUMBER('Keramzītbetona bl.'!G28),'Keramzītbetona bl.'!C28,"") ->  | D71: =IF(ISNUMBER('Keramzītbetona bl.'!G28),'Keramzītbetona bl.'!E28,"") ->  | E71: =IF(ISNUMBER('Keramzītbetona bl.'!G28),'Keramzītbetona bl.'!G28,"") ->  | F71: =IF(ISNUMBER('Keramzītbetona bl.'!G28),'Keramzītbetona bl.'!H28,"") ->  | G71: =IF(ISTEXT('Keramzītbetona bl.'!I28),'Keramzītbetona bl.'!I28,"") -> 
A72: =IF(ISNUMBER('Keramzītbetona bl.'!G29),'Keramzītbetona bl.'!A29,"") ->  | B72: =IF(ISNUMBER('Keramzītbetona bl.'!G29),'Keramzītbetona bl.'!B29,"") ->  | C72: =IF(ISNUMBER('Keramzītbetona bl.'!G29),'Keramzītbetona bl.'!C29,"") ->  | D72: =IF(ISNUMBER('Keramzītbetona bl.'!G29),'Keramzītbetona bl.'!E29,"") ->  | E72: =IF(ISNUMBER('Keramzītbetona bl.'!G29),'Keramzītbetona bl.'!G29,"") ->  | F72: =IF(ISNUMBER('Keramzītbetona bl.'!G29),'Keramzītbetona bl.'!H29,"") ->  | G72: =IF(ISTEXT('Keramzītbetona bl.'!I29),'Keramzītbetona bl.'!I29,"") -> 
A73: =IF(ISNUMBER('Keramzītbetona bl.'!G30),'Keramzītbetona bl.'!A30,"") ->  | B73: =IF(ISNUMBER('Keramzītbetona bl.'!G30),'Keramzītbetona bl.'!B30,"") ->  | C73: =IF(ISNUMBER('Keramzītbetona bl.'!G30),'Keramzītbetona bl.'!C30,"") ->  | D73: =IF(ISNUMBER('Keramzītbetona bl.'!G30),'Keramzītbetona bl.'!E30,"") ->  | E73: =IF(ISNUMBER('Keramzītbetona bl.'!G30),'Keramzītbetona bl.'!G30,"") ->  | F73: =IF(ISNUMBER('Keramzītbetona bl.'!G30),'Keramzītbetona bl.'!H30,"") ->  | G73: =IF(ISTEXT('Keramzītbetona bl.'!I30),'Keramzītbetona bl.'!I30,"") -> 
A74: =IF(ISNUMBER('Keramzītbetona bl.'!G31),'Keramzītbetona bl.'!A31,"") ->  | B74: =IF(ISNUMBER('Keramzītbetona bl.'!G31),'Keramzītbetona bl.'!B31,"") ->  | C74: =IF(ISNUMBER('Keramzītbetona bl.'!G31),'Keramzītbetona bl.'!C31,"") ->  | D74: =IF(ISNUMBER('Keramzītbetona bl.'!G31),'Keramzītbetona bl.'!E31,"") ->  | E74: =IF(ISNUMBER('Keramzītbetona bl.'!G31),'Keramzītbetona bl.'!G31,"") ->  | F74: =IF(ISNUMBER('Keramzītbetona bl.'!G31),'Keramzītbetona bl.'!H31,"") ->  | G74: =IF(ISTEXT('Keramzītbetona bl.'!I31),'Keramzītbetona bl.'!I31,"") -> 
A75: =IF(ISNUMBER('Keramzītbetona bl.'!G32),'Keramzītbetona bl.'!A32,"") ->  | B75: =IF(ISNUMBER('Keramzītbetona bl.'!G32),'Keramzītbetona bl.'!B32,"") ->  | C75: =IF(ISNUMBER('Keramzītbetona bl.'!G32),'Keramzītbetona bl.'!C32,"") ->  | D75: =IF(ISNUMBER('Keramzītbetona bl.'!G32),'Keramzītbetona bl.'!E32,"") ->  | E75: =IF(ISNUMBER('Keramzītbetona bl.'!G32),'Keramzītbetona bl.'!G32,"") ->  | F75: =IF(ISNUMBER('Keramzītbetona bl.'!G32),'Keramzītbetona bl.'!H32,"") ->  | G75: =IF(ISTEXT('Keramzītbetona bl.'!I32),'Keramzītbetona bl.'!I32,"") -> 
A76: =IF(ISNUMBER('Keramzītbetona bl.'!G33),'Keramzītbetona bl.'!A33,"") ->  | B76: =IF(ISNUMBER('Keramzītbetona bl.'!G33),'Keramzītbetona bl.'!B33,"") ->  | C76: =IF(ISNUMBER('Keramzītbetona bl.'!G33),'Keramzītbetona bl.'!C33,"") ->  | D76: =IF(ISNUMBER('Keramzītbetona bl.'!G33),'Keramzītbetona bl.'!E33,"") ->  | E76: =IF(ISNUMBER('Keramzītbetona bl.'!G33),'Keramzītbetona bl.'!G33,"") ->  | F76: =IF(ISNUMBER('Keramzītbetona bl.'!G33),'Keramzītbetona bl.'!H33,"") ->  | G76: =IF(ISTEXT('Keramzītbetona bl.'!I33),'Keramzītbetona bl.'!I33,"") -> 
A77: =IF(ISNUMBER('Keramzītbetona bl.'!G34),'Keramzītbetona bl.'!A34,"") ->  | B77: =IF(ISNUMBER('Keramzītbetona bl.'!G34),'Keramzītbetona bl.'!B34,"") ->  | C77: =IF(ISNUMBER('Keramzītbetona bl.'!G34),'Keramzītbetona bl.'!C34,"") ->  | D77: =IF(ISNUMBER('Keramzītbetona bl.'!G34),'Keramzītbetona bl.'!E34,"") ->  | E77: =IF(ISNUMBER('Keramzītbetona bl.'!G34),'Keramzītbetona bl.'!G34,"") ->  | F77: =IF(ISNUMBER('Keramzītbetona bl.'!G34),'Keramzītbetona bl.'!H34,"") ->  | G77: =IF(ISTEXT('Keramzītbetona bl.'!I34),'Keramzītbetona bl.'!I34,"") -> 
A78: =IF(ISNUMBER('Keramzītbetona bl.'!G35),'Keramzītbetona bl.'!A35,"") ->  | B78: =IF(ISNUMBER('Keramzītbetona bl.'!G35),'Keramzītbetona bl.'!B35,"") ->  | C78: =IF(ISNUMBER('Keramzītbetona bl.'!G35),'Keramzītbetona bl.'!C35,"") ->  | D78: =IF(ISNUMBER('Keramzītbetona bl.'!G35),'Keramzītbetona bl.'!E35,"") ->  | E78: =IF(ISNUMBER('Keramzītbetona bl.'!G35),'Keramzītbetona bl.'!G35,"") ->  | F78: =IF(ISNUMBER('Keramzītbetona bl.'!G35),'Keramzītbetona bl.'!H35,"") ->  | G78: =IF(ISTEXT('Keramzītbetona bl.'!I35),'Keramzītbetona bl.'!I35,"") -> 
A79: =IF(ISNUMBER('Keramzītbetona bl.'!G36),'Keramzītbetona bl.'!A36,"") ->  | B79: =IF(ISNUMBER('Keramzītbetona bl.'!G36),'Keramzītbetona bl.'!B36,"") ->  | C79: =IF(ISNUMBER('Keramzītbetona bl.'!G36),'Keramzītbetona bl.'!C36,"") ->  | D79: =IF(ISNUMBER('Keramzītbetona bl.'!G36),'Keramzītbetona bl.'!E36,"") ->  | E79: =IF(ISNUMBER('Keramzītbetona bl.'!G36),'Keramzītbetona bl.'!G36,"") ->  | F79: =IF(ISNUMBER('Keramzītbetona bl.'!G36),'Keramzītbetona bl.'!H36,"") ->  | G79: =IF(ISTEXT('Keramzītbetona bl.'!I36),'Keramzītbetona bl.'!I36,"") -> 
A80: =IF(ISNUMBER('Keramzītbetona bl.'!G37),'Keramzītbetona bl.'!A37,"") ->  | B80: =IF(ISNUMBER('Keramzītbetona bl.'!G37),'Keramzītbetona bl.'!B37,"") ->  | C80: =IF(ISNUMBER('Keramzītbetona bl.'!G37),'Keramzītbetona bl.'!C37,"") ->  | D80: =IF(ISNUMBER('Keramzītbetona bl.'!G37),'Keramzītbetona bl.'!E37,"") ->  | E80: =IF(ISNUMBER('Keramzītbetona bl.'!G37),'Keramzītbetona bl.'!G37,"") ->  | F80: =IF(ISNUMBER('Keramzītbetona bl.'!G37),'Keramzītbetona bl.'!H37,"") ->  | G80: =IF(ISTEXT('Keramzītbetona bl.'!I37),'Keramzītbetona bl.'!I37,"") ->  | H80: =IF(ISNUMBER(E80),"yes","") -> 
A81: =IF(ISNUMBER('Keramzītbetona bl.'!G38),'Keramzītbetona bl.'!A38,"") ->  | B81: =IF(ISNUMBER('Keramzītbetona bl.'!G38),'Keramzītbetona bl.'!B38,"") ->  | C81: =IF(ISNUMBER('Keramzītbetona bl.'!G38),'Keramzītbetona bl.'!C38,"") ->  | D81: =IF(ISNUMBER('Keramzītbetona bl.'!G39),'Keramzītbetona bl.'!F39,"") ->  | E81: =IF(ISNUMBER('Keramzītbetona bl.'!G38),'Keramzītbetona bl.'!G38,"") ->  | F81: =IF(ISNUMBER('Keramzītbetona bl.'!G38),'Keramzītbetona bl.'!H38,"") ->  | G81: =IF(ISTEXT('Keramzītbetona bl.'!I38),'Keramzītbetona bl.'!I38,"") -> 
A83: =IF(ISNUMBER('Inertie mat.'!E4),'Inertie mat.'!A4,"") ->  | B83: =IF(ISNUMBER('Inertie mat.'!E4),'Inertie mat.'!B4,"") ->  | C83: =IF(ISNUMBER('Inertie mat.'!E4),'Inertie mat.'!C4,"") ->  | D83: =IF(ISNUMBER('Inertie mat.'!E4),'Inertie mat.'!D4,"") ->  | E83: =IF(ISNUMBER('Inertie mat.'!E4),'Inertie mat.'!E4,"") ->  | F83: =IF(ISNUMBER('Inertie mat.'!E4),'Inertie mat.'!F4,"") ->  | G83: =IF(ISTEXT('Inertie mat.'!G4),'Inertie mat.'!G4,"") -> 
A84: =IF(ISNUMBER('Inertie mat.'!E5),'Inertie mat.'!A5,"") ->  | B84: =IF(ISNUMBER('Inertie mat.'!E5),'Inertie mat.'!B5,"") ->  | C84: =IF(ISNUMBER('Inertie mat.'!E5),'Inertie mat.'!C5,"") ->  | D84: =IF(ISNUMBER('Inertie mat.'!E5),'Inertie mat.'!D5,"") ->  | E84: =IF(ISNUMBER('Inertie mat.'!E5),'Inertie mat.'!E5,"") ->  | F84: =IF(ISNUMBER('Inertie mat.'!E5),'Inertie mat.'!F5,"") ->  | G84: =IF(ISTEXT('Inertie mat.'!G5),'Inertie mat.'!G5,"") -> 
A85: =IF(ISNUMBER('Inertie mat.'!E6),'Inertie mat.'!A6,"") ->  | B85: =IF(ISNUMBER('Inertie mat.'!E6),'Inertie mat.'!B6,"") ->  | C85: =IF(ISNUMBER('Inertie mat.'!E6),'Inertie mat.'!C6,"") ->  | D85: =IF(ISNUMBER('Inertie mat.'!E6),'Inertie mat.'!D6,"") ->  | E85: =IF(ISNUMBER('Inertie mat.'!E6),'Inertie mat.'!E6,"") ->  | F85: =IF(ISNUMBER('Inertie mat.'!E6),'Inertie mat.'!F6,"") ->  | G85: =IF(ISTEXT('Inertie mat.'!G6),'Inertie mat.'!G6,"") -> 
A86: =IF(ISNUMBER('Inertie mat.'!E7),'Inertie mat.'!A7,"") ->  | B86: =IF(ISNUMBER('Inertie mat.'!E7),'Inertie mat.'!B7,"") ->  | C86: =IF(ISNUMBER('Inertie mat.'!E7),'Inertie mat.'!C7,"") ->  | D86: =IF(ISNUMBER('Inertie mat.'!E7),'Inertie mat.'!D7,"") ->  | E86: =IF(ISNUMBER('Inertie mat.'!E7),'Inertie mat.'!E7,"") ->  | F86: =IF(ISNUMBER('Inertie mat.'!E7),'Inertie mat.'!F7,"") ->  | G86: =IF(ISTEXT('Inertie mat.'!G7),'Inertie mat.'!G7,"") -> 
A87: =IF(ISNUMBER('Inertie mat.'!E8),'Inertie mat.'!A8,"") ->  | B87: =IF(ISNUMBER('Inertie mat.'!E8),'Inertie mat.'!B8,"") ->  | C87: =IF(ISNUMBER('Inertie mat.'!E8),'Inertie mat.'!C8,"") ->  | D87: =IF(ISNUMBER('Inertie mat.'!E8),'Inertie mat.'!D8,"") ->  | E87: =IF(ISNUMBER('Inertie mat.'!E8),'Inertie mat.'!E8,"") ->  | F87: =IF(ISNUMBER('Inertie mat.'!E8),'Inertie mat.'!F8,"") ->  | G87: =IF(ISTEXT('Inertie mat.'!G8),'Inertie mat.'!G8,"") -> 
A88: =IF(ISNUMBER('Inertie mat.'!E9),'Inertie mat.'!A9,"") ->  | B88: =IF(ISNUMBER('Inertie mat.'!E9),'Inertie mat.'!B9,"") ->  | C88: =IF(ISNUMBER('Inertie mat.'!E9),'Inertie mat.'!C9,"") ->  | D88: =IF(ISNUMBER('Inertie mat.'!E9),'Inertie mat.'!D9,"") ->  | E88: =IF(ISNUMBER('Inertie mat.'!E9),'Inertie mat.'!E9,"") ->  | F88: =IF(ISNUMBER('Inertie mat.'!E9),'Inertie mat.'!F9,"") ->  | G88: =IF(ISTEXT('Inertie mat.'!G9),'Inertie mat.'!G9,"") -> 
A89: =IF(ISNUMBER('Inertie mat.'!E10),'Inertie mat.'!A10,"") ->  | B89: =IF(ISNUMBER('Inertie mat.'!E10),'Inertie mat.'!B10,"") ->  | C89: =IF(ISNUMBER('Inertie mat.'!E10),'Inertie mat.'!C10,"") ->  | D89: =IF(ISNUMBER('Inertie mat.'!E10),'Inertie mat.'!D10,"") ->  | E89: =IF(ISNUMBER('Inertie mat.'!E10),'Inertie mat.'!E10,"") ->  | F89: =IF(ISNUMBER('Inertie mat.'!E10),'Inertie mat.'!F10,"") ->  | G89: =IF(ISTEXT('Inertie mat.'!G10),'Inertie mat.'!G10,"") -> 
A90: =IF(ISNUMBER('Inertie mat.'!E11),'Inertie mat.'!A11,"") ->  | B90: =IF(ISNUMBER('Inertie mat.'!E11),'Inertie mat.'!B11,"") ->  | C90: =IF(ISNUMBER('Inertie mat.'!E11),'Inertie mat.'!C11,"") ->  | D90: =IF(ISNUMBER('Inertie mat.'!E11),'Inertie mat.'!D11,"") ->  | E90: =IF(ISNUMBER('Inertie mat.'!E11),'Inertie mat.'!E11,"") ->  | F90: =IF(ISNUMBER('Inertie mat.'!E11),'Inertie mat.'!F11,"") ->  | G90: =IF(ISTEXT('Inertie mat.'!G11),'Inertie mat.'!G11,"") -> 
A91: =IF(ISNUMBER('Inertie mat.'!E12),'Inertie mat.'!A12,"") ->  | B91: =IF(ISNUMBER('Inertie mat.'!E12),'Inertie mat.'!B12,"") ->  | C91: =IF(ISNUMBER('Inertie mat.'!E12),'Inertie mat.'!C12,"") ->  | D91: =IF(ISNUMBER('Inertie mat.'!E12),'Inertie mat.'!D12,"") ->  | E91: =IF(ISNUMBER('Inertie mat.'!E12),'Inertie mat.'!E12,"") ->  | F91: =IF(ISNUMBER('Inertie mat.'!E12),'Inertie mat.'!F12,"") ->  | G91: =IF(ISTEXT('Inertie mat.'!G12),'Inertie mat.'!G12,"") -> 
A92: =IF(ISNUMBER('Inertie mat.'!E13),'Inertie mat.'!A13,"") ->  | B92: =IF(ISNUMBER('Inertie mat.'!E13),'Inertie mat.'!B13,"") ->  | C92: =IF(ISNUMBER('Inertie mat.'!E13),'Inertie mat.'!C13,"") ->  | D92: =IF(ISNUMBER('Inertie mat.'!E13),'Inertie mat.'!D13,"") ->  | E92: =IF(ISNUMBER('Inertie mat.'!E13),'Inertie mat.'!E13,"") ->  | F92: =IF(ISNUMBER('Inertie mat.'!E13),'Inertie mat.'!F13,"") ->  | G92: =IF(ISTEXT('Inertie mat.'!G13),'Inertie mat.'!G13,"") -> 
A93: =IF(ISNUMBER('Inertie mat.'!E14),'Inertie mat.'!A14,"") ->  | B93: =IF(ISNUMBER('Inertie mat.'!E14),'Inertie mat.'!B14,"") ->  | C93: =IF(ISNUMBER('Inertie mat.'!E14),'Inertie mat.'!C14,"") ->  | D93: =IF(ISNUMBER('Inertie mat.'!E14),'Inertie mat.'!D14,"") ->  | E93: =IF(ISNUMBER('Inertie mat.'!E14),'Inertie mat.'!E14,"") ->  | F93: =IF(ISNUMBER('Inertie mat.'!E14),'Inertie mat.'!F14,"") ->  | G93: =IF(ISTEXT('Inertie mat.'!G14),'Inertie mat.'!G14,"") -> 
A94: =IF(ISNUMBER('Inertie mat.'!E15),'Inertie mat.'!A15,"") ->  | B94: =IF(ISNUMBER('Inertie mat.'!E15),'Inertie mat.'!B15,"") ->  | C94: =IF(ISNUMBER('Inertie mat.'!E15),'Inertie mat.'!C15,"") ->  | D94: =IF(ISNUMBER('Inertie mat.'!E15),'Inertie mat.'!D15,"") ->  | E94: =IF(ISNUMBER('Inertie mat.'!E15),'Inertie mat.'!E15,"") ->  | F94: =IF(ISNUMBER('Inertie mat.'!E15),'Inertie mat.'!F15,"") ->  | G94: =IF(ISTEXT('Inertie mat.'!G15),'Inertie mat.'!G15,"") -> 
A95: =IF(ISNUMBER('Inertie mat.'!E16),'Inertie mat.'!A16,"") ->  | B95: =IF(ISNUMBER('Inertie mat.'!E16),'Inertie mat.'!B16,"") ->  | C95: =IF(ISNUMBER('Inertie mat.'!E16),'Inertie mat.'!C16,"") ->  | D95: =IF(ISNUMBER('Inertie mat.'!E16),'Inertie mat.'!D16,"") ->  | E95: =IF(ISNUMBER('Inertie mat.'!E16),'Inertie mat.'!E16,"") ->  | F95: =IF(ISNUMBER('Inertie mat.'!E16),'Inertie mat.'!F16,"") ->  | G95: =IF(ISTEXT('Inertie mat.'!G16),'Inertie mat.'!G16,"") -> 
A96: =IF(ISNUMBER('Inertie mat.'!E17),'Inertie mat.'!A17,"") ->  | B96: =IF(ISNUMBER('Inertie mat.'!E17),'Inertie mat.'!B17,"") ->  | C96: =IF(ISNUMBER('Inertie mat.'!E17),'Inertie mat.'!C17,"") ->  | D96: =IF(ISNUMBER('Inertie mat.'!E17),'Inertie mat.'!D17,"") ->  | E96: =IF(ISNUMBER('Inertie mat.'!E17),'Inertie mat.'!E17,"") ->  | F96: =IF(ISNUMBER('Inertie mat.'!E17),'Inertie mat.'!F17,"") ->  | G96: =IF(ISTEXT('Inertie mat.'!G17),'Inertie mat.'!G17,"") -> 
A97: =IF(ISNUMBER('Inertie mat.'!E18),'Inertie mat.'!A18,"") ->  | B97: =IF(ISNUMBER('Inertie mat.'!E18),'Inertie mat.'!B18,"") ->  | C97: =IF(ISNUMBER('Inertie mat.'!E18),'Inertie mat.'!C18,"") ->  | D97: =IF(ISNUMBER('Inertie mat.'!E18),'Inertie mat.'!D18,"") ->  | E97: =IF(ISNUMBER('Inertie mat.'!E18),'Inertie mat.'!E18,"") ->  | F97: =IF(ISNUMBER('Inertie mat.'!E18),'Inertie mat.'!F18,"") ->  | G97: =IF(ISTEXT('Inertie mat.'!G18),'Inertie mat.'!G18,"") -> 
A98: =IF(ISNUMBER('Inertie mat.'!E19),'Inertie mat.'!A19,"") ->  | B98: =IF(ISNUMBER('Inertie mat.'!E19),'Inertie mat.'!B19,"") ->  | C98: =IF(ISNUMBER('Inertie mat.'!E19),'Inertie mat.'!C19,"") ->  | D98: =IF(ISNUMBER('Inertie mat.'!E19),'Inertie mat.'!D19,"") ->  | E98: =IF(ISNUMBER('Inertie mat.'!E19),'Inertie mat.'!E19,"") ->  | F98: =IF(ISNUMBER('Inertie mat.'!E19),'Inertie mat.'!F19,"") ->  | G98: =IF(ISTEXT('Inertie mat.'!G19),'Inertie mat.'!G19,"") -> 
A99: =IF(ISNUMBER('Inertie mat.'!E20),'Inertie mat.'!A20,"") ->  | B99: =IF(ISNUMBER('Inertie mat.'!E20),'Inertie mat.'!B20,"") ->  | C99: =IF(ISNUMBER('Inertie mat.'!E20),'Inertie mat.'!C20,"") ->  | D99: =IF(ISNUMBER('Inertie mat.'!E20),'Inertie mat.'!D20,"") ->  | E99: =IF(ISNUMBER('Inertie mat.'!E20),'Inertie mat.'!E20,"") ->  | F99: =IF(ISNUMBER('Inertie mat.'!E20),'Inertie mat.'!F20,"") ->  | G99: =IF(ISTEXT('Inertie mat.'!G20),'Inertie mat.'!G20,"") -> 
A100: =IF(ISNUMBER('Inertie mat.'!E21),'Inertie mat.'!A21,"") ->  | B100: =IF(ISNUMBER('Inertie mat.'!E21),'Inertie mat.'!B21,"") ->  | C100: =IF(ISNUMBER('Inertie mat.'!E21),'Inertie mat.'!C21,"") ->  | D100: =IF(ISNUMBER('Inertie mat.'!E21),'Inertie mat.'!D21,"") ->  | E100: =IF(ISNUMBER('Inertie mat.'!E21),'Inertie mat.'!E21,"") ->  | F100: =IF(ISNUMBER('Inertie mat.'!E21),'Inertie mat.'!F21,"") ->  | G100: =IF(ISTEXT('Inertie mat.'!G21),'Inertie mat.'!G21,"") -> 
A101: =IF(ISNUMBER('Inertie mat.'!E22),'Inertie mat.'!A22,"") ->  | B101: =IF(ISNUMBER('Inertie mat.'!E22),'Inertie mat.'!B22,"") ->  | C101: =IF(ISNUMBER('Inertie mat.'!E22),'Inertie mat.'!C22,"") ->  | D101: =IF(ISNUMBER('Inertie mat.'!E22),'Inertie mat.'!D22,"") ->  | E101: =IF(ISNUMBER('Inertie mat.'!E22),'Inertie mat.'!E22,"") ->  | F101: =IF(ISNUMBER('Inertie mat.'!E22),'Inertie mat.'!F22,"") ->  | G101: =IF(ISTEXT('Inertie mat.'!G22),'Inertie mat.'!G22,"") -> 
A102: =IF(ISNUMBER('Inertie mat.'!E23),'Inertie mat.'!A23,"") ->  | B102: =IF(ISNUMBER('Inertie mat.'!E23),'Inertie mat.'!B23,"") ->  | C102: =IF(ISNUMBER('Inertie mat.'!E23),'Inertie mat.'!C23,"") ->  | D102: =IF(ISNUMBER('Inertie mat.'!E23),'Inertie mat.'!D23,"") ->  | E102: =IF(ISNUMBER('Inertie mat.'!E23),'Inertie mat.'!E23,"") ->  | F102: =IF(ISNUMBER('Inertie mat.'!E23),'Inertie mat.'!F23,"") ->  | G102: =IF(ISTEXT('Inertie mat.'!G23),'Inertie mat.'!G23,"") -> 
A103: =IF(ISNUMBER('Inertie mat.'!E24),'Inertie mat.'!A24,"") ->  | B103: =IF(ISNUMBER('Inertie mat.'!E24),'Inertie mat.'!B24,"") ->  | C103: =IF(ISNUMBER('Inertie mat.'!E24),'Inertie mat.'!C24,"") ->  | D103: =IF(ISNUMBER('Inertie mat.'!E24),'Inertie mat.'!D24,"") ->  | E103: =IF(ISNUMBER('Inertie mat.'!E24),'Inertie mat.'!E24,"") ->  | F103: =IF(ISNUMBER('Inertie mat.'!E24),'Inertie mat.'!F24,"") ->  | G103: =IF(ISTEXT('Inertie mat.'!G24),'Inertie mat.'!G24,"") -> 
A104: =IF(ISNUMBER('Inertie mat.'!E25),'Inertie mat.'!A25,"") ->  | B104: =IF(ISNUMBER('Inertie mat.'!E25),'Inertie mat.'!B25,"") ->  | C104: =IF(ISNUMBER('Inertie mat.'!E25),'Inertie mat.'!C25,"") ->  | D104: =IF(ISNUMBER('Inertie mat.'!E25),'Inertie mat.'!D25,"") ->  | E104: =IF(ISNUMBER('Inertie mat.'!E25),'Inertie mat.'!E25,"") ->  | F104: =IF(ISNUMBER('Inertie mat.'!E25),'Inertie mat.'!F25,"") ->  | G104: =IF(ISTEXT('Inertie mat.'!G25),'Inertie mat.'!G25,"") -> 
A105: =IF(ISNUMBER('Inertie mat.'!E26),'Inertie mat.'!A26,"") ->  | B105: =IF(ISNUMBER('Inertie mat.'!E26),'Inertie mat.'!B26,"") ->  | C105: =IF(ISNUMBER('Inertie mat.'!E26),'Inertie mat.'!C26,"") ->  | D105: =IF(ISNUMBER('Inertie mat.'!E26),'Inertie mat.'!D26,"") ->  | E105: =IF(ISNUMBER('Inertie mat.'!E26),'Inertie mat.'!E26,"") ->  | F105: =IF(ISNUMBER('Inertie mat.'!E26),'Inertie mat.'!F26,"") ->  | G105: =IF(ISTEXT('Inertie mat.'!G26),'Inertie mat.'!G26,"") -> 
A106: =IF(ISNUMBER('Inertie mat.'!E27),'Inertie mat.'!A27,"") ->  | B106: =IF(ISNUMBER('Inertie mat.'!E27),'Inertie mat.'!B27,"") ->  | C106: =IF(ISNUMBER('Inertie mat.'!E27),'Inertie mat.'!C27,"") ->  | D106: =IF(ISNUMBER('Inertie mat.'!E27),'Inertie mat.'!D27,"") ->  | E106: =IF(ISNUMBER('Inertie mat.'!E27),'Inertie mat.'!E27,"") ->  | F106: =IF(ISNUMBER('Inertie mat.'!E27),'Inertie mat.'!F27,"") ->  | G106: =IF(ISTEXT('Inertie mat.'!G27),'Inertie mat.'!G27,"") -> 
A107: =IF(ISNUMBER('Inertie mat.'!E28),'Inertie mat.'!A28,"") ->  | B107: =IF(ISNUMBER('Inertie mat.'!E28),'Inertie mat.'!B28,"") ->  | C107: =IF(ISNUMBER('Inertie mat.'!E28),'Inertie mat.'!C28,"") ->  | D107: =IF(ISNUMBER('Inertie mat.'!E28),'Inertie mat.'!D28,"") ->  | E107: =IF(ISNUMBER('Inertie mat.'!E28),'Inertie mat.'!E28,"") ->  | F107: =IF(ISNUMBER('Inertie mat.'!E28),'Inertie mat.'!F28,"") ->  | G107: =IF(ISTEXT('Inertie mat.'!G28),'Inertie mat.'!G28,"") -> 
A108: =IF(ISNUMBER('Inertie mat.'!E29),'Inertie mat.'!A29,"") ->  | B108: =IF(ISNUMBER('Inertie mat.'!E29),'Inertie mat.'!B29,"") ->  | C108: =IF(ISNUMBER('Inertie mat.'!E29),'Inertie mat.'!C29,"") ->  | D108: =IF(ISNUMBER('Inertie mat.'!E29),'Inertie mat.'!D29,"") ->  | E108: =IF(ISNUMBER('Inertie mat.'!E29),'Inertie mat.'!E29,"") ->  | F108: =IF(ISNUMBER('Inertie mat.'!E29),'Inertie mat.'!F29,"") ->  | G108: =IF(ISTEXT('Inertie mat.'!G29),'Inertie mat.'!G29,"") -> 
A109: =IF(ISNUMBER('Inertie mat.'!E30),'Inertie mat.'!A30,"") ->  | B109: =IF(ISNUMBER('Inertie mat.'!E30),'Inertie mat.'!B30,"") ->  | C109: =IF(ISNUMBER('Inertie mat.'!E30),'Inertie mat.'!C30,"") ->  | D109: =IF(ISNUMBER('Inertie mat.'!E30),'Inertie mat.'!D30,"") ->  | E109: =IF(ISNUMBER('Inertie mat.'!E30),'Inertie mat.'!E30,"") ->  | F109: =IF(ISNUMBER('Inertie mat.'!E30),'Inertie mat.'!F30,"") ->  | G109: =IF(ISTEXT('Inertie mat.'!G30),'Inertie mat.'!G30,"") -> 
A110: =IF(ISNUMBER('Inertie mat.'!E31),'Inertie mat.'!A31,"") ->  | B110: =IF(ISNUMBER('Inertie mat.'!E31),'Inertie mat.'!B31,"") ->  | C110: =IF(ISNUMBER('Inertie mat.'!E31),'Inertie mat.'!C31,"") ->  | D110: =IF(ISNUMBER('Inertie mat.'!E31),'Inertie mat.'!D31,"") ->  | E110: =IF(ISNUMBER('Inertie mat.'!E31),'Inertie mat.'!E31,"") ->  | F110: =IF(ISNUMBER('Inertie mat.'!E31),'Inertie mat.'!F31,"") ->  | G110: =IF(ISTEXT('Inertie mat.'!G31),'Inertie mat.'!G31,"") -> 
A111: =IF(ISNUMBER('Inertie mat.'!E32),'Inertie mat.'!A32,"") ->  | B111: =IF(ISNUMBER('Inertie mat.'!E32),'Inertie mat.'!B32,"") ->  | C111: =IF(ISNUMBER('Inertie mat.'!E32),'Inertie mat.'!C32,"") ->  | D111: =IF(ISNUMBER('Inertie mat.'!E32),'Inertie mat.'!D32,"") ->  | E111: =IF(ISNUMBER('Inertie mat.'!E32),'Inertie mat.'!E32,"") ->  | F111: =IF(ISNUMBER('Inertie mat.'!E32),'Inertie mat.'!F32,"") ->  | G111: =IF(ISTEXT('Inertie mat.'!G32),'Inertie mat.'!G32,"") ->  | H111: =IF(ISNUMBER(E111),"yes","") -> 
A112: =IF(ISNUMBER('Inertie mat.'!E33),'Inertie mat.'!A33,"") ->  | B112: =IF(ISNUMBER('Inertie mat.'!E33),'Inertie mat.'!B33,"") ->  | C112: =IF(ISNUMBER('Inertie mat.'!E33),'Inertie mat.'!C33,"") ->  | D112: =IF(ISNUMBER('Inertie mat.'!E33),'Inertie mat.'!D33,"") ->  | E112: =IF(ISNUMBER('Inertie mat.'!E33),'Inertie mat.'!E33,"") ->  | F112: =IF(ISNUMBER('Inertie mat.'!E33),'Inertie mat.'!F33,"") ->  | G112: =IF(ISTEXT('Inertie mat.'!G33),'Inertie mat.'!G33,"") -> 
A113: =IF(ISNUMBER('Inertie mat.'!E34),'Inertie mat.'!A34,"") ->  | B113: =IF(ISNUMBER('Inertie mat.'!E34),'Inertie mat.'!B34,"") ->  | C113: =IF(ISNUMBER('Inertie mat.'!E34),'Inertie mat.'!C34,"") ->  | D113: =IF(ISNUMBER('Inertie mat.'!E34),'Inertie mat.'!D34,"") ->  | E113: =IF(ISNUMBER('Inertie mat.'!E34),'Inertie mat.'!E34,"") ->  | F113: =IF(ISNUMBER('Inertie mat.'!E34),'Inertie mat.'!F34,"") ->  | G113: =IF(ISTEXT('Inertie mat.'!G34),'Inertie mat.'!G34,"") -> 
A116: =IF(ISNUMBER('Jumta seg.'!G4),'Jumta seg.'!A4,"") ->  | B116: =IF(ISNUMBER('Jumta seg.'!G4),'Jumta seg.'!B4,"") ->  | C116: =IF(ISNUMBER('Jumta seg.'!G4),'Jumta seg.'!C4,"") ->  | D116: =IF(ISNUMBER('Jumta seg.'!G4),'Jumta seg.'!E4,"") ->  | E116: =IF(ISNUMBER('Jumta seg.'!G4),'Jumta seg.'!G4,"") ->  | F116: =IF(ISNUMBER('Jumta seg.'!G4),'Jumta seg.'!H4,"") ->  | G116: =IF(ISTEXT('Jumta seg.'!I4),'Jumta seg.'!I4,"") -> 
A117: =IF(ISNUMBER('Jumta seg.'!G5),'Jumta seg.'!A5,"") ->  | B117: =IF(ISNUMBER('Jumta seg.'!G5),'Jumta seg.'!B5,"") ->  | C117: =IF(ISNUMBER('Jumta seg.'!G5),'Jumta seg.'!C5,"") ->  | D117: =IF(ISNUMBER('Jumta seg.'!G5),'Jumta seg.'!E5,"") ->  | E117: =IF(ISNUMBER('Jumta seg.'!G5),'Jumta seg.'!G5,"") ->  | F117: =IF(ISNUMBER('Jumta seg.'!G5),'Jumta seg.'!H5,"") ->  | G117: =IF(ISTEXT('Jumta seg.'!I5),'Jumta seg.'!I5,"") -> 
A118: =IF(ISNUMBER('Jumta seg.'!G6),'Jumta seg.'!A6,"") ->  | B118: =IF(ISNUMBER('Jumta seg.'!G6),'Jumta seg.'!B6,"") ->  | C118: =IF(ISNUMBER('Jumta seg.'!G6),'Jumta seg.'!C6,"") ->  | D118: =IF(ISNUMBER('Jumta seg.'!G6),'Jumta seg.'!E6,"") ->  | E118: =IF(ISNUMBER('Jumta seg.'!G6),'Jumta seg.'!G6,"") ->  | F118: =IF(ISNUMBER('Jumta seg.'!G6),'Jumta seg.'!H6,"") ->  | G118: =IF(ISTEXT('Jumta seg.'!I6),'Jumta seg.'!I6,"") -> 
A119: =IF(ISNUMBER('Jumta seg.'!G7),'Jumta seg.'!A7,"") ->  | B119: =IF(ISNUMBER('Jumta seg.'!G7),'Jumta seg.'!B7,"") ->  | C119: =IF(ISNUMBER('Jumta seg.'!G7),'Jumta seg.'!C7,"") ->  | D119: =IF(ISNUMBER('Jumta seg.'!G7),'Jumta seg.'!E7,"") ->  | E119: =IF(ISNUMBER('Jumta seg.'!G7),'Jumta seg.'!G7,"") ->  | F119: =IF(ISNUMBER('Jumta seg.'!G7),'Jumta seg.'!H7,"") ->  | G119: =IF(ISTEXT('Jumta seg.'!I7),'Jumta seg.'!I7,"") -> 
A120: =IF(ISNUMBER('Jumta seg.'!G8),'Jumta seg.'!A8,"") ->  | B120: =IF(ISNUMBER('Jumta seg.'!G8),'Jumta seg.'!B8,"") ->  | C120: =IF(ISNUMBER('Jumta seg.'!G8),'Jumta seg.'!C8,"") ->  | D120: =IF(ISNUMBER('Jumta seg.'!G8),'Jumta seg.'!E8,"") ->  | E120: =IF(ISNUMBER('Jumta seg.'!G8),'Jumta seg.'!G8,"") ->  | F120: =IF(ISNUMBER('Jumta seg.'!G8),'Jumta seg.'!H8,"") ->  | G120: =IF(ISTEXT('Jumta seg.'!I8),'Jumta seg.'!I8,"") -> 
A121: =IF(ISNUMBER('Jumta seg.'!G9),'Jumta seg.'!A9,"") ->  | B121: =IF(ISNUMBER('Jumta seg.'!G9),'Jumta seg.'!B9,"") ->  | C121: =IF(ISNUMBER('Jumta seg.'!G9),'Jumta seg.'!C9,"") ->  | D121: =IF(ISNUMBER('Jumta seg.'!G9),'Jumta seg.'!E9,"") ->  | E121: =IF(ISNUMBER('Jumta seg.'!G9),'Jumta seg.'!G9,"") ->  | F121: =IF(ISNUMBER('Jumta seg.'!G9),'Jumta seg.'!H9,"") ->  | G121: =IF(ISTEXT('Jumta seg.'!I9),'Jumta seg.'!I9,"") -> 
A122: =IF(ISNUMBER('Jumta seg.'!G10),'Jumta seg.'!A10,"") ->  | B122: =IF(ISNUMBER('Jumta seg.'!G10),'Jumta seg.'!B10,"") ->  | C122: =IF(ISNUMBER('Jumta seg.'!G10),'Jumta seg.'!C10,"") ->  | D122: =IF(ISNUMBER('Jumta seg.'!G10),'Jumta seg.'!E10,"") ->  | E122: =IF(ISNUMBER('Jumta seg.'!G10),'Jumta seg.'!G10,"") ->  | F122: =IF(ISNUMBER('Jumta seg.'!G10),'Jumta seg.'!H10,"") ->  | G122: =IF(ISTEXT('Jumta seg.'!I10),'Jumta seg.'!I10,"") -> 
A123: =IF(ISNUMBER('Jumta seg.'!G11),'Jumta seg.'!A11,"") ->  | B123: =IF(ISNUMBER('Jumta seg.'!G11),'Jumta seg.'!B11,"") ->  | C123: =IF(ISNUMBER('Jumta seg.'!G11),'Jumta seg.'!C11,"") ->  | D123: =IF(ISNUMBER('Jumta seg.'!G11),'Jumta seg.'!E11,"") ->  | E123: =IF(ISNUMBER('Jumta seg.'!G11),'Jumta seg.'!G11,"") ->  | F123: =IF(ISNUMBER('Jumta seg.'!G11),'Jumta seg.'!H11,"") ->  | G123: =IF(ISTEXT('Jumta seg.'!I11),'Jumta seg.'!I11,"") -> 
A124: =IF(ISNUMBER('Jumta seg.'!G12),'Jumta seg.'!A12,"") ->  | B124: =IF(ISNUMBER('Jumta seg.'!G12),'Jumta seg.'!B12,"") ->  | C124: =IF(ISNUMBER('Jumta seg.'!G12),'Jumta seg.'!C12,"") ->  | D124: =IF(ISNUMBER('Jumta seg.'!G12),'Jumta seg.'!E12,"") ->  | E124: =IF(ISNUMBER('Jumta seg.'!G12),'Jumta seg.'!G12,"") ->  | F124: =IF(ISNUMBER('Jumta seg.'!G12),'Jumta seg.'!H12,"") ->  | G124: =IF(ISTEXT('Jumta seg.'!I12),'Jumta seg.'!I12,"") -> 
A125: =IF(ISNUMBER('Jumta seg.'!G13),'Jumta seg.'!A13,"") ->  | B125: =IF(ISNUMBER('Jumta seg.'!G13),'Jumta seg.'!B13,"") ->  | C125: =IF(ISNUMBER('Jumta seg.'!G13),'Jumta seg.'!C13,"") ->  | D125: =IF(ISNUMBER('Jumta seg.'!G13),'Jumta seg.'!E13,"") ->  | E125: =IF(ISNUMBER('Jumta seg.'!G13),'Jumta seg.'!G13,"") ->  | F125: =IF(ISNUMBER('Jumta seg.'!G13),'Jumta seg.'!H13,"") ->  | G125: =IF(ISTEXT('Jumta seg.'!I13),'Jumta seg.'!I13,"") -> 
A126: =IF(ISNUMBER('Jumta seg.'!G14),'Jumta seg.'!A14,"") ->  | B126: =IF(ISNUMBER('Jumta seg.'!G14),'Jumta seg.'!B14,"") ->  | C126: =IF(ISNUMBER('Jumta seg.'!G14),'Jumta seg.'!C14,"") ->  | D126: =IF(ISNUMBER('Jumta seg.'!G14),'Jumta seg.'!E14,"") ->  | E126: =IF(ISNUMBER('Jumta seg.'!G14),'Jumta seg.'!G14,"") ->  | F126: =IF(ISNUMBER('Jumta seg.'!G14),'Jumta seg.'!H14,"") ->  | G126: =IF(ISTEXT('Jumta seg.'!I14),'Jumta seg.'!I14,"") -> 
A127: =IF(ISNUMBER('Jumta seg.'!G15),'Jumta seg.'!A15,"") ->  | B127: =IF(ISNUMBER('Jumta seg.'!G15),'Jumta seg.'!B15,"") ->  | C127: =IF(ISNUMBER('Jumta seg.'!G15),'Jumta seg.'!C15,"") ->  | D127: =IF(ISNUMBER('Jumta seg.'!G15),'Jumta seg.'!E15,"") ->  | E127: =IF(ISNUMBER('Jumta seg.'!G15),'Jumta seg.'!G15,"") ->  | F127: =IF(ISNUMBER('Jumta seg.'!G15),'Jumta seg.'!H15,"") ->  | G127: =IF(ISTEXT('Jumta seg.'!I15),'Jumta seg.'!I15,"") -> 
A128: =IF(ISNUMBER('Jumta seg.'!G16),'Jumta seg.'!A16,"") ->  | B128: =IF(ISNUMBER('Jumta seg.'!G16),'Jumta seg.'!B16,"") ->  | C128: =IF(ISNUMBER('Jumta seg.'!G16),'Jumta seg.'!C16,"") ->  | D128: =IF(ISNUMBER('Jumta seg.'!G16),'Jumta seg.'!E16,"") ->  | E128: =IF(ISNUMBER('Jumta seg.'!G16),'Jumta seg.'!G16,"") ->  | F128: =IF(ISNUMBER('Jumta seg.'!G16),'Jumta seg.'!H16,"") ->  | G128: =IF(ISTEXT('Jumta seg.'!I16),'Jumta seg.'!I16,"") -> 
A129: =IF(ISNUMBER('Jumta seg.'!G17),'Jumta seg.'!A17,"") ->  | B129: =IF(ISNUMBER('Jumta seg.'!G17),'Jumta seg.'!B17,"") ->  | C129: =IF(ISNUMBER('Jumta seg.'!G17),'Jumta seg.'!C17,"") ->  | D129: =IF(ISNUMBER('Jumta seg.'!G17),'Jumta seg.'!E17,"") ->  | E129: =IF(ISNUMBER('Jumta seg.'!G17),'Jumta seg.'!G17,"") ->  | F129: =IF(ISNUMBER('Jumta seg.'!G17),'Jumta seg.'!H17,"") ->  | G129: =IF(ISTEXT('Jumta seg.'!I17),'Jumta seg.'!I17,"") -> 
A130: =IF(ISNUMBER('Jumta seg.'!G18),'Jumta seg.'!A18,"") ->  | B130: =IF(ISNUMBER('Jumta seg.'!G18),'Jumta seg.'!B18,"") ->  | C130: =IF(ISNUMBER('Jumta seg.'!G18),'Jumta seg.'!C18,"") ->  | D130: =IF(ISNUMBER('Jumta seg.'!G18),'Jumta seg.'!E18,"") ->  | E130: =IF(ISNUMBER('Jumta seg.'!G18),'Jumta seg.'!G18,"") ->  | F130: =IF(ISNUMBER('Jumta seg.'!G18),'Jumta seg.'!H18,"") ->  | G130: =IF(ISTEXT('Jumta seg.'!I18),'Jumta seg.'!I18,"") -> 
A131: =IF(ISNUMBER('Jumta seg.'!G19),'Jumta seg.'!A19,"") ->  | B131: =IF(ISNUMBER('Jumta seg.'!G19),'Jumta seg.'!B19,"") ->  | C131: =IF(ISNUMBER('Jumta seg.'!G19),'Jumta seg.'!C19,"") ->  | D131: =IF(ISNUMBER('Jumta seg.'!G19),'Jumta seg.'!E19,"") ->  | E131: =IF(ISNUMBER('Jumta seg.'!G19),'Jumta seg.'!G19,"") ->  | F131: =IF(ISNUMBER('Jumta seg.'!G19),'Jumta seg.'!H19,"") ->  | G131: =IF(ISTEXT('Jumta seg.'!I19),'Jumta seg.'!I19,"") -> 
A132: =IF(ISNUMBER('Jumta seg.'!G20),'Jumta seg.'!A20,"") ->  | B132: =IF(ISNUMBER('Jumta seg.'!G20),'Jumta seg.'!B20,"") ->  | C132: =IF(ISNUMBER('Jumta seg.'!G20),'Jumta seg.'!C20,"") ->  | D132: =IF(ISNUMBER('Jumta seg.'!G20),'Jumta seg.'!E20,"") ->  | E132: =IF(ISNUMBER('Jumta seg.'!G20),'Jumta seg.'!G20,"") ->  | F132: =IF(ISNUMBER('Jumta seg.'!G20),'Jumta seg.'!H20,"") ->  | G132: =IF(ISTEXT('Jumta seg.'!I20),'Jumta seg.'!I20,"") -> 
A133: =IF(ISNUMBER('Jumta seg.'!G21),'Jumta seg.'!A21,"") ->  | B133: =IF(ISNUMBER('Jumta seg.'!G21),'Jumta seg.'!B21,"") ->  | C133: =IF(ISNUMBER('Jumta seg.'!G21),'Jumta seg.'!C21,"") ->  | D133: =IF(ISNUMBER('Jumta seg.'!G21),'Jumta seg.'!E21,"") ->  | E133: =IF(ISNUMBER('Jumta seg.'!G21),'Jumta seg.'!G21,"") ->  | F133: =IF(ISNUMBER('Jumta seg.'!G21),'Jumta seg.'!H21,"") ->  | G133: =IF(ISTEXT('Jumta seg.'!I21),'Jumta seg.'!I21,"") -> 
A134: =IF(ISNUMBER('Jumta seg.'!G22),'Jumta seg.'!A22,"") ->  | B134: =IF(ISNUMBER('Jumta seg.'!G22),'Jumta seg.'!B22,"") ->  | C134: =IF(ISNUMBER('Jumta seg.'!G22),'Jumta seg.'!C22,"") ->  | D134: =IF(ISNUMBER('Jumta seg.'!G22),'Jumta seg.'!E22,"") ->  | E134: =IF(ISNUMBER('Jumta seg.'!G22),'Jumta seg.'!G22,"") ->  | F134: =IF(ISNUMBER('Jumta seg.'!G22),'Jumta seg.'!H22,"") ->  | G134: =IF(ISTEXT('Jumta seg.'!I22),'Jumta seg.'!I22,"") -> 
A135: =IF(ISNUMBER('Jumta seg.'!G23),'Jumta seg.'!A23,"") ->  | B135: =IF(ISNUMBER('Jumta seg.'!G23),'Jumta seg.'!B23,"") ->  | C135: =IF(ISNUMBER('Jumta seg.'!G23),'Jumta seg.'!C23,"") ->  | D135: =IF(ISNUMBER('Jumta seg.'!G23),'Jumta seg.'!E23,"") ->  | E135: =IF(ISNUMBER('Jumta seg.'!G23),'Jumta seg.'!G23,"") ->  | F135: =IF(ISNUMBER('Jumta seg.'!G23),'Jumta seg.'!H23,"") ->  | G135: =IF(ISTEXT('Jumta seg.'!I23),'Jumta seg.'!I23,"") -> 
A136: =IF(ISNUMBER('Jumta seg.'!G24),'Jumta seg.'!A24,"") ->  | B136: =IF(ISNUMBER('Jumta seg.'!G24),'Jumta seg.'!B24,"") ->  | C136: =IF(ISNUMBER('Jumta seg.'!G24),'Jumta seg.'!C24,"") ->  | D136: =IF(ISNUMBER('Jumta seg.'!G24),'Jumta seg.'!E24,"") ->  | E136: =IF(ISNUMBER('Jumta seg.'!G24),'Jumta seg.'!G24,"") ->  | F136: =IF(ISNUMBER('Jumta seg.'!G24),'Jumta seg.'!H24,"") ->  | G136: =IF(ISTEXT('Jumta seg.'!I24),'Jumta seg.'!I24,"") -> 
A137: =IF(ISNUMBER('Jumta seg.'!G25),'Jumta seg.'!A25,"") ->  | B137: =IF(ISNUMBER('Jumta seg.'!G25),'Jumta seg.'!B25,"") ->  | C137: =IF(ISNUMBER('Jumta seg.'!G25),'Jumta seg.'!C25,"") ->  | D137: =IF(ISNUMBER('Jumta seg.'!G25),'Jumta seg.'!E25,"") ->  | E137: =IF(ISNUMBER('Jumta seg.'!G25),'Jumta seg.'!G25,"") ->  | F137: =IF(ISNUMBER('Jumta seg.'!G25),'Jumta seg.'!H25,"") ->  | G137: =IF(ISTEXT('Jumta seg.'!I25),'Jumta seg.'!I25,"") -> 
A138: =IF(ISNUMBER('Jumta seg.'!G26),'Jumta seg.'!A26,"") ->  | B138: =IF(ISNUMBER('Jumta seg.'!G26),'Jumta seg.'!B26,"") ->  | C138: =IF(ISNUMBER('Jumta seg.'!G26),'Jumta seg.'!C26,"") ->  | D138: =IF(ISNUMBER('Jumta seg.'!G26),'Jumta seg.'!E26,"") ->  | E138: =IF(ISNUMBER('Jumta seg.'!G26),'Jumta seg.'!G26,"") ->  | F138: =IF(ISNUMBER('Jumta seg.'!G26),'Jumta seg.'!H26,"") ->  | G138: =IF(ISTEXT('Jumta seg.'!I26),'Jumta seg.'!I26,"") -> 
A139: =IF(ISNUMBER('Jumta seg.'!G27),'Jumta seg.'!A27,"") ->  | B139: =IF(ISNUMBER('Jumta seg.'!G27),'Jumta seg.'!B27,"") ->  | C139: =IF(ISNUMBER('Jumta seg.'!G27),'Jumta seg.'!C27,"") ->  | D139: =IF(ISNUMBER('Jumta seg.'!G27),'Jumta seg.'!E27,"") ->  | E139: =IF(ISNUMBER('Jumta seg.'!G27),'Jumta seg.'!G27,"") ->  | F139: =IF(ISNUMBER('Jumta seg.'!G27),'Jumta seg.'!H27,"") ->  | G139: =IF(ISTEXT('Jumta seg.'!I27),'Jumta seg.'!I27,"") -> 
A140: =IF(ISNUMBER('Jumta seg.'!G28),'Jumta seg.'!A28,"") ->  | B140: =IF(ISNUMBER('Jumta seg.'!G28),'Jumta seg.'!B28,"") ->  | C140: =IF(ISNUMBER('Jumta seg.'!G28),'Jumta seg.'!C28,"") ->  | D140: =IF(ISNUMBER('Jumta seg.'!G28),'Jumta seg.'!E28,"") ->  | E140: =IF(ISNUMBER('Jumta seg.'!G28),'Jumta seg.'!G28,"") ->  | F140: =IF(ISNUMBER('Jumta seg.'!G28),'Jumta seg.'!H28,"") ->  | G140: =IF(ISTEXT('Jumta seg.'!I28),'Jumta seg.'!I28,"") -> 
A141: =IF(ISNUMBER('Jumta seg.'!G29),'Jumta seg.'!A29,"") ->  | B141: =IF(ISNUMBER('Jumta seg.'!G29),'Jumta seg.'!B29,"") ->  | C141: =IF(ISNUMBER('Jumta seg.'!G29),'Jumta seg.'!C29,"") ->  | D141: =IF(ISNUMBER('Jumta seg.'!G29),'Jumta seg.'!E29,"") ->  | E141: =IF(ISNUMBER('Jumta seg.'!G29),'Jumta seg.'!G29,"") ->  | F141: =IF(ISNUMBER('Jumta seg.'!G29),'Jumta seg.'!H29,"") ->  | G141: =IF(ISTEXT('Jumta seg.'!I29),'Jumta seg.'!I29,"") -> 
A142: =IF(ISNUMBER('Jumta seg.'!G30),'Jumta seg.'!A30,"") ->  | B142: =IF(ISNUMBER('Jumta seg.'!G30),'Jumta seg.'!B30,"") ->  | C142: =IF(ISNUMBER('Jumta seg.'!G30),'Jumta seg.'!C30,"") ->  | D142: =IF(ISNUMBER('Jumta seg.'!G30),'Jumta seg.'!E30,"") ->  | E142: =IF(ISNUMBER('Jumta seg.'!G30),'Jumta seg.'!G30,"") ->  | F142: =IF(ISNUMBER('Jumta seg.'!G30),'Jumta seg.'!H30,"") ->  | G142: =IF(ISTEXT('Jumta seg.'!I30),'Jumta seg.'!I30,"") -> 
A143: =IF(ISNUMBER('Jumta seg.'!G31),'Jumta seg.'!A31,"") ->  | B143: =IF(ISNUMBER('Jumta seg.'!G31),'Jumta seg.'!B31,"") ->  | C143: =IF(ISNUMBER('Jumta seg.'!G31),'Jumta seg.'!C31,"") ->  | D143: =IF(ISNUMBER('Jumta seg.'!G31),'Jumta seg.'!E31,"") ->  | E143: =IF(ISNUMBER('Jumta seg.'!G31),'Jumta seg.'!G31,"") ->  | F143: =IF(ISNUMBER('Jumta seg.'!G31),'Jumta seg.'!H31,"") ->  | G143: =IF(ISTEXT('Jumta seg.'!I31),'Jumta seg.'!I31,"") -> 
A144: =IF(ISNUMBER('Jumta seg.'!G32),'Jumta seg.'!A32,"") ->  | B144: =IF(ISNUMBER('Jumta seg.'!G32),'Jumta seg.'!B32,"") ->  | C144: =IF(ISNUMBER('Jumta seg.'!G32),'Jumta seg.'!C32,"") ->  | D144: =IF(ISNUMBER('Jumta seg.'!G32),'Jumta seg.'!E32,"") ->  | E144: =IF(ISNUMBER('Jumta seg.'!G32),'Jumta seg.'!G32,"") ->  | F144: =IF(ISNUMBER('Jumta seg.'!G32),'Jumta seg.'!H32,"") ->  | G144: =IF(ISTEXT('Jumta seg.'!I32),'Jumta seg.'!I32,"") -> 
A145: =IF(ISNUMBER('Jumta seg.'!G33),'Jumta seg.'!A33,"") ->  | B145: =IF(ISNUMBER('Jumta seg.'!G33),'Jumta seg.'!B33,"") ->  | C145: =IF(ISNUMBER('Jumta seg.'!G33),'Jumta seg.'!C33,"") ->  | D145: =IF(ISNUMBER('Jumta seg.'!G33),'Jumta seg.'!E33,"") ->  | E145: =IF(ISNUMBER('Jumta seg.'!G33),'Jumta seg.'!G33,"") ->  | F145: =IF(ISNUMBER('Jumta seg.'!G33),'Jumta seg.'!H33,"") ->  | G145: =IF(ISTEXT('Jumta seg.'!I33),'Jumta seg.'!I33,"") -> 
A146: =IF(ISNUMBER('Jumta seg.'!G34),'Jumta seg.'!A34,"") ->  | B146: =IF(ISNUMBER('Jumta seg.'!G34),'Jumta seg.'!B34,"") ->  | C146: =IF(ISNUMBER('Jumta seg.'!G34),'Jumta seg.'!C34,"") ->  | D146: =IF(ISNUMBER('Jumta seg.'!G34),'Jumta seg.'!E34,"") ->  | E146: =IF(ISNUMBER('Jumta seg.'!G34),'Jumta seg.'!G34,"") ->  | F146: =IF(ISNUMBER('Jumta seg.'!G34),'Jumta seg.'!H34,"") ->  | G146: =IF(ISTEXT('Jumta seg.'!I34),'Jumta seg.'!I34,"") -> 
A147: =IF(ISNUMBER('Jumta seg.'!G35),'Jumta seg.'!A35,"") ->  | B147: =IF(ISNUMBER('Jumta seg.'!G35),'Jumta seg.'!B35,"") ->  | C147: =IF(ISNUMBER('Jumta seg.'!G35),'Jumta seg.'!C35,"") ->  | D147: =IF(ISNUMBER('Jumta seg.'!G35),'Jumta seg.'!E35,"") ->  | E147: =IF(ISNUMBER('Jumta seg.'!G35),'Jumta seg.'!G35,"") ->  | F147: =IF(ISNUMBER('Jumta seg.'!G35),'Jumta seg.'!H35,"") ->  | G147: =IF(ISTEXT('Jumta seg.'!I35),'Jumta seg.'!I35,"") -> 
A148: =IF(ISNUMBER('Jumta seg.'!G36),'Jumta seg.'!A36,"") ->  | B148: =IF(ISNUMBER('Jumta seg.'!G36),'Jumta seg.'!B36,"") ->  | C148: =IF(ISNUMBER('Jumta seg.'!G36),'Jumta seg.'!C36,"") ->  | D148: =IF(ISNUMBER('Jumta seg.'!G36),'Jumta seg.'!E36,"") ->  | E148: =IF(ISNUMBER('Jumta seg.'!G36),'Jumta seg.'!G36,"") ->  | F148: =IF(ISNUMBER('Jumta seg.'!G36),'Jumta seg.'!H36,"") ->  | G148: =IF(ISTEXT('Jumta seg.'!I36),'Jumta seg.'!I36,"") -> 
A149: =IF(ISNUMBER('Jumta seg.'!G37),'Jumta seg.'!A37,"") ->  | B149: =IF(ISNUMBER('Jumta seg.'!G37),'Jumta seg.'!B37,"") ->  | C149: =IF(ISNUMBER('Jumta seg.'!G37),'Jumta seg.'!C37,"") ->  | D149: =IF(ISNUMBER('Jumta seg.'!G37),'Jumta seg.'!E37,"") ->  | E149: =IF(ISNUMBER('Jumta seg.'!G37),'Jumta seg.'!G37,"") ->  | F149: =IF(ISNUMBER('Jumta seg.'!G37),'Jumta seg.'!H37,"") ->  | G149: =IF(ISTEXT('Jumta seg.'!I37),'Jumta seg.'!I37,"") -> 
A150: =IF(ISNUMBER('Jumta seg.'!G38),'Jumta seg.'!A38,"") ->  | B150: =IF(ISNUMBER('Jumta seg.'!G38),'Jumta seg.'!B38,"") ->  | C150: =IF(ISNUMBER('Jumta seg.'!G38),'Jumta seg.'!C38,"") ->  | D150: =IF(ISNUMBER('Jumta seg.'!G38),'Jumta seg.'!E38,"") ->  | E150: =IF(ISNUMBER('Jumta seg.'!G38),'Jumta seg.'!G38,"") ->  | F150: =IF(ISNUMBER('Jumta seg.'!G38),'Jumta seg.'!H38,"") ->  | G150: =IF(ISTEXT('Jumta seg.'!I38),'Jumta seg.'!I38,"") -> 
A151: =IF(ISNUMBER('Jumta seg.'!G39),'Jumta seg.'!A39,"") ->  | B151: =IF(ISNUMBER('Jumta seg.'!G39),'Jumta seg.'!B39,"") ->  | C151: =IF(ISNUMBER('Jumta seg.'!G39),'Jumta seg.'!C39,"") ->  | D151: =IF(ISNUMBER('Jumta seg.'!G39),'Jumta seg.'!E39,"") ->  | E151: =IF(ISNUMBER('Jumta seg.'!G39),'Jumta seg.'!G39,"") ->  | F151: =IF(ISNUMBER('Jumta seg.'!G39),'Jumta seg.'!H39,"") ->  | G151: =IF(ISTEXT('Jumta seg.'!I39),'Jumta seg.'!I39,"") -> 
A152: =IF(ISNUMBER('Jumta seg.'!G40),'Jumta seg.'!A40,"") ->  | B152: =IF(ISNUMBER('Jumta seg.'!G40),'Jumta seg.'!B40,"") ->  | C152: =IF(ISNUMBER('Jumta seg.'!G40),'Jumta seg.'!C40,"") ->  | D152: =IF(ISNUMBER('Jumta seg.'!G40),'Jumta seg.'!E40,"") ->  | E152: =IF(ISNUMBER('Jumta seg.'!G40),'Jumta seg.'!G40,"") ->  | F152: =IF(ISNUMBER('Jumta seg.'!G40),'Jumta seg.'!H40,"") ->  | G152: =IF(ISTEXT('Jumta seg.'!I40),'Jumta seg.'!I40,"") -> 
A153: =IF(ISNUMBER('Jumta seg.'!G41),'Jumta seg.'!A41,"") ->  | B153: =IF(ISNUMBER('Jumta seg.'!G41),'Jumta seg.'!B41,"") ->  | C153: =IF(ISNUMBER('Jumta seg.'!G41),'Jumta seg.'!C41,"") ->  | D153: =IF(ISNUMBER('Jumta seg.'!G41),'Jumta seg.'!E41,"") ->  | E153: =IF(ISNUMBER('Jumta seg.'!G41),'Jumta seg.'!G41,"") ->  | F153: =IF(ISNUMBER('Jumta seg.'!G41),'Jumta seg.'!H41,"") ->  | G153: =IF(ISTEXT('Jumta seg.'!I41),'Jumta seg.'!I41,"") -> 
A154: =IF(ISNUMBER('Jumta seg.'!G42),'Jumta seg.'!A42,"") ->  | B154: =IF(ISNUMBER('Jumta seg.'!G42),'Jumta seg.'!B42,"") ->  | C154: =IF(ISNUMBER('Jumta seg.'!G42),'Jumta seg.'!C42,"") ->  | D154: =IF(ISNUMBER('Jumta seg.'!G42),'Jumta seg.'!E42,"") ->  | E154: =IF(ISNUMBER('Jumta seg.'!G42),'Jumta seg.'!G42,"") ->  | F154: =IF(ISNUMBER('Jumta seg.'!G42),'Jumta seg.'!H42,"") ->  | G154: =IF(ISTEXT('Jumta seg.'!I42),'Jumta seg.'!I42,"") -> 
A155: =IF(ISNUMBER('Jumta seg.'!G43),'Jumta seg.'!A43,"") ->  | B155: =IF(ISNUMBER('Jumta seg.'!G43),'Jumta seg.'!B43,"") ->  | C155: =IF(ISNUMBER('Jumta seg.'!G43),'Jumta seg.'!C43,"") ->  | D155: =IF(ISNUMBER('Jumta seg.'!G43),'Jumta seg.'!E43,"") ->  | E155: =IF(ISNUMBER('Jumta seg.'!G43),'Jumta seg.'!G43,"") ->  | F155: =IF(ISNUMBER('Jumta seg.'!G43),'Jumta seg.'!H43,"") ->  | G155: =IF(ISTEXT('Jumta seg.'!I43),'Jumta seg.'!I43,"") -> 
A156: =IF(ISNUMBER('Jumta seg.'!G44),'Jumta seg.'!A44,"") ->  | B156: =IF(ISNUMBER('Jumta seg.'!G44),'Jumta seg.'!B44,"") ->  | C156: =IF(ISNUMBER('Jumta seg.'!G44),'Jumta seg.'!C44,"") ->  | D156: =IF(ISNUMBER('Jumta seg.'!G44),'Jumta seg.'!E44,"") ->  | E156: =IF(ISNUMBER('Jumta seg.'!G44),'Jumta seg.'!G44,"") ->  | F156: =IF(ISNUMBER('Jumta seg.'!G44),'Jumta seg.'!H44,"") ->  | G156: =IF(ISTEXT('Jumta seg.'!I44),'Jumta seg.'!I44,"") -> 
A157: =IF(ISNUMBER('Jumta seg.'!G45),'Jumta seg.'!A45,"") ->  | B157: =IF(ISNUMBER('Jumta seg.'!G45),'Jumta seg.'!B45,"") ->  | C157: =IF(ISNUMBER('Jumta seg.'!G45),'Jumta seg.'!C45,"") ->  | D157: =IF(ISNUMBER('Jumta seg.'!G45),'Jumta seg.'!E45,"") ->  | E157: =IF(ISNUMBER('Jumta seg.'!G45),'Jumta seg.'!G45,"") ->  | F157: =IF(ISNUMBER('Jumta seg.'!G45),'Jumta seg.'!H45,"") ->  | G157: =IF(ISTEXT('Jumta seg.'!I45),'Jumta seg.'!I45,"") -> 
A158: =IF(ISNUMBER('Jumta seg.'!G46),'Jumta seg.'!A46,"") ->  | B158: =IF(ISNUMBER('Jumta seg.'!G46),'Jumta seg.'!B46,"") ->  | C158: =IF(ISNUMBER('Jumta seg.'!G46),'Jumta seg.'!C46,"") ->  | D158: =IF(ISNUMBER('Jumta seg.'!G46),'Jumta seg.'!E46,"") ->  | E158: =IF(ISNUMBER('Jumta seg.'!G46),'Jumta seg.'!G46,"") ->  | F158: =IF(ISNUMBER('Jumta seg.'!G46),'Jumta seg.'!H46,"") ->  | G158: =IF(ISTEXT('Jumta seg.'!I46),'Jumta seg.'!I46,"") -> 
A159: =IF(ISNUMBER('Jumta seg.'!G47),'Jumta seg.'!A47,"") ->  | B159: =IF(ISNUMBER('Jumta seg.'!G47),'Jumta seg.'!B47,"") ->  | C159: =IF(ISNUMBER('Jumta seg.'!G47),'Jumta seg.'!C47,"") ->  | D159: =IF(ISNUMBER('Jumta seg.'!G47),'Jumta seg.'!E47,"") ->  | E159: =IF(ISNUMBER('Jumta seg.'!G47),'Jumta seg.'!G47,"") ->  | F159: =IF(ISNUMBER('Jumta seg.'!G47),'Jumta seg.'!H47,"") ->  | G159: =IF(ISTEXT('Jumta seg.'!I47),'Jumta seg.'!I47,"") -> 
A160: =IF(ISNUMBER('Jumta seg.'!G48),'Jumta seg.'!A48,"") ->  | B160: =IF(ISNUMBER('Jumta seg.'!G48),'Jumta seg.'!B48,"") ->  | C160: =IF(ISNUMBER('Jumta seg.'!G48),'Jumta seg.'!C48,"") ->  | D160: =IF(ISNUMBER('Jumta seg.'!G48),'Jumta seg.'!E48,"") ->  | E160: =IF(ISNUMBER('Jumta seg.'!G48),'Jumta seg.'!G48,"") ->  | F160: =IF(ISNUMBER('Jumta seg.'!G48),'Jumta seg.'!H48,"") ->  | G160: =IF(ISTEXT('Jumta seg.'!I48),'Jumta seg.'!I48,"") -> 
A161: =IF(ISNUMBER('Jumta seg.'!G49),'Jumta seg.'!A49,"") ->  | B161: =IF(ISNUMBER('Jumta seg.'!G49),'Jumta seg.'!B49,"") ->  | C161: =IF(ISNUMBER('Jumta seg.'!G49),'Jumta seg.'!C49,"") ->  | D161: =IF(ISNUMBER('Jumta seg.'!G49),'Jumta seg.'!E49,"") ->  | E161: =IF(ISNUMBER('Jumta seg.'!G49),'Jumta seg.'!G49,"") ->  | F161: =IF(ISNUMBER('Jumta seg.'!G49),'Jumta seg.'!H49,"") ->  | G161: =IF(ISTEXT('Jumta seg.'!I49),'Jumta seg.'!I49,"") -> 
A162: =IF(ISNUMBER('Jumta seg.'!G50),'Jumta seg.'!A50,"") ->  | B162: =IF(ISNUMBER('Jumta seg.'!G50),'Jumta seg.'!B50,"") ->  | C162: =IF(ISNUMBER('Jumta seg.'!G50),'Jumta seg.'!C50,"") ->  | D162: =IF(ISNUMBER('Jumta seg.'!G50),'Jumta seg.'!E50,"") ->  | E162: =IF(ISNUMBER('Jumta seg.'!G50),'Jumta seg.'!G50,"") ->  | F162: =IF(ISNUMBER('Jumta seg.'!G50),'Jumta seg.'!H50,"") ->  | G162: =IF(ISTEXT('Jumta seg.'!I50),'Jumta seg.'!I50,"") -> 
A163: =IF(ISNUMBER('Jumta seg.'!G51),'Jumta seg.'!A51,"") ->  | B163: =IF(ISNUMBER('Jumta seg.'!G51),'Jumta seg.'!B51,"") ->  | C163: =IF(ISNUMBER('Jumta seg.'!G51),'Jumta seg.'!C51,"") ->  | D163: =IF(ISNUMBER('Jumta seg.'!G51),'Jumta seg.'!E51,"") ->  | E163: =IF(ISNUMBER('Jumta seg.'!G51),'Jumta seg.'!G51,"") ->  | F163: =IF(ISNUMBER('Jumta seg.'!G51),'Jumta seg.'!H51,"") ->  | G163: =IF(ISTEXT('Jumta seg.'!I51),'Jumta seg.'!I51,"") -> 
A164: =IF(ISNUMBER('Jumta seg.'!G52),'Jumta seg.'!A52,"") ->  | B164: =IF(ISNUMBER('Jumta seg.'!G52),'Jumta seg.'!B52,"") ->  | C164: =IF(ISNUMBER('Jumta seg.'!G52),'Jumta seg.'!C52,"") ->  | D164: =IF(ISNUMBER('Jumta seg.'!G52),'Jumta seg.'!E52,"") ->  | E164: =IF(ISNUMBER('Jumta seg.'!G52),'Jumta seg.'!G52,"") ->  | F164: =IF(ISNUMBER('Jumta seg.'!G52),'Jumta seg.'!H52,"") ->  | G164: =IF(ISTEXT('Jumta seg.'!I52),'Jumta seg.'!I52,"") -> 
A165: =IF(ISNUMBER('Jumta seg.'!G53),'Jumta seg.'!A53,"") ->  | B165: =IF(ISNUMBER('Jumta seg.'!G53),'Jumta seg.'!B53,"") ->  | C165: =IF(ISNUMBER('Jumta seg.'!G53),'Jumta seg.'!C53,"") ->  | D165: =IF(ISNUMBER('Jumta seg.'!G53),'Jumta seg.'!E53,"") ->  | E165: =IF(ISNUMBER('Jumta seg.'!G53),'Jumta seg.'!G53,"") ->  | F165: =IF(ISNUMBER('Jumta seg.'!G53),'Jumta seg.'!H53,"") ->  | G165: =IF(ISTEXT('Jumta seg.'!I53),'Jumta seg.'!I53,"") -> 
A166: =IF(ISNUMBER('Jumta seg.'!G54),'Jumta seg.'!A54,"") ->  | B166: =IF(ISNUMBER('Jumta seg.'!G54),'Jumta seg.'!B54,"") ->  | C166: =IF(ISNUMBER('Jumta seg.'!G54),'Jumta seg.'!C54,"") ->  | D166: =IF(ISNUMBER('Jumta seg.'!G54),'Jumta seg.'!E54,"") ->  | E166: =IF(ISNUMBER('Jumta seg.'!G54),'Jumta seg.'!G54,"") ->  | F166: =IF(ISNUMBER('Jumta seg.'!G54),'Jumta seg.'!H54,"") ->  | G166: =IF(ISTEXT('Jumta seg.'!I54),'Jumta seg.'!I54,"") -> 
A167: =IF(ISNUMBER('Jumta seg.'!G55),'Jumta seg.'!A55,"") ->  | B167: =IF(ISNUMBER('Jumta seg.'!G55),'Jumta seg.'!B55,"") ->  | C167: =IF(ISNUMBER('Jumta seg.'!G55),'Jumta seg.'!C55,"") ->  | D167: =IF(ISNUMBER('Jumta seg.'!G55),'Jumta seg.'!E55,"") ->  | E167: =IF(ISNUMBER('Jumta seg.'!G55),'Jumta seg.'!G55,"") ->  | F167: =IF(ISNUMBER('Jumta seg.'!G55),'Jumta seg.'!H55,"") ->  | G167: =IF(ISTEXT('Jumta seg.'!I55),'Jumta seg.'!I55,"") -> 
A168: =IF(ISNUMBER('Jumta seg.'!G56),'Jumta seg.'!A56,"") ->  | B168: =IF(ISNUMBER('Jumta seg.'!G56),'Jumta seg.'!B56,"") ->  | C168: =IF(ISNUMBER('Jumta seg.'!G56),'Jumta seg.'!C56,"") ->  | D168: =IF(ISNUMBER('Jumta seg.'!G56),'Jumta seg.'!E56,"") ->  | E168: =IF(ISNUMBER('Jumta seg.'!G56),'Jumta seg.'!G56,"") ->  | F168: =IF(ISNUMBER('Jumta seg.'!G56),'Jumta seg.'!H56,"") ->  | G168: =IF(ISTEXT('Jumta seg.'!I56),'Jumta seg.'!I56,"") -> 
A169: =IF(ISNUMBER('Jumta seg.'!G57),'Jumta seg.'!A57,"") ->  | B169: =IF(ISNUMBER('Jumta seg.'!G57),'Jumta seg.'!B57,"") ->  | C169: =IF(ISNUMBER('Jumta seg.'!G57),'Jumta seg.'!C57,"") ->  | D169: =IF(ISNUMBER('Jumta seg.'!G57),'Jumta seg.'!E57,"") ->  | E169: =IF(ISNUMBER('Jumta seg.'!G57),'Jumta seg.'!G57,"") ->  | F169: =IF(ISNUMBER('Jumta seg.'!G57),'Jumta seg.'!H57,"") ->  | G169: =IF(ISTEXT('Jumta seg.'!I57),'Jumta seg.'!I57,"") -> 
A172: =IF(ISNUMBER(Zāģmateriāli!E4),Zāģmateriāli!A4,"") ->  | B172: =IF(ISNUMBER(Zāģmateriāli!E4),Zāģmateriāli!B4,"") ->  | C172: =IF(ISNUMBER(Zāģmateriāli!E4),Zāģmateriāli!C4,"") ->  | D172: =IF(ISNUMBER(Zāģmateriāli!E4),Zāģmateriāli!D4,"") ->  | E172: =IF(ISNUMBER(Zāģmateriāli!E4),Zāģmateriāli!E4,"") ->  | F172: =IF(ISNUMBER(Zāģmateriāli!E4),Zāģmateriāli!F4,"") ->  | G172: =IF(ISTEXT(Zāģmateriāli!G4),Zāģmateriāli!G4,"") ->  | H172: =IF(ISNUMBER(E172),"yes","") -> 
A173: =IF(ISNUMBER(Zāģmateriāli!E5),Zāģmateriāli!A5,"") ->  | B173: =IF(ISNUMBER(Zāģmateriāli!E5),Zāģmateriāli!B5,"") ->  | C173: =IF(ISNUMBER(Zāģmateriāli!E5),Zāģmateriāli!C5,"") ->  | D173: =IF(ISNUMBER(Zāģmateriāli!E5),Zāģmateriāli!D5,"") ->  | E173: =IF(ISNUMBER(Zāģmateriāli!E5),Zāģmateriāli!E5,"") ->  | F173: =IF(ISNUMBER(Zāģmateriāli!E5),Zāģmateriāli!F5,"") ->  | G173: =IF(ISTEXT(Zāģmateriāli!G5),Zāģmateriāli!G5,"") -> 
A174: =IF(ISNUMBER(Zāģmateriāli!E6),Zāģmateriāli!A6,"") ->  | B174: =IF(ISNUMBER(Zāģmateriāli!E6),Zāģmateriāli!B6,"") ->  | C174: =IF(ISNUMBER(Zāģmateriāli!E6),Zāģmateriāli!C6,"") ->  | D174: =IF(ISNUMBER(Zāģmateriāli!E6),Zāģmateriāli!D6,"") ->  | E174: =IF(ISNUMBER(Zāģmateriāli!E6),Zāģmateriāli!E6,"") ->  | F174: =IF(ISNUMBER(Zāģmateriāli!E6),Zāģmateriāli!F6,"") ->  | G174: =IF(ISTEXT(Zāģmateriāli!G6),Zāģmateriāli!G6,"") -> 
A175: =IF(ISNUMBER(Zāģmateriāli!E7),Zāģmateriāli!A7,"") ->  | B175: =IF(ISNUMBER(Zāģmateriāli!E7),Zāģmateriāli!B7,"") ->  | C175: =IF(ISNUMBER(Zāģmateriāli!E7),Zāģmateriāli!C7,"") ->  | D175: =IF(ISNUMBER(Zāģmateriāli!E7),Zāģmateriāli!D7,"") ->  | E175: =IF(ISNUMBER(Zāģmateriāli!E7),Zāģmateriāli!E7,"") ->  | F175: =IF(ISNUMBER(Zāģmateriāli!E7),Zāģmateriāli!F7,"") ->  | G175: =IF(ISTEXT(Zāģmateriāli!G7),Zāģmateriāli!G7,"") -> 
A176: =IF(ISNUMBER(Zāģmateriāli!E8),Zāģmateriāli!A8,"") ->  | B176: =IF(ISNUMBER(Zāģmateriāli!E8),Zāģmateriāli!B8,"") ->  | C176: =IF(ISNUMBER(Zāģmateriāli!E8),Zāģmateriāli!C8,"") ->  | D176: =IF(ISNUMBER(Zāģmateriāli!E8),Zāģmateriāli!D8,"") ->  | E176: =IF(ISNUMBER(Zāģmateriāli!E8),Zāģmateriāli!E8,"") ->  | F176: =IF(ISNUMBER(Zāģmateriāli!E8),Zāģmateriāli!F8,"") ->  | G176: =IF(ISTEXT(Zāģmateriāli!G8),Zāģmateriāli!G8,"") -> 
A177: =IF(ISNUMBER(Zāģmateriāli!E9),Zāģmateriāli!A9,"") ->  | B177: =IF(ISNUMBER(Zāģmateriāli!E9),Zāģmateriāli!B9,"") ->  | C177: =IF(ISNUMBER(Zāģmateriāli!E9),Zāģmateriāli!C9,"") ->  | D177: =IF(ISNUMBER(Zāģmateriāli!E9),Zāģmateriāli!D9,"") ->  | E177: =IF(ISNUMBER(Zāģmateriāli!E9),Zāģmateriāli!E9,"") ->  | F177: =IF(ISNUMBER(Zāģmateriāli!E9),Zāģmateriāli!F9,"") ->  | G177: =IF(ISTEXT(Zāģmateriāli!G9),Zāģmateriāli!G9,"") -> 
A178: =IF(ISNUMBER(Zāģmateriāli!E10),Zāģmateriāli!A10,"") ->  | B178: =IF(ISNUMBER(Zāģmateriāli!E10),Zāģmateriāli!B10,"") ->  | C178: =IF(ISNUMBER(Zāģmateriāli!E10),Zāģmateriāli!C10,"") ->  | D178: =IF(ISNUMBER(Zāģmateriāli!E10),Zāģmateriāli!D10,"") ->  | E178: =IF(ISNUMBER(Zāģmateriāli!E10),Zāģmateriāli!E10,"") ->  | F178: =IF(ISNUMBER(Zāģmateriāli!E10),Zāģmateriāli!F10,"") ->  | G178: =IF(ISTEXT(Zāģmateriāli!G10),Zāģmateriāli!G10,"") -> 
A179: =IF(ISNUMBER(Zāģmateriāli!E11),Zāģmateriāli!A11,"") ->  | B179: =IF(ISNUMBER(Zāģmateriāli!E11),Zāģmateriāli!B11,"") ->  | C179: =IF(ISNUMBER(Zāģmateriāli!E11),Zāģmateriāli!C11,"") ->  | D179: =IF(ISNUMBER(Zāģmateriāli!E11),Zāģmateriāli!D11,"") ->  | E179: =IF(ISNUMBER(Zāģmateriāli!E11),Zāģmateriāli!E11,"") ->  | F179: =IF(ISNUMBER(Zāģmateriāli!E11),Zāģmateriāli!F11,"") ->  | G179: =IF(ISTEXT(Zāģmateriāli!G11),Zāģmateriāli!G11,"") -> 
A180: =IF(ISNUMBER(Zāģmateriāli!E12),Zāģmateriāli!A12,"") ->  | B180: =IF(ISNUMBER(Zāģmateriāli!E12),Zāģmateriāli!B12,"") ->  | C180: =IF(ISNUMBER(Zāģmateriāli!E12),Zāģmateriāli!C12,"") ->  | D180: =IF(ISNUMBER(Zāģmateriāli!E12),Zāģmateriāli!D12,"") ->  | E180: =IF(ISNUMBER(Zāģmateriāli!E12),Zāģmateriāli!E12,"") ->  | F180: =IF(ISNUMBER(Zāģmateriāli!E12),Zāģmateriāli!F12,"") ->  | G180: =IF(ISTEXT(Zāģmateriāli!G12),Zāģmateriāli!G12,"") -> 
A181: =IF(ISNUMBER(Zāģmateriāli!E13),Zāģmateriāli!A13,"") ->  | B181: =IF(ISNUMBER(Zāģmateriāli!E13),Zāģmateriāli!B13,"") ->  | C181: =IF(ISNUMBER(Zāģmateriāli!E13),Zāģmateriāli!C13,"") ->  | D181: =IF(ISNUMBER(Zāģmateriāli!E13),Zāģmateriāli!D13,"") ->  | E181: =IF(ISNUMBER(Zāģmateriāli!E13),Zāģmateriāli!E13,"") ->  | F181: =IF(ISNUMBER(Zāģmateriāli!E13),Zāģmateriāli!F13,"") ->  | G181: =IF(ISTEXT(Zāģmateriāli!G13),Zāģmateriāli!G13,"") -> 
A182: =IF(ISNUMBER(Zāģmateriāli!E14),Zāģmateriāli!A14,"") ->  | B182: =IF(ISNUMBER(Zāģmateriāli!E14),Zāģmateriāli!B14,"") ->  | C182: =IF(ISNUMBER(Zāģmateriāli!E14),Zāģmateriāli!C14,"") ->  | D182: =IF(ISNUMBER(Zāģmateriāli!E14),Zāģmateriāli!D14,"") ->  | E182: =IF(ISNUMBER(Zāģmateriāli!E14),Zāģmateriāli!E14,"") ->  | F182: =IF(ISNUMBER(Zāģmateriāli!E14),Zāģmateriāli!F14,"") ->  | G182: =IF(ISTEXT(Zāģmateriāli!G14),Zāģmateriāli!G14,"") -> 
A183: =IF(ISNUMBER(Zāģmateriāli!E15),Zāģmateriāli!A15,"") ->  | B183: =IF(ISNUMBER(Zāģmateriāli!E15),Zāģmateriāli!B15,"") ->  | C183: =IF(ISNUMBER(Zāģmateriāli!E15),Zāģmateriāli!C15,"") ->  | D183: =IF(ISNUMBER(Zāģmateriāli!E15),Zāģmateriāli!D15,"") ->  | E183: =IF(ISNUMBER(Zāģmateriāli!E15),Zāģmateriāli!E15,"") ->  | F183: =IF(ISNUMBER(Zāģmateriāli!E15),Zāģmateriāli!F15,"") ->  | G183: =IF(ISTEXT(Zāģmateriāli!G15),Zāģmateriāli!G15,"") -> 
A184: =IF(ISNUMBER(Zāģmateriāli!E16),Zāģmateriāli!A16,"") ->  | B184: =IF(ISNUMBER(Zāģmateriāli!E16),Zāģmateriāli!B16,"") ->  | C184: =IF(ISNUMBER(Zāģmateriāli!E16),Zāģmateriāli!C16,"") ->  | D184: =IF(ISNUMBER(Zāģmateriāli!E16),Zāģmateriāli!D16,"") ->  | E184: =IF(ISNUMBER(Zāģmateriāli!E16),Zāģmateriāli!E16,"") ->  | F184: =IF(ISNUMBER(Zāģmateriāli!E16),Zāģmateriāli!F16,"") ->  | G184: =IF(ISTEXT(Zāģmateriāli!G16),Zāģmateriāli!G16,"") -> 
A185: =IF(ISNUMBER(Zāģmateriāli!E17),Zāģmateriāli!A17,"") ->  | B185: =IF(ISNUMBER(Zāģmateriāli!E17),Zāģmateriāli!B17,"") ->  | C185: =IF(ISNUMBER(Zāģmateriāli!E17),Zāģmateriāli!C17,"") ->  | D185: =IF(ISNUMBER(Zāģmateriāli!E17),Zāģmateriāli!D17,"") ->  | E185: =IF(ISNUMBER(Zāģmateriāli!E17),Zāģmateriāli!E17,"") ->  | F185: =IF(ISNUMBER(Zāģmateriāli!E17),Zāģmateriāli!F17,"") ->  | G185: =IF(ISTEXT(Zāģmateriāli!G17),Zāģmateriāli!G17,"") -> 
A186: =IF(ISNUMBER(Zāģmateriāli!E18),Zāģmateriāli!A18,"") ->  | B186: =IF(ISNUMBER(Zāģmateriāli!E18),Zāģmateriāli!B18,"") ->  | C186: =IF(ISNUMBER(Zāģmateriāli!E18),Zāģmateriāli!C18,"") ->  | D186: =IF(ISNUMBER(Zāģmateriāli!E18),Zāģmateriāli!D18,"") ->  | E186: =IF(ISNUMBER(Zāģmateriāli!E18),Zāģmateriāli!E18,"") ->  | F186: =IF(ISNUMBER(Zāģmateriāli!E18),Zāģmateriāli!F18,"") ->  | G186: =IF(ISTEXT(Zāģmateriāli!G18),Zāģmateriāli!G18,"") -> 
A187: =IF(ISNUMBER(Zāģmateriāli!E19),Zāģmateriāli!A19,"") ->  | B187: =IF(ISNUMBER(Zāģmateriāli!E19),Zāģmateriāli!B19,"") ->  | C187: =IF(ISNUMBER(Zāģmateriāli!E19),Zāģmateriāli!C19,"") ->  | D187: =IF(ISNUMBER(Zāģmateriāli!E19),Zāģmateriāli!D19,"") ->  | E187: =IF(ISNUMBER(Zāģmateriāli!E19),Zāģmateriāli!E19,"") ->  | F187: =IF(ISNUMBER(Zāģmateriāli!E19),Zāģmateriāli!F19,"") ->  | G187: =IF(ISTEXT(Zāģmateriāli!G19),Zāģmateriāli!G19,"") -> 
A188: =IF(ISNUMBER(Zāģmateriāli!E20),Zāģmateriāli!A20,"") ->  | B188: =IF(ISNUMBER(Zāģmateriāli!E20),Zāģmateriāli!B20,"") ->  | C188: =IF(ISNUMBER(Zāģmateriāli!E20),Zāģmateriāli!C20,"") ->  | D188: =IF(ISNUMBER(Zāģmateriāli!E20),Zāģmateriāli!D20,"") ->  | E188: =IF(ISNUMBER(Zāģmateriāli!E20),Zāģmateriāli!E20,"") ->  | F188: =IF(ISNUMBER(Zāģmateriāli!E20),Zāģmateriāli!F20,"") ->  | G188: =IF(ISTEXT(Zāģmateriāli!G20),Zāģmateriāli!G20,"") -> 
A189: =IF(ISNUMBER(Zāģmateriāli!E21),Zāģmateriāli!A21,"") ->  | B189: =IF(ISNUMBER(Zāģmateriāli!E21),Zāģmateriāli!B21,"") ->  | C189: =IF(ISNUMBER(Zāģmateriāli!E21),Zāģmateriāli!C21,"") ->  | D189: =IF(ISNUMBER(Zāģmateriāli!E21),Zāģmateriāli!D21,"") ->  | E189: =IF(ISNUMBER(Zāģmateriāli!E21),Zāģmateriāli!E21,"") ->  | F189: =IF(ISNUMBER(Zāģmateriāli!E21),Zāģmateriāli!F21,"") ->  | G189: =IF(ISTEXT(Zāģmateriāli!G21),Zāģmateriāli!G21,"") -> 
A190: =IF(ISNUMBER(Zāģmateriāli!E22),Zāģmateriāli!A22,"") ->  | B190: =IF(ISNUMBER(Zāģmateriāli!E22),Zāģmateriāli!B22,"") ->  | C190: =IF(ISNUMBER(Zāģmateriāli!E22),Zāģmateriāli!C22,"") ->  | D190: =IF(ISNUMBER(Zāģmateriāli!E22),Zāģmateriāli!D22,"") ->  | E190: =IF(ISNUMBER(Zāģmateriāli!E22),Zāģmateriāli!E22,"") ->  | F190: =IF(ISNUMBER(Zāģmateriāli!E22),Zāģmateriāli!F22,"") ->  | G190: =IF(ISTEXT(Zāģmateriāli!G22),Zāģmateriāli!G22,"") -> 
A191: =IF(ISNUMBER(Zāģmateriāli!E23),Zāģmateriāli!A23,"") ->  | B191: =IF(ISNUMBER(Zāģmateriāli!E23),Zāģmateriāli!B23,"") ->  | C191: =IF(ISNUMBER(Zāģmateriāli!E23),Zāģmateriāli!C23,"") ->  | D191: =IF(ISNUMBER(Zāģmateriāli!E23),Zāģmateriāli!D23,"") ->  | E191: =IF(ISNUMBER(Zāģmateriāli!E23),Zāģmateriāli!E23,"") ->  | F191: =IF(ISNUMBER(Zāģmateriāli!E23),Zāģmateriāli!F23,"") ->  | G191: =IF(ISTEXT(Zāģmateriāli!G23),Zāģmateriāli!G23,"") -> 
A192: =IF(ISNUMBER(Zāģmateriāli!E24),Zāģmateriāli!A24,"") ->  | B192: =IF(ISNUMBER(Zāģmateriāli!E24),Zāģmateriāli!B24,"") ->  | C192: =IF(ISNUMBER(Zāģmateriāli!E24),Zāģmateriāli!C24,"") ->  | D192: =IF(ISNUMBER(Zāģmateriāli!E24),Zāģmateriāli!D24,"") ->  | E192: =IF(ISNUMBER(Zāģmateriāli!E24),Zāģmateriāli!E24,"") ->  | F192: =IF(ISNUMBER(Zāģmateriāli!E24),Zāģmateriāli!F24,"") ->  | G192: =IF(ISTEXT(Zāģmateriāli!G24),Zāģmateriāli!G24,"") -> 
A193: =IF(ISNUMBER(Zāģmateriāli!E25),Zāģmateriāli!A25,"") ->  | B193: =IF(ISNUMBER(Zāģmateriāli!E25),Zāģmateriāli!B25,"") ->  | C193: =IF(ISNUMBER(Zāģmateriāli!E25),Zāģmateriāli!C25,"") ->  | D193: =IF(ISNUMBER(Zāģmateriāli!E25),Zāģmateriāli!D25,"") ->  | E193: =IF(ISNUMBER(Zāģmateriāli!E25),Zāģmateriāli!E25,"") ->  | F193: =IF(ISNUMBER(Zāģmateriāli!E25),Zāģmateriāli!F25,"") ->  | G193: =IF(ISTEXT(Zāģmateriāli!G25),Zāģmateriāli!G25,"") -> 
A194: =IF(ISNUMBER(Zāģmateriāli!E26),Zāģmateriāli!A26,"") ->  | B194: =IF(ISNUMBER(Zāģmateriāli!E26),Zāģmateriāli!B26,"") ->  | C194: =IF(ISNUMBER(Zāģmateriāli!E26),Zāģmateriāli!C26,"") ->  | D194: =IF(ISNUMBER(Zāģmateriāli!E26),Zāģmateriāli!D26,"") ->  | E194: =IF(ISNUMBER(Zāģmateriāli!E26),Zāģmateriāli!E26,"") ->  | F194: =IF(ISNUMBER(Zāģmateriāli!E26),Zāģmateriāli!F26,"") ->  | G194: =IF(ISTEXT(Zāģmateriāli!G26),Zāģmateriāli!G26,"") -> 
A195: =IF(ISNUMBER(Zāģmateriāli!E27),Zāģmateriāli!A27,"") ->  | B195: =IF(ISNUMBER(Zāģmateriāli!E27),Zāģmateriāli!B27,"") ->  | C195: =IF(ISNUMBER(Zāģmateriāli!E27),Zāģmateriāli!C27,"") ->  | D195: =IF(ISNUMBER(Zāģmateriāli!E27),Zāģmateriāli!D27,"") ->  | E195: =IF(ISNUMBER(Zāģmateriāli!E27),Zāģmateriāli!E27,"") ->  | F195: =IF(ISNUMBER(Zāģmateriāli!E27),Zāģmateriāli!F27,"") ->  | G195: =IF(ISTEXT(Zāģmateriāli!G27),Zāģmateriāli!G27,"") -> 
A196: =IF(ISNUMBER(Zāģmateriāli!E28),Zāģmateriāli!A28,"") ->  | B196: =IF(ISNUMBER(Zāģmateriāli!E28),Zāģmateriāli!B28,"") ->  | C196: =IF(ISNUMBER(Zāģmateriāli!E28),Zāģmateriāli!C28,"") ->  | D196: =IF(ISNUMBER(Zāģmateriāli!E28),Zāģmateriāli!D28,"") ->  | E196: =IF(ISNUMBER(Zāģmateriāli!E28),Zāģmateriāli!E28,"") ->  | F196: =IF(ISNUMBER(Zāģmateriāli!E28),Zāģmateriāli!F28,"") ->  | G196: =IF(ISTEXT(Zāģmateriāli!G28),Zāģmateriāli!G28,"") -> 
A197: =IF(ISNUMBER(Zāģmateriāli!E29),Zāģmateriāli!A29,"") ->  | B197: =IF(ISNUMBER(Zāģmateriāli!E29),Zāģmateriāli!B29,"") ->  | C197: =IF(ISNUMBER(Zāģmateriāli!E29),Zāģmateriāli!C29,"") ->  | D197: =IF(ISNUMBER(Zāģmateriāli!E29),Zāģmateriāli!D29,"") ->  | E197: =IF(ISNUMBER(Zāģmateriāli!E29),Zāģmateriāli!E29,"") ->  | F197: =IF(ISNUMBER(Zāģmateriāli!E29),Zāģmateriāli!F29,"") ->  | G197: =IF(ISTEXT(Zāģmateriāli!G29),Zāģmateriāli!G29,"") -> 
A198: =IF(ISNUMBER(Zāģmateriāli!E30),Zāģmateriāli!A30,"") ->  | B198: =IF(ISNUMBER(Zāģmateriāli!E30),Zāģmateriāli!B30,"") ->  | C198: =IF(ISNUMBER(Zāģmateriāli!E30),Zāģmateriāli!C30,"") ->  | D198: =IF(ISNUMBER(Zāģmateriāli!E30),Zāģmateriāli!D30,"") ->  | E198: =IF(ISNUMBER(Zāģmateriāli!E30),Zāģmateriāli!E30,"") ->  | F198: =IF(ISNUMBER(Zāģmateriāli!E30),Zāģmateriāli!F30,"") ->  | G198: =IF(ISTEXT(Zāģmateriāli!G30),Zāģmateriāli!G30,"") -> 
A199: =IF(ISNUMBER(Zāģmateriāli!E31),Zāģmateriāli!A31,"") ->  | B199: =IF(ISNUMBER(Zāģmateriāli!E31),Zāģmateriāli!B31,"") ->  | C199: =IF(ISNUMBER(Zāģmateriāli!E31),Zāģmateriāli!C31,"") ->  | D199: =IF(ISNUMBER(Zāģmateriāli!E31),Zāģmateriāli!D31,"") ->  | E199: =IF(ISNUMBER(Zāģmateriāli!E31),Zāģmateriāli!E31,"") ->  | F199: =IF(ISNUMBER(Zāģmateriāli!E31),Zāģmateriāli!F31,"") ->  | G199: =IF(ISTEXT(Zāģmateriāli!G31),Zāģmateriāli!G31,"") -> 
A200: =IF(ISNUMBER(Zāģmateriāli!E32),Zāģmateriāli!A32,"") ->  | B200: =IF(ISNUMBER(Zāģmateriāli!E32),Zāģmateriāli!B32,"") ->  | C200: =IF(ISNUMBER(Zāģmateriāli!E32),Zāģmateriāli!C32,"") ->  | D200: =IF(ISNUMBER(Zāģmateriāli!E32),Zāģmateriāli!D32,"") ->  | E200: =IF(ISNUMBER(Zāģmateriāli!E32),Zāģmateriāli!E32,"") ->  | F200: =IF(ISNUMBER(Zāģmateriāli!E32),Zāģmateriāli!F32,"") ->  | G200: =IF(ISTEXT(Zāģmateriāli!G32),Zāģmateriāli!G32,"") -> 
A201: =IF(ISNUMBER(Zāģmateriāli!E33),Zāģmateriāli!A33,"") ->  | B201: =IF(ISNUMBER(Zāģmateriāli!E33),Zāģmateriāli!B33,"") ->  | C201: =IF(ISNUMBER(Zāģmateriāli!E33),Zāģmateriāli!C33,"") ->  | D201: =IF(ISNUMBER(Zāģmateriāli!E33),Zāģmateriāli!D33,"") ->  | E201: =IF(ISNUMBER(Zāģmateriāli!E33),Zāģmateriāli!E33,"") ->  | F201: =IF(ISNUMBER(Zāģmateriāli!E33),Zāģmateriāli!F33,"") ->  | G201: =IF(ISTEXT(Zāģmateriāli!G33),Zāģmateriāli!G33,"") -> 
A202: =IF(ISNUMBER(Zāģmateriāli!E34),Zāģmateriāli!A34,"") ->  | B202: =IF(ISNUMBER(Zāģmateriāli!E34),Zāģmateriāli!B34,"") ->  | C202: =IF(ISNUMBER(Zāģmateriāli!E34),Zāģmateriāli!C34,"") ->  | D202: =IF(ISNUMBER(Zāģmateriāli!E34),Zāģmateriāli!D34,"") ->  | E202: =IF(ISNUMBER(Zāģmateriāli!E34),Zāģmateriāli!E34,"") ->  | F202: =IF(ISNUMBER(Zāģmateriāli!E34),Zāģmateriāli!F34,"") ->  | G202: =IF(ISTEXT(Zāģmateriāli!G34),Zāģmateriāli!G34,"") -> 
A203: =IF(ISNUMBER(Zāģmateriāli!E35),Zāģmateriāli!A35,"") ->  | B203: =IF(ISNUMBER(Zāģmateriāli!E35),Zāģmateriāli!B35,"") ->  | C203: =IF(ISNUMBER(Zāģmateriāli!E35),Zāģmateriāli!C35,"") ->  | D203: =IF(ISNUMBER(Zāģmateriāli!E35),Zāģmateriāli!D35,"") ->  | E203: =IF(ISNUMBER(Zāģmateriāli!E35),Zāģmateriāli!E35,"") ->  | F203: =IF(ISNUMBER(Zāģmateriāli!E35),Zāģmateriāli!F35,"") ->  | G203: =IF(ISTEXT(Zāģmateriāli!G35),Zāģmateriāli!G35,"") -> 
A204: =IF(ISNUMBER(Zāģmateriāli!E36),Zāģmateriāli!A36,"") ->  | B204: =IF(ISNUMBER(Zāģmateriāli!E36),Zāģmateriāli!B36,"") ->  | C204: =IF(ISNUMBER(Zāģmateriāli!E36),Zāģmateriāli!C36,"") ->  | D204: =IF(ISNUMBER(Zāģmateriāli!E36),Zāģmateriāli!D36,"") ->  | E204: =IF(ISNUMBER(Zāģmateriāli!E36),Zāģmateriāli!E36,"") ->  | F204: =IF(ISNUMBER(Zāģmateriāli!E36),Zāģmateriāli!F36,"") ->  | G204: =IF(ISTEXT(Zāģmateriāli!G36),Zāģmateriāli!G36,"") -> 
A205: =IF(ISNUMBER(Zāģmateriāli!E37),Zāģmateriāli!A37,"") ->  | B205: =IF(ISNUMBER(Zāģmateriāli!E37),Zāģmateriāli!B37,"") ->  | C205: =IF(ISNUMBER(Zāģmateriāli!E37),Zāģmateriāli!C37,"") ->  | D205: =IF(ISNUMBER(Zāģmateriāli!E37),Zāģmateriāli!D37,"") ->  | E205: =IF(ISNUMBER(Zāģmateriāli!E37),Zāģmateriāli!E37,"") ->  | F205: =IF(ISNUMBER(Zāģmateriāli!E37),Zāģmateriāli!F37,"") ->  | G205: =IF(ISTEXT(Zāģmateriāli!G37),Zāģmateriāli!G37,"") -> 
A206: =IF(ISNUMBER(Zāģmateriāli!E38),Zāģmateriāli!A38,"") ->  | B206: =IF(ISNUMBER(Zāģmateriāli!E38),Zāģmateriāli!B38,"") ->  | C206: =IF(ISNUMBER(Zāģmateriāli!E38),Zāģmateriāli!C38,"") ->  | D206: =IF(ISNUMBER(Zāģmateriāli!E38),Zāģmateriāli!D38,"") ->  | E206: =IF(ISNUMBER(Zāģmateriāli!E38),Zāģmateriāli!E38,"") ->  | F206: =IF(ISNUMBER(Zāģmateriāli!E38),Zāģmateriāli!F38,"") ->  | G206: =IF(ISTEXT(Zāģmateriāli!G38),Zāģmateriāli!G38,"") -> 
... 619 more rows

Sheet Makross (hidden)
A1: Nr.p.k. | B1: Nosaukums | C1: Mērvienība | D1: Cena par mērvienību (EUR) | E1: Ievadiet daudzumu | F1: Cena par daudzumu (EUR) | G1: Piezīmes | H1: Value
H2: yes
A3: Nr.p.k. | B3: Nosaukums | C3: Mērvienība | D3: Cena par mērvienību (EUR) | E3: Ievadiet daudzumu | F3: Cena par daudzumu (EUR) | G3: Piezīmes | H3: Value

Sheet Koptāme
F5: EUR
B6: Kopējās būvmateriālu tāmes izmaksas (bez PVN 21%) | F6: =IF(ISNUMBER(F11),SUM(F11:F50),"") -> 
B7: Kopējās būvmateriālu tāmes izmaksas (ar PVN 21% ) | F7: =IF(ISNUMBER(F6),(F6+(F6*0.21)),"") -> 
A9: Nr.p.k. | B9: Nosaukums | C9: Mērvienība | D9: Cena par mērvienību (EUR) | E9: Ievadītais daudzums | F9: Cena par daudzumu (EUR) | G9: Piezīmes
A10: 1 | B10: 2 | C10: 3 | D10: 4 | E10: 5 | F10: 6 | G10: 7
A11: =IF(ISNUMBER(E11),1,"") ->  | B11: =IF(ISNUMBER(Makross!E4),Makross!B4,"") ->  | C11: =IF(ISNUMBER(Makross!E4),Makross!C4,"") ->  | D11: =IF(ISNUMBER(Makross!E4),Makross!D4,"") ->  | E11: =IF(ISNUMBER(Makross!E4),Makross!E4,"") ->  | F11: =IF(ISNUMBER(Makross!E4),Makross!F4,"") ->  | G11: =IF(ISNUMBER(Makross!E4),Makross!G4,"") -> 
A12: =IF(ISNUMBER(E12),2,"") ->  | B12: =IF(ISNUMBER(Makross!E5),Makross!B5,"") ->  | C12: =IF(ISNUMBER(Makross!E5),Makross!C5,"") ->  | D12: =IF(ISNUMBER(Makross!E5),Makross!D5,"") ->  | E12: =IF(ISNUMBER(Makross!E5),Makross!E5,"") ->  | F12: =IF(ISNUMBER(Makross!E5),Makross!F5,"") ->  | G12: =IF(ISNUMBER(Makross!E5),Makross!G5,"") -> 
A13: =IF(ISNUMBER(E13),3,"") ->  | B13: =IF(ISNUMBER(Makross!E6),Makross!B6,"") ->  | C13: =IF(ISNUMBER(Makross!E6),Makross!C6,"") ->  | D13: =IF(ISNUMBER(Makross!E6),Makross!D6,"") ->  | E13: =IF(ISNUMBER(Makross!E6),Makross!E6,"") ->  | F13: =IF(ISNUMBER(Makross!E6),Makross!F6,"") ->  | G13: =IF(ISNUMBER(Makross!E6),Makross!G6,"") -> 
A14: =IF(ISNUMBER(E14),4,"") ->  | B14: =IF(ISNUMBER(Makross!E7),Makross!B7,"") ->  | C14: =IF(ISNUMBER(Makross!E7),Makross!C7,"") ->  | D14: =IF(ISNUMBER(Makross!E7),Makross!D7,"") ->  | E14: =IF(ISNUMBER(Makross!E7),Makross!E7,"") ->  | F14: =IF(ISNUMBER(Makross!E7),Makross!F7,"") ->  | G14: =IF(ISNUMBER(Makross!E7),Makross!G7,"") -> 
A15: =IF(ISNUMBER(E15),5,"") ->  | B15: =IF(ISNUMBER(Makross!E8),Makross!B8,"") ->  | C15: =IF(ISNUMBER(Makross!E8),Makross!C8,"") ->  | D15: =IF(ISNUMBER(Makross!E8),Makross!D8,"") ->  | E15: =IF(ISNUMBER(Makross!E8),Makross!E8,"") ->  | F15: =IF(ISNUMBER(Makross!E8),Makross!F8,"") ->  | G15: =IF(ISNUMBER(Makross!E8),Makross!G8,"") -> 
A16: =IF(ISNUMBER(E16),6,"") ->  | B16: =IF(ISNUMBER(Makross!E9),Makross!B9,"") ->  | C16: =IF(ISNUMBER(Makross!E9),Makross!C9,"") ->  | D16: =IF(ISNUMBER(Makross!E9),Makross!D9,"") ->  | E16: =IF(ISNUMBER(Makross!E9),Makross!E9,"") ->  | F16: =IF(ISNUMBER(Makross!E9),Makross!F9,"") ->  | G16: =IF(ISNUMBER(Makross!E9),Makross!G9,"") -> 
A17: =IF(ISNUMBER(E17),7,"") ->  | B17: =IF(ISNUMBER(Makross!E10),Makross!B10,"") ->  | C17: =IF(ISNUMBER(Makross!E10),Makross!C10,"") ->  | D17: =IF(ISNUMBER(Makross!E10),Makross!D10,"") ->  | E17: =IF(ISNUMBER(Makross!E10),Makross!E10,"") ->  | F17: =IF(ISNUMBER(Makross!E10),Makross!F10,"") ->  | G17: =IF(ISNUMBER(Makross!E10),Makross!G10,"") -> 
A18: =IF(ISNUMBER(E18),8,"") ->  | B18: =IF(ISNUMBER(Makross!E11),Makross!B11,"") ->  | C18: =IF(ISNUMBER(Makross!E11),Makross!C11,"") ->  | D18: =IF(ISNUMBER(Makross!E11),Makross!D11,"") ->  | E18: =IF(ISNUMBER(Makross!E11),Makross!E11,"") ->  | F18: =IF(ISNUMBER(Makross!E11),Makross!F11,"") ->  | G18: =IF(ISNUMBER(Makross!E11),Makross!G11,"") -> 
A19: =IF(ISNUMBER(E19),9,"") ->  | B19: =IF(ISNUMBER(Makross!E12),Makross!B12,"") ->  | C19: =IF(ISNUMBER(Makross!E12),Makross!C12,"") ->  | D19: =IF(ISNUMBER(Makross!E12),Makross!D12,"") ->  | E19: =IF(ISNUMBER(Makross!E12),Makross!E12,"") ->  | F19: =IF(ISNUMBER(Makross!E12),Makross!F12,"") ->  | G19: =IF(ISNUMBER(Makross!E12),Makross!G12,"") -> 
A20: =IF(ISNUMBER(E20),10,"") ->  | B20: =IF(ISNUMBER(Makross!E13),Makross!B13,"") ->  | C20: =IF(ISNUMBER(Makross!E13),Makross!C13,"") ->  | D20: =IF(ISNUMBER(Makross!E13),Makross!D13,"") ->  | E20: =IF(ISNUMBER(Makross!E13),Makross!E13,"") ->  | F20: =IF(ISNUMBER(Makross!E13),Makross!F13,"") ->  | G20: =IF(ISNUMBER(Makross!E13),Makross!G13,"") -> 
A21: =IF(ISNUMBER(E21),11,"") ->  | B21: =IF(ISNUMBER(Makross!E14),Makross!B14,"") ->  | C21: =IF(ISNUMBER(Makross!E14),Makross!C14,"") ->  | D21: =IF(ISNUMBER(Makross!E14),Makross!D14,"") ->  | E21: =IF(ISNUMBER(Makross!E14),Makross!E14,"") ->  | F21: =IF(ISNUMBER(Makross!E14),Makross!F14,"") ->  | G21: =IF(ISNUMBER(Makross!E14),Makross!G14,"") -> 
A22: =IF(ISNUMBER(E22),12,"") ->  | B22: =IF(ISNUMBER(Makross!E15),Makross!B15,"") ->  | C22: =IF(ISNUMBER(Makross!E15),Makross!C15,"") ->  | D22: =IF(ISNUMBER(Makross!E15),Makross!D15,"") ->  | E22: =IF(ISNUMBER(Makross!E15),Makross!E15,"") ->  | F22: =IF(ISNUMBER(Makross!E15),Makross!F15,"") ->  | G22: =IF(ISNUMBER(Makross!E15),Makross!G15,"") -> 
A23: =IF(ISNUMBER(E23),13,"") ->  | B23: =IF(ISNUMBER(Makross!E16),Makross!B16,"") ->  | C23: =IF(ISNUMBER(Makross!E16),Makross!C16,"") ->  | D23: =IF(ISNUMBER(Makross!E16),Makross!D16,"") ->  | E23: =IF(ISNUMBER(Makross!E16),Makross!E16,"") ->  | F23: =IF(ISNUMBER(Makross!E16),Makross!F16,"") ->  | G23: =IF(ISNUMBER(Makross!E16),Makross!G16,"") -> 
A24: =IF(ISNUMBER(E24),14,"") ->  | B24: =IF(ISNUMBER(Makross!E17),Makross!B17,"") ->  | C24: =IF(ISNUMBER(Makross!E17),Makross!C17,"") ->  | D24: =IF(ISNUMBER(Makross!E17),Makross!D17,"") ->  | E24: =IF(ISNUMBER(Makross!E17),Makross!E17,"") ->  | F24: =IF(ISNUMBER(Makross!E17),Makross!F17,"") ->  | G24: =IF(ISNUMBER(Makross!E17),Makross!G17,"") -> 
A25: =IF(ISNUMBER(E25),15,"") ->  | B25: =IF(ISNUMBER(Makross!E18),Makross!B18,"") ->  | C25: =IF(ISNUMBER(Makross!E18),Makross!C18,"") ->  | D25: =IF(ISNUMBER(Makross!E18),Makross!D18,"") ->  | E25: =IF(ISNUMBER(Makross!E18),Makross!E18,"") ->  | F25: =IF(ISNUMBER(Makross!E18),Makross!F18,"") ->  | G25: =IF(ISNUMBER(Makross!E18),Makross!G18,"") -> 
A26: =IF(ISNUMBER(E26),16,"") ->  | B26: =IF(ISNUMBER(Makross!E19),Makross!B19,"") ->  | C26: =IF(ISNUMBER(Makross!E19),Makross!C19,"") ->  | D26: =IF(ISNUMBER(Makross!E19),Makross!D19,"") ->  | E26: =IF(ISNUMBER(Makross!E19),Makross!E19,"") ->  | F26: =IF(ISNUMBER(Makross!E19),Makross!F19,"") ->  | G26: =IF(ISNUMBER(Makross!E19),Makross!G19,"") -> 
A27: =IF(ISNUMBER(E27),17,"") ->  | B27: =IF(ISNUMBER(Makross!E20),Makross!B20,"") ->  | C27: =IF(ISNUMBER(Makross!E20),Makross!C20,"") ->  | D27: =IF(ISNUMBER(Makross!E20),Makross!D20,"") ->  | E27: =IF(ISNUMBER(Makross!E20),Makross!E20,"") ->  | F27: =IF(ISNUMBER(Makross!E20),Makross!F20,"") ->  | G27: =IF(ISNUMBER(Makross!E20),Makross!G20,"") -> 
A28: =IF(ISNUMBER(E28),18,"") ->  | B28: =IF(ISNUMBER(Makross!E21),Makross!B21,"") ->  | C28: =IF(ISNUMBER(Makross!E21),Makross!C21,"") ->  | D28: =IF(ISNUMBER(Makross!E21),Makross!D21,"") ->  | E28: =IF(ISNUMBER(Makross!E21),Makross!E21,"") ->  | F28: =IF(ISNUMBER(Makross!E21),Makross!F21,"") ->  | G28: =IF(ISNUMBER(Makross!E21),Makross!G21,"") -> 
A29: =IF(ISNUMBER(E29),19,"") ->  | B29: =IF(ISNUMBER(Makross!E22),Makross!B22,"") ->  | C29: =IF(ISNUMBER(Makross!E22),Makross!C22,"") ->  | D29: =IF(ISNUMBER(Makross!E22),Makross!D22,"") ->  | E29: =IF(ISNUMBER(Makross!E22),Makross!E22,"") ->  | F29: =IF(ISNUMBER(Makross!E22),Makross!F22,"") ->  | G29: =IF(ISNUMBER(Makross!E22),Makross!G22,"") -> 
A30: =IF(ISNUMBER(E30),20,"") ->  | B30: =IF(ISNUMBER(Makross!E23),Makross!B23,"") ->  | C30: =IF(ISNUMBER(Makross!E23),Makross!C23,"") ->  | D30: =IF(ISNUMBER(Makross!E23),Makross!D23,"") ->  | E30: =IF(ISNUMBER(Makross!E23),Makross!E23,"") ->  | F30: =IF(ISNUMBER(Makross!E23),Makross!F23,"") ->  | G30: =IF(ISNUMBER(Makross!E23),Makross!G23,"") -> 
A31: =IF(ISNUMBER(E31),21,"") ->  | B31: =IF(ISNUMBER(Makross!E24),Makross!B24,"") ->  | C31: =IF(ISNUMBER(Makross!E24),Makross!C24,"") ->  | D31: =IF(ISNUMBER(Makross!E24),Makross!D24,"") ->  | E31: =IF(ISNUMBER(Makross!E24),Makross!E24,"") ->  | F31: =IF(ISNUMBER(Makross!E24),Makross!F24,"") ->  | G31: =IF(ISNUMBER(Makross!E24),Makross!G24,"") -> 
A32: =IF(ISNUMBER(E32),22,"") ->  | B32: =IF(ISNUMBER(Makross!E25),Makross!B25,"") ->  | C32: =IF(ISNUMBER(Makross!E25),Makross!C25,"") ->  | D32: =IF(ISNUMBER(Makross!E25),Makross!D25,"") ->  | E32: =IF(ISNUMBER(Makross!E25),Makross!E25,"") ->  | F32: =IF(ISNUMBER(Makross!E25),Makross!F25,"") ->  | G32: =IF(ISNUMBER(Makross!E25),Makross!G25,"") -> 
A33: =IF(ISNUMBER(E33),23,"") ->  | B33: =IF(ISNUMBER(Makross!E26),Makross!B26,"") ->  | C33: =IF(ISNUMBER(Makross!E26),Makross!C26,"") ->  | D33: =IF(ISNUMBER(Makross!E26),Makross!D26,"") ->  | E33: =IF(ISNUMBER(Makross!E26),Makross!E26,"") ->  | F33: =IF(ISNUMBER(Makross!E26),Makross!F26,"") ->  | G33: =IF(ISNUMBER(Makross!E26),Makross!G26,"") -> 
A34: =IF(ISNUMBER(E34),24,"") ->  | B34: =IF(ISNUMBER(Makross!E27),Makross!B27,"") ->  | C34: =IF(ISNUMBER(Makross!E27),Makross!C27,"") ->  | D34: =IF(ISNUMBER(Makross!E27),Makross!D27,"") ->  | E34: =IF(ISNUMBER(Makross!E27),Makross!E27,"") ->  | F34: =IF(ISNUMBER(Makross!E27),Makross!F27,"") ->  | G34: =IF(ISNUMBER(Makross!E27),Makross!G27,"") -> 
A35: =IF(ISNUMBER(E35),25,"") ->  | B35: =IF(ISNUMBER(Makross!E28),Makross!B28,"") ->  | C35: =IF(ISNUMBER(Makross!E28),Makross!C28,"") ->  | D35: =IF(ISNUMBER(Makross!E28),Makross!D28,"") ->  | E35: =IF(ISNUMBER(Makross!E28),Makross!E28,"") ->  | F35: =IF(ISNUMBER(Makross!E28),Makross!F28,"") ->  | G35: =IF(ISNUMBER(Makross!E28),Makross!G28,"") -> 
A36: =IF(ISNUMBER(E36),26,"") ->  | B36: =IF(ISNUMBER(Makross!E29),Makross!B29,"") ->  | C36: =IF(ISNUMBER(Makross!E29),Makross!C29,"") ->  | D36: =IF(ISNUMBER(Makross!E29),Makross!D29,"") ->  | E36: =IF(ISNUMBER(Makross!E29),Makross!E29,"") ->  | F36: =IF(ISNUMBER(Makross!E29),Makross!F29,"") ->  | G36: =IF(ISNUMBER(Makross!E29),Makross!G29,"") -> 
A37: =IF(ISNUMBER(E37),27,"") ->  | B37: =IF(ISNUMBER(Makross!E30),Makross!B30,"") ->  | C37: =IF(ISNUMBER(Makross!E30),Makross!C30,"") ->  | D37: =IF(ISNUMBER(Makross!E30),Makross!D30,"") ->  | E37: =IF(ISNUMBER(Makross!E30),Makross!E30,"") ->  | F37: =IF(ISNUMBER(Makross!E30),Makross!F30,"") ->  | G37: =IF(ISNUMBER(Makross!E30),Makross!G30,"") -> 
A38: =IF(ISNUMBER(E38),28,"") ->  | B38: =IF(ISNUMBER(Makross!E31),Makross!B31,"") ->  | C38: =IF(ISNUMBER(Makross!E31),Makross!C31,"") ->  | D38: =IF(ISNUMBER(Makross!E31),Makross!D31,"") ->  | E38: =IF(ISNUMBER(Makross!E31),Makross!E31,"") ->  | F38: =IF(ISNUMBER(Makross!E31),Makross!F31,"") ->  | G38: =IF(ISNUMBER(Makross!E31),Makross!G31,"") -> 
A39: =IF(ISNUMBER(E39),29,"") ->  | B39: =IF(ISNUMBER(Makross!E32),Makross!B32,"") ->  | C39: =IF(ISNUMBER(Makross!E32),Makross!C32,"") ->  | D39: =IF(ISNUMBER(Makross!E32),Makross!D32,"") ->  | E39: =IF(ISNUMBER(Makross!E32),Makross!E32,"") ->  | F39: =IF(ISNUMBER(Makross!E32),Makross!F32,"") ->  | G39: =IF(ISNUMBER(Makross!E32),Makross!G32,"") -> 
A40: =IF(ISNUMBER(E40),30,"") ->  | B40: =IF(ISNUMBER(Makross!E33),Makross!B33,"") ->  | C40: =IF(ISNUMBER(Makross!E33),Makross!C33,"") ->  | D40: =IF(ISNUMBER(Makross!E33),Makross!D33,"") ->  | E40: =IF(ISNUMBER(Makross!E33),Makross!E33,"") ->  | F40: =IF(ISNUMBER(Makross!E33),Makross!F33,"") ->  | G40: =IF(ISNUMBER(Makross!E33),Makross!G33,"") -> 
A41: =IF(ISNUMBER(E41),31,"") ->  | B41: =IF(ISNUMBER(Makross!E34),Makross!B34,"") ->  | C41: =IF(ISNUMBER(Makross!E34),Makross!C34,"") ->  | D41: =IF(ISNUMBER(Makross!E34),Makross!D34,"") ->  | E41: =IF(ISNUMBER(Makross!E34),Makross!E34,"") ->  | F41: =IF(ISNUMBER(Makross!E34),Makross!F34,"") ->  | G41: =IF(ISNUMBER(Makross!E34),Makross!G34,"") -> 
A42: =IF(ISNUMBER(E42),32,"") ->  | B42: =IF(ISNUMBER(Makross!E35),Makross!B35,"") ->  | C42: =IF(ISNUMBER(Makross!E35),Makross!C35,"") ->  | D42: =IF(ISNUMBER(Makross!E35),Makross!D35,"") ->  | E42: =IF(ISNUMBER(Makross!E35),Makross!E35,"") ->  | F42: =IF(ISNUMBER(Makross!E35),Makross!F35,"") ->  | G42: =IF(ISNUMBER(Makross!E35),Makross!G35,"") -> 
A43: =IF(ISNUMBER(E43),33,"") ->  | B43: =IF(ISNUMBER(Makross!E36),Makross!B36,"") ->  | C43: =IF(ISNUMBER(Makross!E36),Makross!C36,"") ->  | D43: =IF(ISNUMBER(Makross!E36),Makross!D36,"") ->  | E43: =IF(ISNUMBER(Makross!E36),Makross!E36,"") ->  | F43: =IF(ISNUMBER(Makross!E36),Makross!F36,"") ->  | G43: =IF(ISNUMBER(Makross!E36),Makross!G36,"") -> 
A44: =IF(ISNUMBER(E44),34,"") ->  | B44: =IF(ISNUMBER(Makross!E37),Makross!B37,"") ->  | C44: =IF(ISNUMBER(Makross!E37),Makross!C37,"") ->  | D44: =IF(ISNUMBER(Makross!E37),Makross!D37,"") ->  | E44: =IF(ISNUMBER(Makross!E37),Makross!E37,"") ->  | F44: =IF(ISNUMBER(Makross!E37),Makross!F37,"") ->  | G44: =IF(ISNUMBER(Makross!E37),Makross!G37,"") -> 
A45: =IF(ISNUMBER(E45),35,"") ->  | B45: =IF(ISNUMBER(Makross!E38),Makross!B38,"") ->  | C45: =IF(ISNUMBER(Makross!E38),Makross!C38,"") ->  | D45: =IF(ISNUMBER(Makross!E38),Makross!D38,"") ->  | E45: =IF(ISNUMBER(Makross!E38),Makross!E38,"") ->  | F45: =IF(ISNUMBER(Makross!E38),Makross!F38,"") ->  | G45: =IF(ISNUMBER(Makross!E38),Makross!G38,"") -> 
A46: =IF(ISNUMBER(E46),36,"") ->  | B46: =IF(ISNUMBER(Makross!E39),Makross!B39,"") ->  | C46: =IF(ISNUMBER(Makross!E39),Makross!C39,"") ->  | D46: =IF(ISNUMBER(Makross!E39),Makross!D39,"") ->  | E46: =IF(ISNUMBER(Makross!E39),Makross!E39,"") ->  | F46: =IF(ISNUMBER(Makross!E39),Makross!F39,"") ->  | G46: =IF(ISNUMBER(Makross!E39),Makross!G39,"") -> 
A47: =IF(ISNUMBER(E47),37,"") ->  | B47: =IF(ISNUMBER(Makross!E40),Makross!B40,"") ->  | C47: =IF(ISNUMBER(Makross!E40),Makross!C40,"") ->  | D47: =IF(ISNUMBER(Makross!E40),Makross!D40,"") ->  | E47: =IF(ISNUMBER(Makross!E40),Makross!E40,"") ->  | F47: =IF(ISNUMBER(Makross!E40),Makross!F40,"") ->  | G47: =IF(ISNUMBER(Makross!E40),Makross!G40,"") -> 
A48: =IF(ISNUMBER(E48),38,"") ->  | B48: =IF(ISNUMBER(Makross!E41),Makross!B41,"") ->  | C48: =IF(ISNUMBER(Makross!E41),Makross!C41,"") ->  | D48: =IF(ISNUMBER(Makross!E41),Makross!D41,"") ->  | E48: =IF(ISNUMBER(Makross!E41),Makross!E41,"") ->  | F48: =IF(ISNUMBER(Makross!E41),Makross!F41,"") ->  | G48: =IF(ISNUMBER(Makross!E41),Makross!G41,"") -> 
A49: =IF(ISNUMBER(E49),39,"") ->  | B49: =IF(ISNUMBER(Makross!E42),Makross!B42,"") ->  | C49: =IF(ISNUMBER(Makross!E42),Makross!C42,"") ->  | D49: =IF(ISNUMBER(Makross!E42),Makross!D42,"") ->  | E49: =IF(ISNUMBER(Makross!E42),Makross!E42,"") ->  | F49: =IF(ISNUMBER(Makross!E42),Makross!F42,"") ->  | G49: =IF(ISNUMBER(Makross!E42),Makross!G42,"") -> 
A50: =IF(ISNUMBER(E50),0,"") ->  | B50: =IF(ISNUMBER(Makross!E43),Makross!B43,"") ->  | C50: =IF(ISNUMBER(Makross!E43),Makross!C43,"") ->  | D50: =IF(ISNUMBER(Makross!E43),Makross!D43,"") ->  | E50: =IF(ISNUMBER(Makross!E43),Makross!E43,"") ->  | F50: =IF(ISNUMBER(Makross!E43),Makross!F43,"") ->  | G50: =IF(ISNUMBER(Makross!E43),Makross!G43,"") -> 
